Workbook

Sheet Control
C7: Tipo de Infraestructura | D7: Social | F7: Inversiones Etapa Construcción (Mill. COP)
C8: Tipo de Proyecto | D8: Greenfield | F8: Año | G8: Infraestructura | H8: Equipos | I8: Total
C9: Aprobación Diseños | D9: Si | F9: =IF($D$10>=1,1,"") -> 1 | G9: 30290 | H9: 0 | I9: =IF(F9="","",G9+H9) -> 30290
C10: Etapa Construcción | D10: 2 | F10: =IF($D$10>=2,2,"") -> 2 | G10: 104218 | H10: 0 | I10: =IF(F10="","",G10+H10) -> 104218
C11: Etapa Operativa | D11: 8 | F11: =IF($D$10>=3,3,"") -> 
C12: Total APP | D12: =IF(D9="Si",1,0)+D10+D11 -> 11 | F12: =IF($D$10>=4,4,"") -> 
F13: =IF($D$10>=5,5,"") -> 
C15: Endeudamiento Largo Plazo | F15: Inversiones Etapa Aprobación Diseños (Mill. COP)
C16: Plazo Deuda Inicial | D16: =IF(D12>10,10,D12-1) -> 10 | F16: Año | G16: Infraestructura | H16: Equipos | I16: Total
C17: Plazo Máximo | D17: 10 | F17: 1 | G17: 12435 | H17: 0 | I17: =G17+H17 -> 12435
C18: Período Máximo de Gracia | D18: 0
C19: Spread Deuda (DTF+%) | D19: 0.05 | F19: Tipificación de Riesgos Previsibles
F20: Tipo | G20: Asignación | H20: % Público | I20: Probabilidad | J20: Impacto
C21: Comportamiento Ingreso (Real) | F21: Económico | G21: Privado | H21: 0 | I21: Medio-Bajo | J21: Alto
C22: Crecimiento Año 2 | D22: 0 | F22: Social o Político | G22: Público | H22: 1 | I22: Bajo | J22: Bajo
C23: Crecimiento Año 3 | D23: 0 | F23: Operacional | G23: Privado | H23: 0 | I23: Medio-Alto | J23: Medio-Alto
C24: Crecimiento ≥ Año 4 | D24: 0 | F24: Financiero | G24: Privado | H24: 0 | I24: Alto | J24: Medio-Alto
C25: Aportes Públicos | D25: 0 | F25: Regulatorio | G25: Público | H25: 1 | I25: Bajo | J25: Bajo
F26: De la Naturaleza | G26: Público | H26: 1 | I26: Bajo | J26: Bajo
C27: Otras Variables | F27: Ambiental | G27: Privado | H27: 0 | I27: Medio-Bajo | J27: Alto
C28: Comisión Éxito (Mill. COP) | D28: 1000 | F28: Tecnológico | G28: Privado | H28: 0 | I28: Bajo | J28: Bajo
C30: * Todos los valores monetarios deben ser incorporados en Pesos Contantes.

Sheet Flujo (hidden)
B6: Tipo Infraestructura | C6: Márgen EBITDA | D6: Ke | E6: WACC | G6: Equity | H6: 0.2 | J6: VPN | K6: =NPV(VLOOKUP(Control!D7,Flujo!B7:D8,3,FALSE),D69:AG69) -> 9.690822857e-12
B7: Productiva | C7: 0.9 | D7: =(1+15%)/(1+H9)-1 -> 0.1165048544 | E7: =$H$6*D7+(1-$H$6)*((1+$H$10)/(1+$H$9)-1)*(1-0.33) -> 0.06321475728 | G7: Primer Pago | H7: =IF(Control!D9="No",0,1)+Control!D10+1 -> 4
B8: Social | C8: 0.9 | D8: =(1+16%)/(1+H9)-1 -> 0.1262135922 | E8: =$H$6*D8+(1-$H$6)*((1+$H$10)/(1+$H$9)-1)*(1-0.33) -> 0.06515650485 | G8: Ingreso Inicial | H8: 41970.48687
G9: Inflación Prom | H9: 0.03
G10: Costo Deuda | H10: =(1+H9*1.8)*(1+Control!D19)-1 -> 0.1067
G11: Gracia | H11: =IF(Control!D18=0,0,IF(AND(Control!D18=1,Control!D11>=2),Control!D18,IF(AND(Control!D18=2,Control!D11>=3),Control!D18,0))) -> 0
D13: 1 | E13: 2 | F13: 3 | G13: 4 | H13: 5 | I13: 6 | J13: 7 | K13: 8 | L13: 9 | M13: 10 | N13: 11 | O13: 12 | P13: 13 | Q13: 14 | R13: 15 | S13: 16 | T13: 17 | U13: 18 | V13: 19 | W13: 20 | X13: 21 | Y13: 22 | Z13: 23 | AA13: 24 | AB13: 25 | AC13: 26 | AD13: 27 | AE13: 28 | AF13: 29 | AG13: 30
B15: --- Balance General
B16: Activo
B17: Activo Corriente | D17: =IF(D13<=Control!$D$12,D18+D19,"") -> 0 | E17: =IF(E13<=Control!$D$12,E18+E19,"") -> 3.637978807e-12 | F17: =IF(F13<=Control!$D$12,F18+F19,"") -> 1.455191523e-11 | G17: =IF(G13<=Control!$D$12,G18+G19,"") -> 8863.328426 | H17: =IF(H13<=Control!$D$12,H18+H19,"") -> 18831.54656 | I17: =IF(I13<=Control!$D$12,I18+I19,"") -> 28136.30377 | J17: =IF(J13<=Control!$D$12,J18+J19,"") -> 38497.70818 | K17: =IF(K13<=Control!$D$12,K18+K19,"") -> 50322.24714 | L17: =IF(L13<=Control!$D$12,L18+L19,"") -> 63232.92754 | M17: =IF(M13<=Control!$D$12,M18+M19,"") -> 77229.74939 | N17: =IF(N13<=Control!$D$12,N18+N19,"") -> 18516.02598 | O17: =IF(O13<=Control!$D$12,O18+O19,"") ->  | P17: =IF(P13<=Control!$D$12,P18+P19,"") ->  | Q17: =IF(Q13<=Control!$D$12,Q18+Q19,"") ->  | R17: =IF(R13<=Control!$D$12,R18+R19,"") ->  | S17: =IF(S13<=Control!$D$12,S18+S19,"") ->  | T17: =IF(T13<=Control!$D$12,T18+T19,"") ->  | U17: =IF(U13<=Control!$D$12,U18+U19,"") ->  | V17: =IF(V13<=Control!$D$12,V18+V19,"") ->  | W17: =IF(W13<=Control!$D$12,W18+W19,"") ->  | X17: =IF(X13<=Control!$D$12,X18+X19,"") ->  | Y17: =IF(Y13<=Control!$D$12,Y18+Y19,"") ->  | Z17: =IF(Z13<=Control!$D$12,Z18+Z19,"") ->  | AA17: =IF(AA13<=Control!$D$12,AA18+AA19,"") ->  | AB17: =IF(AB13<=Control!$D$12,AB18+AB19,"") ->  | AC17: =IF(AC13<=Control!$D$12,AC18+AC19,"") ->  | AD17: =IF(AD13<=Control!$D$12,AD18+AD19,"") ->  | AE17: =IF(AE13<=Control!$D$12,AE18+AE19,"") ->  | AF17: =IF(AF13<=Control!$D$12,AF18+AF19,"") ->  | AG17: =IF(AG13<=Control!$D$12,AG18+AG19,"") -> 
B18: Caja | D18: =IF(D13<=Control!$D$12,D64,"") -> 0 | E18: =IF(E13<=Control!$D$12,E64,"") -> 3.637978807e-12 | F18: =IF(F13<=Control!$D$12,F64,"") -> 1.455191523e-11 | G18: =IF(G13<=Control!$D$12,G64,"") -> 8863.328426 | H18: =IF(H13<=Control!$D$12,H64,"") -> 18831.54656 | I18: =IF(I13<=Control!$D$12,I64,"") -> 28136.30377 | J18: =IF(J13<=Control!$D$12,J64,"") -> 38497.70818 | K18: =IF(K13<=Control!$D$12,K64,"") -> 50322.24714 | L18: =IF(L13<=Control!$D$12,L64,"") -> 63232.92754 | M18: =IF(M13<=Control!$D$12,M64,"") -> 77229.74939 | N18: =IF(N13<=Control!$D$12,N64,"") -> 6411.206495 | O18: =IF(O13<=Control!$D$12,O64,"") ->  | P18: =IF(P13<=Control!$D$12,P64,"") ->  | Q18: =IF(Q13<=Control!$D$12,Q64,"") ->  | R18: =IF(R13<=Control!$D$12,R64,"") ->  | S18: =IF(S13<=Control!$D$12,S64,"") ->  | T18: =IF(T13<=Control!$D$12,T64,"") ->  | U18: =IF(U13<=Control!$D$12,U64,"") ->  | V18: =IF(V13<=Control!$D$12,V64,"") ->  | W18: =IF(W13<=Control!$D$12,W64,"") ->  | X18: =IF(X13<=Control!$D$12,X64,"") ->  | Y18: =IF(Y13<=Control!$D$12,Y64,"") ->  | Z18: =IF(Z13<=Control!$D$12,Z64,"") ->  | AA18: =IF(AA13<=Control!$D$12,AA64,"") ->  | AB18: =IF(AB13<=Control!$D$12,AB64,"") ->  | AC18: =IF(AC13<=Control!$D$12,AC64,"") ->  | AD18: =IF(AD13<=Control!$D$12,AD64,"") ->  | AE18: =IF(AE13<=Control!$D$12,AE64,"") ->  | AF18: =IF(AF13<=Control!$D$12,AF64,"") ->  | AG18: =IF(AG13<=Control!$D$12,AG64,"") -> 
B19: Dividendos Pagados por Anticipado | D19: =IF(D13<Control!$D$12,0,IF(D13=Control!$D$12,Flujo!D47,"")) -> 0 | E19: =IF(E13<Control!$D$12,0,IF(E13=Control!$D$12,Flujo!E47,"")) -> 0 | F19: =IF(F13<Control!$D$12,0,IF(F13=Control!$D$12,Flujo!F47,"")) -> 0 | G19: =IF(G13<Control!$D$12,0,IF(G13=Control!$D$12,Flujo!G47,"")) -> 0 | H19: =IF(H13<Control!$D$12,0,IF(H13=Control!$D$12,Flujo!H47,"")) -> 0 | I19: =IF(I13<Control!$D$12,0,IF(I13=Control!$D$12,Flujo!I47,"")) -> 0 | J19: =IF(J13<Control!$D$12,0,IF(J13=Control!$D$12,Flujo!J47,"")) -> 0 | K19: =IF(K13<Control!$D$12,0,IF(K13=Control!$D$12,Flujo!K47,"")) -> 0 | L19: =IF(L13<Control!$D$12,0,IF(L13=Control!$D$12,Flujo!L47,"")) -> 0 | M19: =IF(M13<Control!$D$12,0,IF(M13=Control!$D$12,Flujo!M47,"")) -> 0 | N19: =IF(N13<Control!$D$12,0,IF(N13=Control!$D$12,Flujo!N47,"")) -> 12104.81949 | O19: =IF(O13<Control!$D$12,0,IF(O13=Control!$D$12,Flujo!O47,"")) ->  | P19: =IF(P13<Control!$D$12,0,IF(P13=Control!$D$12,Flujo!P47,"")) ->  | Q19: =IF(Q13<Control!$D$12,0,IF(Q13=Control!$D$12,Flujo!Q47,"")) ->  | R19: =IF(R13<Control!$D$12,0,IF(R13=Control!$D$12,Flujo!R47,"")) ->  | S19: =IF(S13<Control!$D$12,0,IF(S13=Control!$D$12,Flujo!S47,"")) ->  | T19: =IF(T13<Control!$D$12,0,IF(T13=Control!$D$12,Flujo!T47,"")) ->  | U19: =IF(U13<Control!$D$12,0,IF(U13=Control!$D$12,Flujo!U47,"")) ->  | V19: =IF(V13<Control!$D$12,0,IF(V13=Control!$D$12,Flujo!V47,"")) ->  | W19: =IF(W13<Control!$D$12,0,IF(W13=Control!$D$12,Flujo!W47,"")) ->  | X19: =IF(X13<Control!$D$12,0,IF(X13=Control!$D$12,Flujo!X47,"")) ->  | Y19: =IF(Y13<Control!$D$12,0,IF(Y13=Control!$D$12,Flujo!Y47,"")) ->  | Z19: =IF(Z13<Control!$D$12,0,IF(Z13=Control!$D$12,Flujo!Z47,"")) ->  | AA19: =IF(AA13<Control!$D$12,0,IF(AA13=Control!$D$12,Flujo!AA47,"")) ->  | AB19: =IF(AB13<Control!$D$12,0,IF(AB13=Control!$D$12,Flujo!AB47,"")) ->  | AC19: =IF(AC13<Control!$D$12,0,IF(AC13=Control!$D$12,Flujo!AC47,"")) ->  | AD19: =IF(AD13<Control!$D$12,0,IF(AD13=Control!$D$12,Flujo!AD47,"")) ->  | AE19: =IF(AE13<Control!$D$12,0,IF(AE13=Control!$D$12,Flujo!AE47,"")) ->  | AF19: =IF(AF13<Control!$D$12,0,IF(AF13=Control!$D$12,Flujo!AF47,"")) ->  | AG19: =IF(AG13<Control!$D$12,0,IF(AG13=Control!$D$12,Flujo!AG47,"")) -> 
B20: Activo No Corriente | D20: =IF(D13<=Control!$D$12,D21-D22,"") -> 12435 | E20: =IF(E13<=Control!$D$12,E21-E22,"") -> 41481.5 | F20: =IF(F13<=Control!$D$12,F21-F22,"") -> 141090.4444 | G20: =IF(G13<=Control!$D$12,G21-G22,"") -> 123454.1389 | H20: =IF(H13<=Control!$D$12,H21-H22,"") -> 105817.8333 | I20: =IF(I13<=Control!$D$12,I21-I22,"") -> 88181.52778 | J20: =IF(J13<=Control!$D$12,J21-J22,"") -> 70545.22222 | K20: =IF(K13<=Control!$D$12,K21-K22,"") -> 52908.91667 | L20: =IF(L13<=Control!$D$12,L21-L22,"") -> 35272.61111 | M20: =IF(M13<=Control!$D$12,M21-M22,"") -> 17636.30556 | N20: =IF(N13<=Control!$D$12,N21-N22,"") -> -2.910383046e-11 | O20: =IF(O13<=Control!$D$12,O21-O22,"") ->  | P20: =IF(P13<=Control!$D$12,P21-P22,"") ->  | Q20: =IF(Q13<=Control!$D$12,Q21-Q22,"") ->  | R20: =IF(R13<=Control!$D$12,R21-R22,"") ->  | S20: =IF(S13<=Control!$D$12,S21-S22,"") ->  | T20: =IF(T13<=Control!$D$12,T21-T22,"") ->  | U20: =IF(U13<=Control!$D$12,U21-U22,"") ->  | V20: =IF(V13<=Control!$D$12,V21-V22,"") ->  | W20: =IF(W13<=Control!$D$12,W21-W22,"") ->  | X20: =IF(X13<=Control!$D$12,X21-X22,"") ->  | Y20: =IF(Y13<=Control!$D$12,Y21-Y22,"") ->  | Z20: =IF(Z13<=Control!$D$12,Z21-Z22,"") ->  | AA20: =IF(AA13<=Control!$D$12,AA21-AA22,"") ->  | AB20: =IF(AB13<=Control!$D$12,AB21-AB22,"") ->  | AC20: =IF(AC13<=Control!$D$12,AC21-AC22,"") ->  | AD20: =IF(AD13<=Control!$D$12,AD21-AD22,"") ->  | AE20: =IF(AE13<=Control!$D$12,AE21-AE22,"") ->  | AF20: =IF(AF13<=Control!$D$12,AF21-AF22,"") ->  | AG20: =IF(AG13<=Control!$D$12,AG21-AG22,"") -> 
B21: Activo Fijo | D21: =D53 -> 12435 | E21: =IF(E13<=Control!$D$12,D21+E53,"") -> 42725 | F21: =IF(F13<=Control!$D$12,E21+F53,"") -> 146943 | G21: =IF(G13<=Control!$D$12,F21+G53,"") -> 146943 | H21: =IF(H13<=Control!$D$12,G21+H53,"") -> 146943 | I21: =IF(I13<=Control!$D$12,H21+I53,"") -> 146943 | J21: =IF(J13<=Control!$D$12,I21+J53,"") -> 146943 | K21: =IF(K13<=Control!$D$12,J21+K53,"") -> 146943 | L21: =IF(L13<=Control!$D$12,K21+L53,"") -> 146943 | M21: =IF(M13<=Control!$D$12,L21+M53,"") -> 146943 | N21: =IF(N13<=Control!$D$12,M21+N53,"") -> 146943 | O21: =IF(O13<=Control!$D$12,N21+O53,"") ->  | P21: =IF(P13<=Control!$D$12,O21+P53,"") ->  | Q21: =IF(Q13<=Control!$D$12,P21+Q53,"") ->  | R21: =IF(R13<=Control!$D$12,Q21+R53,"") ->  | S21: =IF(S13<=Control!$D$12,R21+S53,"") ->  | T21: =IF(T13<=Control!$D$12,S21+T53,"") ->  | U21: =IF(U13<=Control!$D$12,T21+U53,"") ->  | V21: =IF(V13<=Control!$D$12,U21+V53,"") ->  | W21: =IF(W13<=Control!$D$12,V21+W53,"") ->  | X21: =IF(X13<=Control!$D$12,W21+X53,"") ->  | Y21: =IF(Y13<=Control!$D$12,X21+Y53,"") ->  | Z21: =IF(Z13<=Control!$D$12,Y21+Z53,"") ->  | AA21: =IF(AA13<=Control!$D$12,Z21+AA53,"") ->  | AB21: =IF(AB13<=Control!$D$12,AA21+AB53,"") ->  | AC21: =IF(AC13<=Control!$D$12,AB21+AC53,"") ->  | AD21: =IF(AD13<=Control!$D$12,AC21+AD53,"") ->  | AE21: =IF(AE13<=Control!$D$12,AD21+AE53,"") ->  | AF21: =IF(AF13<=Control!$D$12,AE21+AF53,"") ->  | AG21: =IF(AG13<=Control!$D$12,AF21+AG53,"") -> 
B22: Depreciación | D22: 0 | E22: =IF(E13<=Control!$D$12,E44,"") -> 1243.5 | F22: =IF(F13<=Control!$D$12,E22+F44,"") -> 5852.555556 | G22: =IF(G13<=Control!$D$12,F22+G44,"") -> 23488.86111 | H22: =IF(H13<=Control!$D$12,G22+H44,"") -> 41125.16667 | I22: =IF(I13<=Control!$D$12,H22+I44,"") -> 58761.47222 | J22: =IF(J13<=Control!$D$12,I22+J44,"") -> 76397.77778 | K22: =IF(K13<=Control!$D$12,J22+K44,"") -> 94034.08333 | L22: =IF(L13<=Control!$D$12,K22+L44,"") -> 111670.3889 | M22: =IF(M13<=Control!$D$12,L22+M44,"") -> 129306.6944 | N22: =IF(N13<=Control!$D$12,M22+N44,"") -> 146943 | O22: =IF(O13<=Control!$D$12,N22+O44,"") ->  | P22: =IF(P13<=Control!$D$12,O22+P44,"") ->  | Q22: =IF(Q13<=Control!$D$12,P22+Q44,"") ->  | R22: =IF(R13<=Control!$D$12,Q22+R44,"") ->  | S22: =IF(S13<=Control!$D$12,R22+S44,"") ->  | T22: =IF(T13<=Control!$D$12,S22+T44,"") ->  | U22: =IF(U13<=Control!$D$12,T22+U44,"") ->  | V22: =IF(V13<=Control!$D$12,U22+V44,"") ->  | W22: =IF(W13<=Control!$D$12,V22+W44,"") ->  | X22: =IF(X13<=Control!$D$12,W22+X44,"") ->  | Y22: =IF(Y13<=Control!$D$12,X22+Y44,"") ->  | Z22: =IF(Z13<=Control!$D$12,Y22+Z44,"") ->  | AA22: =IF(AA13<=Control!$D$12,Z22+AA44,"") ->  | AB22: =IF(AB13<=Control!$D$12,AA22+AB44,"") ->  | AC22: =IF(AC13<=Control!$D$12,AB22+AC44,"") ->  | AD22: =IF(AD13<=Control!$D$12,AC22+AD44,"") ->  | AE22: =IF(AE13<=Control!$D$12,AD22+AE44,"") ->  | AF22: =IF(AF13<=Control!$D$12,AE22+AF44,"") ->  | AG22: =IF(AG13<=Control!$D$12,AF22+AG44,"") -> 
B23: Total Activo | D23: =IF(D13<=Control!$D$12,D17+D20,"") -> 12435 | E23: =IF(E13<=Control!$D$12,E17+E20,"") -> 41481.5 | F23: =IF(F13<=Control!$D$12,F17+F20,"") -> 141090.4444 | G23: =IF(G13<=Control!$D$12,G17+G20,"") -> 132317.4673 | H23: =IF(H13<=Control!$D$12,H17+H20,"") -> 124649.3799 | I23: =IF(I13<=Control!$D$12,I17+I20,"") -> 116317.8315 | J23: =IF(J13<=Control!$D$12,J17+J20,"") -> 109042.9304 | K23: =IF(K13<=Control!$D$12,K17+K20,"") -> 103231.1638 | L23: =IF(L13<=Control!$D$12,L17+L20,"") -> 98505.53865 | M23: =IF(M13<=Control!$D$12,M17+M20,"") -> 94866.05495 | N23: =IF(N13<=Control!$D$12,N17+N20,"") -> 18516.02598 | O23: =IF(O13<=Control!$D$12,O17+O20,"") ->  | P23: =IF(P13<=Control!$D$12,P17+P20,"") ->  | Q23: =IF(Q13<=Control!$D$12,Q17+Q20,"") ->  | R23: =IF(R13<=Control!$D$12,R17+R20,"") ->  | S23: =IF(S13<=Control!$D$12,S17+S20,"") ->  | T23: =IF(T13<=Control!$D$12,T17+T20,"") ->  | U23: =IF(U13<=Control!$D$12,U17+U20,"") ->  | V23: =IF(V13<=Control!$D$12,V17+V20,"") ->  | W23: =IF(W13<=Control!$D$12,W17+W20,"") ->  | X23: =IF(X13<=Control!$D$12,X17+X20,"") ->  | Y23: =IF(Y13<=Control!$D$12,Y17+Y20,"") ->  | Z23: =IF(Z13<=Control!$D$12,Z17+Z20,"") ->  | AA23: =IF(AA13<=Control!$D$12,AA17+AA20,"") ->  | AB23: =IF(AB13<=Control!$D$12,AB17+AB20,"") ->  | AC23: =IF(AC13<=Control!$D$12,AC17+AC20,"") ->  | AD23: =IF(AD13<=Control!$D$12,AD17+AD20,"") ->  | AE23: =IF(AE13<=Control!$D$12,AE17+AE20,"") ->  | AF23: =IF(AF13<=Control!$D$12,AF17+AF20,"") ->  | AG23: =IF(AG13<=Control!$D$12,AG17+AG20,"") -> 
B24: Pasivo
B25: Pasivo Corriente | D25: =IF(D13<=Control!$D$12,D26+D27,"") -> 88.5675 | E25: =IF(E13<=Control!$D$12,E26+E27,"") -> 199.8568997 | F25: =IF(F13<=Control!$D$12,F26+F27,"") -> 748.1296776 | G25: =IF(G13<=Control!$D$12,G26+G27,"") -> 1264.346614 | H25: =IF(H13<=Control!$D$12,H26+H27,"") -> 3548.914182 | I25: =IF(I13<=Control!$D$12,I26+I27,"") -> 4113.373618 | J25: =IF(J13<=Control!$D$12,J26+J27,"") -> 4271.345726 | K25: =IF(K13<=Control!$D$12,K26+K27,"") -> 4806.310918 | L25: =IF(L13<=Control!$D$12,L26+L27,"") -> 5341.27611 | M25: =IF(M13<=Control!$D$12,M26+M27,"") -> 5876.241303 | N25: =IF(N13<=Control!$D$12,N26+N27,"") -> 6411.206495 | O25: =IF(O13<=Control!$D$12,O26+O27,"") ->  | P25: =IF(P13<=Control!$D$12,P26+P27,"") ->  | Q25: =IF(Q13<=Control!$D$12,Q26+Q27,"") ->  | R25: =IF(R13<=Control!$D$12,R26+R27,"") ->  | S25: =IF(S13<=Control!$D$12,S26+S27,"") ->  | T25: =IF(T13<=Control!$D$12,T26+T27,"") ->  | U25: =IF(U13<=Control!$D$12,U26+U27,"") ->  | V25: =IF(V13<=Control!$D$12,V26+V27,"") ->  | W25: =IF(W13<=Control!$D$12,W26+W27,"") ->  | X25: =IF(X13<=Control!$D$12,X26+X27,"") ->  | Y25: =IF(Y13<=Control!$D$12,Y26+Y27,"") ->  | Z25: =IF(Z13<=Control!$D$12,Z26+Z27,"") ->  | AA25: =IF(AA13<=Control!$D$12,AA26+AA27,"") ->  | AB25: =IF(AB13<=Control!$D$12,AB26+AB27,"") ->  | AC25: =IF(AC13<=Control!$D$12,AC26+AC27,"") ->  | AD25: =IF(AD13<=Control!$D$12,AD26+AD27,"") ->  | AE25: =IF(AE13<=Control!$D$12,AE26+AE27,"") ->  | AF25: =IF(AF13<=Control!$D$12,AF26+AF27,"") ->  | AG25: =IF(AG13<=Control!$D$12,AG26+AG27,"") -> 
B26: Roll Over | D26: =IF(D13<=Control!$D$12,D60,"") -> 0 | E26: =IF(E13<=Control!$D$12,E60,"") -> 0 | F26: =IF(F13<=Control!$D$12,F60,"") -> 0 | G26: =IF(G13<=Control!$D$12,G60,"") -> 0 | H26: =IF(H13<=Control!$D$12,H60,"") -> 0 | I26: =IF(I13<=Control!$D$12,I60,"") -> 0 | J26: =IF(J13<=Control!$D$12,J60,"") -> 0 | K26: =IF(K13<=Control!$D$12,K60,"") -> 0 | L26: =IF(L13<=Control!$D$12,L60,"") -> 0 | M26: =IF(M13<=Control!$D$12,M60,"") -> 0 | N26: =IF(N13<=Control!$D$12,N60,"") -> 0 | O26: =IF(O13<=Control!$D$12,O60,"") ->  | P26: =IF(P13<=Control!$D$12,P60,"") ->  | Q26: =IF(Q13<=Control!$D$12,Q60,"") ->  | R26: =IF(R13<=Control!$D$12,R60,"") ->  | S26: =IF(S13<=Control!$D$12,S60,"") ->  | T26: =IF(T13<=Control!$D$12,T60,"") ->  | U26: =IF(U13<=Control!$D$12,U60,"") ->  | V26: =IF(V13<=Control!$D$12,V60,"") ->  | W26: =IF(W13<=Control!$D$12,W60,"") ->  | X26: =IF(X13<=Control!$D$12,X60,"") ->  | Y26: =IF(Y13<=Control!$D$12,Y60,"") ->  | Z26: =IF(Z13<=Control!$D$12,Z60,"") ->  | AA26: =IF(AA13<=Control!$D$12,AA60,"") ->  | AB26: =IF(AB13<=Control!$D$12,AB60,"") ->  | AC26: =IF(AC13<=Control!$D$12,AC60,"") ->  | AD26: =IF(AD13<=Control!$D$12,AD60,"") ->  | AE26: =IF(AE13<=Control!$D$12,AE60,"") ->  | AF26: =IF(AF13<=Control!$D$12,AF60,"") ->  | AG26: =IF(AG13<=Control!$D$12,AG60,"") -> 
B27: Impuesto de Renta | D27: =IF(D13<=Control!$D$12,D46,"") -> 88.5675 | E27: =IF(E13<=Control!$D$12,E46,"") -> 199.8568997 | F27: =IF(F13<=Control!$D$12,F46,"") -> 748.1296776 | G27: =IF(G13<=Control!$D$12,G46,"") -> 1264.346614 | H27: =IF(H13<=Control!$D$12,H46,"") -> 3548.914182 | I27: =IF(I13<=Control!$D$12,I46,"") -> 4113.373618 | J27: =IF(J13<=Control!$D$12,J46,"") -> 4271.345726 | K27: =IF(K13<=Control!$D$12,K46,"") -> 4806.310918 | L27: =IF(L13<=Control!$D$12,L46,"") -> 5341.27611 | M27: =IF(M13<=Control!$D$12,M46,"") -> 5876.241303 | N27: =IF(N13<=Control!$D$12,N46,"") -> 6411.206495 | O27: =IF(O13<=Control!$D$12,O46,"") ->  | P27: =IF(P13<=Control!$D$12,P46,"") ->  | Q27: =IF(Q13<=Control!$D$12,Q46,"") ->  | R27: =IF(R13<=Control!$D$12,R46,"") ->  | S27: =IF(S13<=Control!$D$12,S46,"") ->  | T27: =IF(T13<=Control!$D$12,T46,"") ->  | U27: =IF(U13<=Control!$D$12,U46,"") ->  | V27: =IF(V13<=Control!$D$12,V46,"") ->  | W27: =IF(W13<=Control!$D$12,W46,"") ->  | X27: =IF(X13<=Control!$D$12,X46,"") ->  | Y27: =IF(Y13<=Control!$D$12,Y46,"") ->  | Z27: =IF(Z13<=Control!$D$12,Z46,"") ->  | AA27: =IF(AA13<=Control!$D$12,AA46,"") ->  | AB27: =IF(AB13<=Control!$D$12,AB46,"") ->  | AC27: =IF(AC13<=Control!$D$12,AC46,"") ->  | AD27: =IF(AD13<=Control!$D$12,AD46,"") ->  | AE27: =IF(AE13<=Control!$D$12,AE46,"") ->  | AF27: =IF(AF13<=Control!$D$12,AF46,"") ->  | AG27: =IF(AG13<=Control!$D$12,AG46,"") -> 
B28: Pasivo No Corriente | D28: =IF(D13<=Control!$D$12,D29,"") -> 10748 | E28: =IF(E13<=Control!$D$12,E29,"") -> 35753.34328 | F28: =IF(F13<=Control!$D$12,F29,"") -> 121545.0154 | G28: =IF(G13<=Control!$D$12,G29,"") -> 106351.8885 | H28: =IF(H13<=Control!$D$12,H29,"") -> 91158.76158 | I28: =IF(I13<=Control!$D$12,I29,"") -> 75965.63465 | J28: =IF(J13<=Control!$D$12,J29,"") -> 60772.50772 | K28: =IF(K13<=Control!$D$12,K29,"") -> 45579.38079 | L28: =IF(L13<=Control!$D$12,L29,"") -> 30386.25386 | M28: =IF(M13<=Control!$D$12,M29,"") -> 15193.12693 | N28: =IF(N13<=Control!$D$12,N29,"") -> 1.818989404e-11 | O28: =IF(O13<=Control!$D$12,O29,"") ->  | P28: =IF(P13<=Control!$D$12,P29,"") ->  | Q28: =IF(Q13<=Control!$D$12,Q29,"") ->  | R28: =IF(R13<=Control!$D$12,R29,"") ->  | S28: =IF(S13<=Control!$D$12,S29,"") ->  | T28: =IF(T13<=Control!$D$12,T29,"") ->  | U28: =IF(U13<=Control!$D$12,U29,"") ->  | V28: =IF(V13<=Control!$D$12,V29,"") ->  | W28: =IF(W13<=Control!$D$12,W29,"") ->  | X28: =IF(X13<=Control!$D$12,X29,"") ->  | Y28: =IF(Y13<=Control!$D$12,Y29,"") ->  | Z28: =IF(Z13<=Control!$D$12,Z29,"") ->  | AA28: =IF(AA13<=Control!$D$12,AA29,"") ->  | AB28: =IF(AB13<=Control!$D$12,AB29,"") ->  | AC28: =IF(AC13<=Control!$D$12,AC29,"") ->  | AD28: =IF(AD13<=Control!$D$12,AD29,"") ->  | AE28: =IF(AE13<=Control!$D$12,AE29,"") ->  | AF28: =IF(AF13<=Control!$D$12,AF29,"") ->  | AG28: =IF(AG13<=Control!$D$12,AG29,"") -> 
B29: Deuda Largo Plazo | D29: =IF(D13<=Control!$D$12,D73,"") -> 10748 | E29: =IF(E13<=Control!$D$12,E73,"") -> 35753.34328 | F29: =IF(F13<=Control!$D$12,F73,"") -> 121545.0154 | G29: =IF(G13<=Control!$D$12,G73,"") -> 106351.8885 | H29: =IF(H13<=Control!$D$12,H73,"") -> 91158.76158 | I29: =IF(I13<=Control!$D$12,I73,"") -> 75965.63465 | J29: =IF(J13<=Control!$D$12,J73,"") -> 60772.50772 | K29: =IF(K13<=Control!$D$12,K73,"") -> 45579.38079 | L29: =IF(L13<=Control!$D$12,L73,"") -> 30386.25386 | M29: =IF(M13<=Control!$D$12,M73,"") -> 15193.12693 | N29: =IF(N13<=Control!$D$12,N73,"") -> 1.818989404e-11 | O29: =IF(O13<=Control!$D$12,O73,"") ->  | P29: =IF(P13<=Control!$D$12,P73,"") ->  | Q29: =IF(Q13<=Control!$D$12,Q73,"") ->  | R29: =IF(R13<=Control!$D$12,R73,"") ->  | S29: =IF(S13<=Control!$D$12,S73,"") ->  | T29: =IF(T13<=Control!$D$12,T73,"") ->  | U29: =IF(U13<=Control!$D$12,U73,"") ->  | V29: =IF(V13<=Control!$D$12,V73,"") ->  | W29: =IF(W13<=Control!$D$12,W73,"") ->  | X29: =IF(X13<=Control!$D$12,X73,"") ->  | Y29: =IF(Y13<=Control!$D$12,Y73,"") ->  | Z29: =IF(Z13<=Control!$D$12,Z73,"") ->  | AA29: =IF(AA13<=Control!$D$12,AA73,"") ->  | AB29: =IF(AB13<=Control!$D$12,AB73,"") ->  | AC29: =IF(AC13<=Control!$D$12,AC73,"") ->  | AD29: =IF(AD13<=Control!$D$12,AD73,"") ->  | AE29: =IF(AE13<=Control!$D$12,AE73,"") ->  | AF29: =IF(AF13<=Control!$D$12,AF73,"") ->  | AG29: =IF(AG13<=Control!$D$12,AG73,"") -> 
B30: Total Pasivo | D30: =IF(D13<=Control!$D$12,D25+D28,"") -> 10836.5675 | E30: =IF(E13<=Control!$D$12,E25+E28,"") -> 35953.20018 | F30: =IF(F13<=Control!$D$12,F25+F28,"") -> 122293.1451 | G30: =IF(G13<=Control!$D$12,G25+G28,"") -> 107616.2351 | H30: =IF(H13<=Control!$D$12,H25+H28,"") -> 94707.67576 | I30: =IF(I13<=Control!$D$12,I25+I28,"") -> 80079.00827 | J30: =IF(J13<=Control!$D$12,J25+J28,"") -> 65043.85345 | K30: =IF(K13<=Control!$D$12,K25+K28,"") -> 50385.69171 | L30: =IF(L13<=Control!$D$12,L25+L28,"") -> 35727.52997 | M30: =IF(M13<=Control!$D$12,M25+M28,"") -> 21069.36823 | N30: =IF(N13<=Control!$D$12,N25+N28,"") -> 6411.206495 | O30: =IF(O13<=Control!$D$12,O25+O28,"") ->  | P30: =IF(P13<=Control!$D$12,P25+P28,"") ->  | Q30: =IF(Q13<=Control!$D$12,Q25+Q28,"") ->  | R30: =IF(R13<=Control!$D$12,R25+R28,"") ->  | S30: =IF(S13<=Control!$D$12,S25+S28,"") ->  | T30: =IF(T13<=Control!$D$12,T25+T28,"") ->  | U30: =IF(U13<=Control!$D$12,U25+U28,"") ->  | V30: =IF(V13<=Control!$D$12,V25+V28,"") ->  | W30: =IF(W13<=Control!$D$12,W25+W28,"") ->  | X30: =IF(X13<=Control!$D$12,X25+X28,"") ->  | Y30: =IF(Y13<=Control!$D$12,Y25+Y28,"") ->  | Z30: =IF(Z13<=Control!$D$12,Z25+Z28,"") ->  | AA30: =IF(AA13<=Control!$D$12,AA25+AA28,"") ->  | AB30: =IF(AB13<=Control!$D$12,AB25+AB28,"") ->  | AC30: =IF(AC13<=Control!$D$12,AC25+AC28,"") ->  | AD30: =IF(AD13<=Control!$D$12,AD25+AD28,"") ->  | AE30: =IF(AE13<=Control!$D$12,AE25+AE28,"") ->  | AF30: =IF(AF13<=Control!$D$12,AF25+AF28,"") ->  | AG30: =IF(AG13<=Control!$D$12,AG25+AG28,"") -> 
B31: Patrimonio
B32: Capital Social | D32: =D62 -> 2687 | E32: =IF(E13<Control!$D$12,E62+D32,IF(E13=Control!$D$12,0,"")) -> 9207.03582 | F32: =IF(F13<Control!$D$12,F62+E32,IF(F13=Control!$D$12,0,"")) -> 31648.10229 | G32: =IF(G13<Control!$D$12,G62+F32,IF(G13=Control!$D$12,0,"")) -> 31648.10229 | H32: =IF(H13<Control!$D$12,H62+G32,IF(H13=Control!$D$12,0,"")) -> 31648.10229 | I32: =IF(I13<Control!$D$12,I62+H32,IF(I13=Control!$D$12,0,"")) -> 31648.10229 | J32: =IF(J13<Control!$D$12,J62+I32,IF(J13=Control!$D$12,0,"")) -> 31648.10229 | K32: =IF(K13<Control!$D$12,K62+J32,IF(K13=Control!$D$12,0,"")) -> 31648.10229 | L32: =IF(L13<Control!$D$12,L62+K32,IF(L13=Control!$D$12,0,"")) -> 31648.10229 | M32: =IF(M13<Control!$D$12,M62+L32,IF(M13=Control!$D$12,0,"")) -> 31648.10229 | N32: =IF(N13<Control!$D$12,N62+M32,IF(N13=Control!$D$12,0,"")) -> 0 | O32: =IF(O13<Control!$D$12,O62+N32,IF(O13=Control!$D$12,0,"")) ->  | P32: =IF(P13<Control!$D$12,P62+O32,IF(P13=Control!$D$12,0,"")) ->  | Q32: =IF(Q13<Control!$D$12,Q62+P32,IF(Q13=Control!$D$12,0,"")) ->  | R32: =IF(R13<Control!$D$12,R62+Q32,IF(R13=Control!$D$12,0,"")) ->  | S32: =IF(S13<Control!$D$12,S62+R32,IF(S13=Control!$D$12,0,"")) ->  | T32: =IF(T13<Control!$D$12,T62+S32,IF(T13=Control!$D$12,0,"")) ->  | U32: =IF(U13<Control!$D$12,U62+T32,IF(U13=Control!$D$12,0,"")) ->  | V32: =IF(V13<Control!$D$12,V62+U32,IF(V13=Control!$D$12,0,"")) ->  | W32: =IF(W13<Control!$D$12,W62+V32,IF(W13=Control!$D$12,0,"")) ->  | X32: =IF(X13<Control!$D$12,X62+W32,IF(X13=Control!$D$12,0,"")) ->  | Y32: =IF(Y13<Control!$D$12,Y62+X32,IF(Y13=Control!$D$12,0,"")) ->  | Z32: =IF(Z13<Control!$D$12,Z62+Y32,IF(Z13=Control!$D$12,0,"")) ->  | AA32: =IF(AA13<Control!$D$12,AA62+Z32,IF(AA13=Control!$D$12,0,"")) ->  | AB32: =IF(AB13<Control!$D$12,AB62+AA32,IF(AB13=Control!$D$12,0,"")) ->  | AC32: =IF(AC13<Control!$D$12,AC62+AB32,IF(AC13=Control!$D$12,0,"")) ->  | AD32: =IF(AD13<Control!$D$12,AD62+AC32,IF(AD13=Control!$D$12,0,"")) ->  | AE32: =IF(AE13<Control!$D$12,AE62+AD32,IF(AE13=Control!$D$12,0,"")) ->  | AF32: =IF(AF13<Control!$D$12,AF62+AE32,IF(AF13=Control!$D$12,0,"")) ->  | AG32: =IF(AG13<Control!$D$12,AG62+AF32,IF(AG13=Control!$D$12,0,"")) -> 
B33: Utilidad del Período | D33: =IF(D13<=Control!$D$12,D47,"") -> -1088.5675 | E33: =IF(E13<=Control!$D$12,E47,"") -> -2590.1685 | F33: =IF(F13<=Control!$D$12,F47,"") -> -9172.066961 | G33: =IF(G13<=Control!$D$12,G47,"") -> 5903.932864 | H33: =IF(H13<=Control!$D$12,H47,"") -> 5240.47194 | I33: =IF(I13<=Control!$D$12,I47,"") -> 6297.119147 | J33: =IF(J13<=Control!$D$12,J47,"") -> 7760.253683 | K33: =IF(K13<=Control!$D$12,K47,"") -> 8846.395134 | L33: =IF(L13<=Control!$D$12,L47,"") -> 9932.536585 | M33: =IF(M13<=Control!$D$12,M47,"") -> 11018.67804 | N33: =IF(N13<=Control!$D$12,N47,"") -> 12104.81949 | O33: =IF(O13<=Control!$D$12,O47,"") ->  | P33: =IF(P13<=Control!$D$12,P47,"") ->  | Q33: =IF(Q13<=Control!$D$12,Q47,"") ->  | R33: =IF(R13<=Control!$D$12,R47,"") ->  | S33: =IF(S13<=Control!$D$12,S47,"") ->  | T33: =IF(T13<=Control!$D$12,T47,"") ->  | U33: =IF(U13<=Control!$D$12,U47,"") ->  | V33: =IF(V13<=Control!$D$12,V47,"") ->  | W33: =IF(W13<=Control!$D$12,W47,"") ->  | X33: =IF(X13<=Control!$D$12,X47,"") ->  | Y33: =IF(Y13<=Control!$D$12,Y47,"") ->  | Z33: =IF(Z13<=Control!$D$12,Z47,"") ->  | AA33: =IF(AA13<=Control!$D$12,AA47,"") ->  | AB33: =IF(AB13<=Control!$D$12,AB47,"") ->  | AC33: =IF(AC13<=Control!$D$12,AC47,"") ->  | AD33: =IF(AD13<=Control!$D$12,AD47,"") ->  | AE33: =IF(AE13<=Control!$D$12,AE47,"") ->  | AF33: =IF(AF13<=Control!$D$12,AF47,"") ->  | AG33: =IF(AG13<=Control!$D$12,AG47,"") -> 
B34: Utilidad Acumulada | E34: =IF(E13<Control!$D$12,D33+D34-E59,IF(E13=Control!$D$12,0,"")) -> -1088.5675 | F34: =IF(F13<Control!$D$12,E33+E34-F59,IF(F13=Control!$D$12,0,"")) -> -3678.736 | G34: =IF(G13<Control!$D$12,F33+F34-G59,IF(G13=Control!$D$12,0,"")) -> -12850.80296 | H34: =IF(H13<Control!$D$12,G33+G34-H59,IF(H13=Control!$D$12,0,"")) -> -6946.870097 | I34: =IF(I13<Control!$D$12,H33+H34-I59,IF(I13=Control!$D$12,0,"")) -> -1706.398157 | J34: =IF(J13<Control!$D$12,I33+I34-J59,IF(J13=Control!$D$12,0,"")) -> 4590.72099 | K34: =IF(K13<Control!$D$12,J33+J34-K59,IF(K13=Control!$D$12,0,"")) -> 12350.97467 | L34: =IF(L13<Control!$D$12,K33+K34-L59,IF(L13=Control!$D$12,0,"")) -> 21197.36981 | M34: =IF(M13<Control!$D$12,L33+L34-M59,IF(M13=Control!$D$12,0,"")) -> 31129.90639 | N34: =IF(N13<Control!$D$12,M33+M34-N59,IF(N13=Control!$D$12,0,"")) -> 0 | O34: =IF(O13<Control!$D$12,N33+N34-O59,IF(O13=Control!$D$12,0,"")) ->  | P34: =IF(P13<Control!$D$12,O33+O34-P59,IF(P13=Control!$D$12,0,"")) ->  | Q34: =IF(Q13<Control!$D$12,P33+P34-Q59,IF(Q13=Control!$D$12,0,"")) ->  | R34: =IF(R13<Control!$D$12,Q33+Q34-R59,IF(R13=Control!$D$12,0,"")) ->  | S34: =IF(S13<Control!$D$12,R33+R34-S59,IF(S13=Control!$D$12,0,"")) ->  | T34: =IF(T13<Control!$D$12,S33+S34-T59,IF(T13=Control!$D$12,0,"")) ->  | U34: =IF(U13<Control!$D$12,T33+T34-U59,IF(U13=Control!$D$12,0,"")) ->  | V34: =IF(V13<Control!$D$12,U33+U34-V59,IF(V13=Control!$D$12,0,"")) ->  | W34: =IF(W13<Control!$D$12,V33+V34-W59,IF(W13=Control!$D$12,0,"")) ->  | X34: =IF(X13<Control!$D$12,W33+W34-X59,IF(X13=Control!$D$12,0,"")) ->  | Y34: =IF(Y13<Control!$D$12,X33+X34-Y59,IF(Y13=Control!$D$12,0,"")) ->  | Z34: =IF(Z13<Control!$D$12,Y33+Y34-Z59,IF(Z13=Control!$D$12,0,"")) ->  | AA34: =IF(AA13<Control!$D$12,Z33+Z34-AA59,IF(AA13=Control!$D$12,0,"")) ->  | AB34: =IF(AB13<Control!$D$12,AA33+AA34-AB59,IF(AB13=Control!$D$12,0,"")) ->  | AC34: =IF(AC13<Control!$D$12,AB33+AB34-AC59,IF(AC13=Control!$D$12,0,"")) ->  | AD34: =IF(AD13<Control!$D$12,AC33+AC34-AD59,IF(AD13=Control!$D$12,0,"")) ->  | AE34: =IF(AE13<Control!$D$12,AD33+AD34-AE59,IF(AE13=Control!$D$12,0,"")) ->  | AF34: =IF(AF13<Control!$D$12,AE33+AE34-AF59,IF(AF13=Control!$D$12,0,"")) ->  | AG34: =IF(AG13<Control!$D$12,AF33+AF34-AG59,IF(AG13=Control!$D$12,0,"")) -> 
B35: Total Patrimonio | D35: =IF(D13<=Control!$D$12,SUM(D32:D34),"") -> 1598.4325 | E35: =IF(E13<=Control!$D$12,SUM(E32:E34),"") -> 5528.29982 | F35: =IF(F13<=Control!$D$12,SUM(F32:F34),"") -> 18797.29932 | G35: =IF(G13<=Control!$D$12,SUM(G32:G34),"") -> 24701.23219 | H35: =IF(H13<=Control!$D$12,SUM(H32:H34),"") -> 29941.70413 | I35: =IF(I13<=Control!$D$12,SUM(I32:I34),"") -> 36238.82328 | J35: =IF(J13<=Control!$D$12,SUM(J32:J34),"") -> 43999.07696 | K35: =IF(K13<=Control!$D$12,SUM(K32:K34),"") -> 52845.47209 | L35: =IF(L13<=Control!$D$12,SUM(L32:L34),"") -> 62778.00868 | M35: =IF(M13<=Control!$D$12,SUM(M32:M34),"") -> 73796.68671 | N35: =IF(N13<=Control!$D$12,SUM(N32:N34),"") -> 12104.81949 | O35: =IF(O13<=Control!$D$12,SUM(O32:O34),"") ->  | P35: =IF(P13<=Control!$D$12,SUM(P32:P34),"") ->  | Q35: =IF(Q13<=Control!$D$12,SUM(Q32:Q34),"") ->  | R35: =IF(R13<=Control!$D$12,SUM(R32:R34),"") ->  | S35: =IF(S13<=Control!$D$12,SUM(S32:S34),"") ->  | T35: =IF(T13<=Control!$D$12,SUM(T32:T34),"") ->  | U35: =IF(U13<=Control!$D$12,SUM(U32:U34),"") ->  | V35: =IF(V13<=Control!$D$12,SUM(V32:V34),"") ->  | W35: =IF(W13<=Control!$D$12,SUM(W32:W34),"") ->  | X35: =IF(X13<=Control!$D$12,SUM(X32:X34),"") ->  | Y35: =IF(Y13<=Control!$D$12,SUM(Y32:Y34),"") ->  | Z35: =IF(Z13<=Control!$D$12,SUM(Z32:Z34),"") ->  | AA35: =IF(AA13<=Control!$D$12,SUM(AA32:AA34),"") ->  | AB35: =IF(AB13<=Control!$D$12,SUM(AB32:AB34),"") ->  | AC35: =IF(AC13<=Control!$D$12,SUM(AC32:AC34),"") ->  | AD35: =IF(AD13<=Control!$D$12,SUM(AD32:AD34),"") ->  | AE35: =IF(AE13<=Control!$D$12,SUM(AE32:AE34),"") ->  | AF35: =IF(AF13<=Control!$D$12,SUM(AF32:AF34),"") ->  | AG35: =IF(AG13<=Control!$D$12,SUM(AG32:AG34),"") -> 
B36: Total Pasivo y Patrimonio | D36: =IF(D13<=Control!$D$12,D30+D35,"") -> 12435 | E36: =IF(E13<=Control!$D$12,E30+E35,"") -> 41481.5 | F36: =IF(F13<=Control!$D$12,F30+F35,"") -> 141090.4444 | G36: =IF(G13<=Control!$D$12,G30+G35,"") -> 132317.4673 | H36: =IF(H13<=Control!$D$12,H30+H35,"") -> 124649.3799 | I36: =IF(I13<=Control!$D$12,I30+I35,"") -> 116317.8315 | J36: =IF(J13<=Control!$D$12,J30+J35,"") -> 109042.9304 | K36: =IF(K13<=Control!$D$12,K30+K35,"") -> 103231.1638 | L36: =IF(L13<=Control!$D$12,L30+L35,"") -> 98505.53865 | M36: =IF(M13<=Control!$D$12,M30+M35,"") -> 94866.05495 | N36: =IF(N13<=Control!$D$12,N30+N35,"") -> 18516.02598 | O36: =IF(O13<=Control!$D$12,O30+O35,"") ->  | P36: =IF(P13<=Control!$D$12,P30+P35,"") ->  | Q36: =IF(Q13<=Control!$D$12,Q30+Q35,"") ->  | R36: =IF(R13<=Control!$D$12,R30+R35,"") ->  | S36: =IF(S13<=Control!$D$12,S30+S35,"") ->  | T36: =IF(T13<=Control!$D$12,T30+T35,"") ->  | U36: =IF(U13<=Control!$D$12,U30+U35,"") ->  | V36: =IF(V13<=Control!$D$12,V30+V35,"") ->  | W36: =IF(W13<=Control!$D$12,W30+W35,"") ->  | X36: =IF(X13<=Control!$D$12,X30+X35,"") ->  | Y36: =IF(Y13<=Control!$D$12,Y30+Y35,"") ->  | Z36: =IF(Z13<=Control!$D$12,Z30+Z35,"") ->  | AA36: =IF(AA13<=Control!$D$12,AA30+AA35,"") ->  | AB36: =IF(AB13<=Control!$D$12,AB30+AB35,"") ->  | AC36: =IF(AC13<=Control!$D$12,AC30+AC35,"") ->  | AD36: =IF(AD13<=Control!$D$12,AD30+AD35,"") ->  | AE36: =IF(AE13<=Control!$D$12,AE30+AE35,"") ->  | AF36: =IF(AF13<=Control!$D$12,AF30+AF35,"") ->  | AG36: =IF(AG13<=Control!$D$12,AG30+AG35,"") -> 
D37: =IF(D13<=Control!$D$12,D23-D36,"") -> 0 | E37: =IF(E13<=Control!$D$12,E23-E36,"") -> 0 | F37: =IF(F13<=Control!$D$12,F23-F36,"") -> -2.910383046e-11 | G37: =IF(G13<=Control!$D$12,G23-G36,"") -> 0 | H37: =IF(H13<=Control!$D$12,H23-H36,"") -> 0 | I37: =IF(I13<=Control!$D$12,I23-I36,"") -> -1.455191523e-11 | J37: =IF(J13<=Control!$D$12,J23-J36,"") -> -1.455191523e-11 | K37: =IF(K13<=Control!$D$12,K23-K36,"") -> -2.910383046e-11 | L37: =IF(L13<=Control!$D$12,L23-L36,"") -> -4.365574569e-11 | M37: =IF(M13<=Control!$D$12,M23-M36,"") -> -7.275957614e-11 | N37: =IF(N13<=Control!$D$12,N23-N36,"") -> -4.365574569e-11 | O37: =IF(O13<=Control!$D$12,O23-O36,"") ->  | P37: =IF(P13<=Control!$D$12,P23-P36,"") ->  | Q37: =IF(Q13<=Control!$D$12,Q23-Q36,"") ->  | R37: =IF(R13<=Control!$D$12,R23-R36,"") ->  | S37: =IF(S13<=Control!$D$12,S23-S36,"") ->  | T37: =IF(T13<=Control!$D$12,T23-T36,"") ->  | U37: =IF(U13<=Control!$D$12,U23-U36,"") ->  | V37: =IF(V13<=Control!$D$12,V23-V36,"") ->  | W37: =IF(W13<=Control!$D$12,W23-W36,"") ->  | X37: =IF(X13<=Control!$D$12,X23-X36,"") ->  | Y37: =IF(Y13<=Control!$D$12,Y23-Y36,"") ->  | Z37: =IF(Z13<=Control!$D$12,Z23-Z36,"") ->  | AA37: =IF(AA13<=Control!$D$12,AA23-AA36,"") ->  | AB37: =IF(AB13<=Control!$D$12,AB23-AB36,"") ->  | AC37: =IF(AC13<=Control!$D$12,AC23-AC36,"") ->  | AD37: =IF(AD13<=Control!$D$12,AD23-AD36,"") ->  | AE37: =IF(AE13<=Control!$D$12,AE23-AE36,"") ->  | AF37: =IF(AF13<=Control!$D$12,AF23-AF36,"") ->  | AG37: =IF(AG13<=Control!$D$12,AG23-AG36,"") -> 
B39: --- Estado de Resultados
B40: (+) Ingreso Operación | D40: =IF(D13<=Control!$D$12,IF(D13<$H$7,0,IF(D13=$H$7,$H$8,IF(D13>$H$7,C40*(1+IF(D13=$H$7+1,Control!$D$22,IF(D13=$H$7+2,Control!$D$23,Control!$D$24)))))),"") -> 0 | E40: =IF(E13<=Control!$D$12,IF(E13<$H$7,0,IF(E13=$H$7,$H$8,IF(E13>$H$7,D40*(1+IF(E13=$H$7+1,Control!$D$22,IF(E13=$H$7+2,Control!$D$23,Control!$D$24)))))),"") -> 0 | F40: =IF(F13<=Control!$D$12,IF(F13<$H$7,0,IF(F13=$H$7,$H$8,IF(F13>$H$7,E40*(1+IF(F13=$H$7+1,Control!$D$22,IF(F13=$H$7+2,Control!$D$23,Control!$D$24)))))),"") -> 0 | G40: =IF(G13<=Control!$D$12,IF(G13<$H$7,0,IF(G13=$H$7,$H$8,IF(G13>$H$7,F40*(1+IF(G13=$H$7+1,Control!$D$22,IF(G13=$H$7+2,Control!$D$23,Control!$D$24)))))),"") -> 41970.48687 | H40: =IF(H13<=Control!$D$12,IF(H13<$H$7,0,IF(H13=$H$7,$H$8,IF(H13>$H$7,G40*(1+IF(H13=$H$7+1,Control!$D$22,IF(H13=$H$7+2,Control!$D$23,Control!$D$24)))))),"") -> 41970.48687 | I40: =IF(I13<=Control!$D$12,IF(I13<$H$7,0,IF(I13=$H$7,$H$8,IF(I13>$H$7,H40*(1+IF(I13=$H$7+1,Control!$D$22,IF(I13=$H$7+2,Control!$D$23,Control!$D$24)))))),"") -> 41970.48687 | J40: =IF(J13<=Control!$D$12,IF(J13<$H$7,0,IF(J13=$H$7,$H$8,IF(J13>$H$7,I40*(1+IF(J13=$H$7+1,Control!$D$22,IF(J13=$H$7+2,Control!$D$23,Control!$D$24)))))),"") -> 41970.48687 | K40: =IF(K13<=Control!$D$12,IF(K13<$H$7,0,IF(K13=$H$7,$H$8,IF(K13>$H$7,J40*(1+IF(K13=$H$7+1,Control!$D$22,IF(K13=$H$7+2,Control!$D$23,Control!$D$24)))))),"") -> 41970.48687 | L40: =IF(L13<=Control!$D$12,IF(L13<$H$7,0,IF(L13=$H$7,$H$8,IF(L13>$H$7,K40*(1+IF(L13=$H$7+1,Control!$D$22,IF(L13=$H$7+2,Control!$D$23,Control!$D$24)))))),"") -> 41970.48687 | M40: =IF(M13<=Control!$D$12,IF(M13<$H$7,0,IF(M13=$H$7,$H$8,IF(M13>$H$7,L40*(1+IF(M13=$H$7+1,Control!$D$22,IF(M13=$H$7+2,Control!$D$23,Control!$D$24)))))),"") -> 41970.48687 | N40: =IF(N13<=Control!$D$12,IF(N13<$H$7,0,IF(N13=$H$7,$H$8,IF(N13>$H$7,M40*(1+IF(N13=$H$7+1,Control!$D$22,IF(N13=$H$7+2,Control!$D$23,Control!$D$24)))))),"") -> 41970.48687 | O40: =IF(O13<=Control!$D$12,IF(O13<$H$7,0,IF(O13=$H$7,$H$8,IF(O13>$H$7,N40*(1+IF(O13=$H$7+1,Control!$D$22,IF(O13=$H$7+2,Control!$D$23,Control!$D$24)))))),"") ->  | P40: =IF(P13<=Control!$D$12,IF(P13<$H$7,0,IF(P13=$H$7,$H$8,IF(P13>$H$7,O40*(1+IF(P13=$H$7+1,Control!$D$22,IF(P13=$H$7+2,Control!$D$23,Control!$D$24)))))),"") ->  | Q40: =IF(Q13<=Control!$D$12,IF(Q13<$H$7,0,IF(Q13=$H$7,$H$8,IF(Q13>$H$7,P40*(1+IF(Q13=$H$7+1,Control!$D$22,IF(Q13=$H$7+2,Control!$D$23,Control!$D$24)))))),"") ->  | R40: =IF(R13<=Control!$D$12,IF(R13<$H$7,0,IF(R13=$H$7,$H$8,IF(R13>$H$7,Q40*(1+IF(R13=$H$7+1,Control!$D$22,IF(R13=$H$7+2,Control!$D$23,Control!$D$24)))))),"") ->  | S40: =IF(S13<=Control!$D$12,IF(S13<$H$7,0,IF(S13=$H$7,$H$8,IF(S13>$H$7,R40*(1+IF(S13=$H$7+1,Control!$D$22,IF(S13=$H$7+2,Control!$D$23,Control!$D$24)))))),"") ->  | T40: =IF(T13<=Control!$D$12,IF(T13<$H$7,0,IF(T13=$H$7,$H$8,IF(T13>$H$7,S40*(1+IF(T13=$H$7+1,Control!$D$22,IF(T13=$H$7+2,Control!$D$23,Control!$D$24)))))),"") ->  | U40: =IF(U13<=Control!$D$12,IF(U13<$H$7,0,IF(U13=$H$7,$H$8,IF(U13>$H$7,T40*(1+IF(U13=$H$7+1,Control!$D$22,IF(U13=$H$7+2,Control!$D$23,Control!$D$24)))))),"") ->  | V40: =IF(V13<=Control!$D$12,IF(V13<$H$7,0,IF(V13=$H$7,$H$8,IF(V13>$H$7,U40*(1+IF(V13=$H$7+1,Control!$D$22,IF(V13=$H$7+2,Control!$D$23,Control!$D$24)))))),"") ->  | W40: =IF(W13<=Control!$D$12,IF(W13<$H$7,0,IF(W13=$H$7,$H$8,IF(W13>$H$7,V40*(1+IF(W13=$H$7+1,Control!$D$22,IF(W13=$H$7+2,Control!$D$23,Control!$D$24)))))),"") ->  | X40: =IF(X13<=Control!$D$12,IF(X13<$H$7,0,IF(X13=$H$7,$H$8,IF(X13>$H$7,W40*(1+IF(X13=$H$7+1,Control!$D$22,IF(X13=$H$7+2,Control!$D$23,Control!$D$24)))))),"") ->  | Y40: =IF(Y13<=Control!$D$12,IF(Y13<$H$7,0,IF(Y13=$H$7,$H$8,IF(Y13>$H$7,X40*(1+IF(Y13=$H$7+1,Control!$D$22,IF(Y13=$H$7+2,Control!$D$23,Control!$D$24)))))),"") ->  | Z40: =IF(Z13<=Control!$D$12,IF(Z13<$H$7,0,IF(Z13=$H$7,$H$8,IF(Z13>$H$7,Y40*(1+IF(Z13=$H$7+1,Control!$D$22,IF(Z13=$H$7+2,Control!$D$23,Control!$D$24)))))),"") ->  | AA40: =IF(AA13<=Control!$D$12,IF(AA13<$H$7,0,IF(AA13=$H$7,$H$8,IF(AA13>$H$7,Z40*(1+IF(AA13=$H$7+1,Control!$D$22,IF(AA13=$H$7+2,Control!$D$23,Control!$D$24)))))),"") ->  | AB40: =IF(AB13<=Control!$D$12,IF(AB13<$H$7,0,IF(AB13=$H$7,$H$8,IF(AB13>$H$7,AA40*(1+IF(AB13=$H$7+1,Control!$D$22,IF(AB13=$H$7+2,Control!$D$23,Control!$D$24)))))),"") ->  | AC40: =IF(AC13<=Control!$D$12,IF(AC13<$H$7,0,IF(AC13=$H$7,$H$8,IF(AC13>$H$7,AB40*(1+IF(AC13=$H$7+1,Control!$D$22,IF(AC13=$H$7+2,Control!$D$23,Control!$D$24)))))),"") ->  | AD40: =IF(AD13<=Control!$D$12,IF(AD13<$H$7,0,IF(AD13=$H$7,$H$8,IF(AD13>$H$7,AC40*(1+IF(AD13=$H$7+1,Control!$D$22,IF(AD13=$H$7+2,Control!$D$23,Control!$D$24)))))),"") ->  | AE40: =IF(AE13<=Control!$D$12,IF(AE13<$H$7,0,IF(AE13=$H$7,$H$8,IF(AE13>$H$7,AD40*(1+IF(AE13=$H$7+1,Control!$D$22,IF(AE13=$H$7+2,Control!$D$23,Control!$D$24)))))),"") ->  | AF40: =IF(AF13<=Control!$D$12,IF(AF13<$H$7,0,IF(AF13=$H$7,$H$8,IF(AF13>$H$7,AE40*(1+IF(AF13=$H$7+1,Control!$D$22,IF(AF13=$H$7+2,Control!$D$23,Control!$D$24)))))),"") ->  | AG40: =IF(AG13<=Control!$D$12,IF(AG13<$H$7,0,IF(AG13=$H$7,$H$8,IF(AG13>$H$7,AF40*(1+IF(AG13=$H$7+1,Control!$D$22,IF(AG13=$H$7+2,Control!$D$23,Control!$D$24)))))),"") -> 
B41: (=) Ebitda | D41: =IF(D13<=Control!$D$12,IF(AND(Control!$D$8="Brownfield",D13<$H$7),(VLOOKUP(Control!$D$7,Flujo!$B$7:$C$8,2,FALSE)-1)*$H$8*0.2,IF(Control!$D$7=$B$7,$C$7,$C$8)*D40),"") -> 0 | E41: =IF(E13<=Control!$D$12,IF(AND(Control!$D$8="Brownfield",E13<$H$7),(VLOOKUP(Control!$D$7,Flujo!$B$7:$C$8,2,FALSE)-1)*$H$8*0.2,IF(Control!$D$7=$B$7,$C$7,$C$8)*E40),"") -> 0 | F41: =IF(F13<=Control!$D$12,IF(AND(Control!$D$8="Brownfield",F13<$H$7),(VLOOKUP(Control!$D$7,Flujo!$B$7:$C$8,2,FALSE)-1)*$H$8*0.2,IF(Control!$D$7=$B$7,$C$7,$C$8)*F40),"") -> 0 | G41: =IF(G13<=Control!$D$12,IF(AND(Control!$D$8="Brownfield",G13<$H$7),(VLOOKUP(Control!$D$7,Flujo!$B$7:$C$8,2,FALSE)-1)*$H$8*0.2,IF(Control!$D$7=$B$7,$C$7,$C$8)*G40),"") -> 37773.43818 | H41: =IF(H13<=Control!$D$12,IF(AND(Control!$D$8="Brownfield",H13<$H$7),(VLOOKUP(Control!$D$7,Flujo!$B$7:$C$8,2,FALSE)-1)*$H$8*0.2,IF(Control!$D$7=$B$7,$C$7,$C$8)*H40),"") -> 37773.43818 | I41: =IF(I13<=Control!$D$12,IF(AND(Control!$D$8="Brownfield",I13<$H$7),(VLOOKUP(Control!$D$7,Flujo!$B$7:$C$8,2,FALSE)-1)*$H$8*0.2,IF(Control!$D$7=$B$7,$C$7,$C$8)*I40),"") -> 37773.43818 | J41: =IF(J13<=Control!$D$12,IF(AND(Control!$D$8="Brownfield",J13<$H$7),(VLOOKUP(Control!$D$7,Flujo!$B$7:$C$8,2,FALSE)-1)*$H$8*0.2,IF(Control!$D$7=$B$7,$C$7,$C$8)*J40),"") -> 37773.43818 | K41: =IF(K13<=Control!$D$12,IF(AND(Control!$D$8="Brownfield",K13<$H$7),(VLOOKUP(Control!$D$7,Flujo!$B$7:$C$8,2,FALSE)-1)*$H$8*0.2,IF(Control!$D$7=$B$7,$C$7,$C$8)*K40),"") -> 37773.43818 | L41: =IF(L13<=Control!$D$12,IF(AND(Control!$D$8="Brownfield",L13<$H$7),(VLOOKUP(Control!$D$7,Flujo!$B$7:$C$8,2,FALSE)-1)*$H$8*0.2,IF(Control!$D$7=$B$7,$C$7,$C$8)*L40),"") -> 37773.43818 | M41: =IF(M13<=Control!$D$12,IF(AND(Control!$D$8="Brownfield",M13<$H$7),(VLOOKUP(Control!$D$7,Flujo!$B$7:$C$8,2,FALSE)-1)*$H$8*0.2,IF(Control!$D$7=$B$7,$C$7,$C$8)*M40),"") -> 37773.43818 | N41: =IF(N13<=Control!$D$12,IF(AND(Control!$D$8="Brownfield",N13<$H$7),(VLOOKUP(Control!$D$7,Flujo!$B$7:$C$8,2,FALSE)-1)*$H$8*0.2,IF(Control!$D$7=$B$7,$C$7,$C$8)*N40),"") -> 37773.43818 | O41: =IF(O13<=Control!$D$12,IF(AND(Control!$D$8="Brownfield",O13<$H$7),(VLOOKUP(Control!$D$7,Flujo!$B$7:$C$8,2,FALSE)-1)*$H$8*0.2,IF(Control!$D$7=$B$7,$C$7,$C$8)*O40),"") ->  | P41: =IF(P13<=Control!$D$12,IF(AND(Control!$D$8="Brownfield",P13<$H$7),(VLOOKUP(Control!$D$7,Flujo!$B$7:$C$8,2,FALSE)-1)*$H$8*0.2,IF(Control!$D$7=$B$7,$C$7,$C$8)*P40),"") ->  | Q41: =IF(Q13<=Control!$D$12,IF(AND(Control!$D$8="Brownfield",Q13<$H$7),(VLOOKUP(Control!$D$7,Flujo!$B$7:$C$8,2,FALSE)-1)*$H$8*0.2,IF(Control!$D$7=$B$7,$C$7,$C$8)*Q40),"") ->  | R41: =IF(R13<=Control!$D$12,IF(AND(Control!$D$8="Brownfield",R13<$H$7),(VLOOKUP(Control!$D$7,Flujo!$B$7:$C$8,2,FALSE)-1)*$H$8*0.2,IF(Control!$D$7=$B$7,$C$7,$C$8)*R40),"") ->  | S41: =IF(S13<=Control!$D$12,IF(AND(Control!$D$8="Brownfield",S13<$H$7),(VLOOKUP(Control!$D$7,Flujo!$B$7:$C$8,2,FALSE)-1)*$H$8*0.2,IF(Control!$D$7=$B$7,$C$7,$C$8)*S40),"") ->  | T41: =IF(T13<=Control!$D$12,IF(AND(Control!$D$8="Brownfield",T13<$H$7),(VLOOKUP(Control!$D$7,Flujo!$B$7:$C$8,2,FALSE)-1)*$H$8*0.2,IF(Control!$D$7=$B$7,$C$7,$C$8)*T40),"") ->  | U41: =IF(U13<=Control!$D$12,IF(AND(Control!$D$8="Brownfield",U13<$H$7),(VLOOKUP(Control!$D$7,Flujo!$B$7:$C$8,2,FALSE)-1)*$H$8*0.2,IF(Control!$D$7=$B$7,$C$7,$C$8)*U40),"") ->  | V41: =IF(V13<=Control!$D$12,IF(AND(Control!$D$8="Brownfield",V13<$H$7),(VLOOKUP(Control!$D$7,Flujo!$B$7:$C$8,2,FALSE)-1)*$H$8*0.2,IF(Control!$D$7=$B$7,$C$7,$C$8)*V40),"") ->  | W41: =IF(W13<=Control!$D$12,IF(AND(Control!$D$8="Brownfield",W13<$H$7),(VLOOKUP(Control!$D$7,Flujo!$B$7:$C$8,2,FALSE)-1)*$H$8*0.2,IF(Control!$D$7=$B$7,$C$7,$C$8)*W40),"") ->  | X41: =IF(X13<=Control!$D$12,IF(AND(Control!$D$8="Brownfield",X13<$H$7),(VLOOKUP(Control!$D$7,Flujo!$B$7:$C$8,2,FALSE)-1)*$H$8*0.2,IF(Control!$D$7=$B$7,$C$7,$C$8)*X40),"") ->  | Y41: =IF(Y13<=Control!$D$12,IF(AND(Control!$D$8="Brownfield",Y13<$H$7),(VLOOKUP(Control!$D$7,Flujo!$B$7:$C$8,2,FALSE)-1)*$H$8*0.2,IF(Control!$D$7=$B$7,$C$7,$C$8)*Y40),"") ->  | Z41: =IF(Z13<=Control!$D$12,IF(AND(Control!$D$8="Brownfield",Z13<$H$7),(VLOOKUP(Control!$D$7,Flujo!$B$7:$C$8,2,FALSE)-1)*$H$8*0.2,IF(Control!$D$7=$B$7,$C$7,$C$8)*Z40),"") ->  | AA41: =IF(AA13<=Control!$D$12,IF(AND(Control!$D$8="Brownfield",AA13<$H$7),(VLOOKUP(Control!$D$7,Flujo!$B$7:$C$8,2,FALSE)-1)*$H$8*0.2,IF(Control!$D$7=$B$7,$C$7,$C$8)*AA40),"") ->  | AB41: =IF(AB13<=Control!$D$12,IF(AND(Control!$D$8="Brownfield",AB13<$H$7),(VLOOKUP(Control!$D$7,Flujo!$B$7:$C$8,2,FALSE)-1)*$H$8*0.2,IF(Control!$D$7=$B$7,$C$7,$C$8)*AB40),"") ->  | AC41: =IF(AC13<=Control!$D$12,IF(AND(Control!$D$8="Brownfield",AC13<$H$7),(VLOOKUP(Control!$D$7,Flujo!$B$7:$C$8,2,FALSE)-1)*$H$8*0.2,IF(Control!$D$7=$B$7,$C$7,$C$8)*AC40),"") ->  | AD41: =IF(AD13<=Control!$D$12,IF(AND(Control!$D$8="Brownfield",AD13<$H$7),(VLOOKUP(Control!$D$7,Flujo!$B$7:$C$8,2,FALSE)-1)*$H$8*0.2,IF(Control!$D$7=$B$7,$C$7,$C$8)*AD40),"") ->  | AE41: =IF(AE13<=Control!$D$12,IF(AND(Control!$D$8="Brownfield",AE13<$H$7),(VLOOKUP(Control!$D$7,Flujo!$B$7:$C$8,2,FALSE)-1)*$H$8*0.2,IF(Control!$D$7=$B$7,$C$7,$C$8)*AE40),"") ->  | AF41: =IF(AF13<=Control!$D$12,IF(AND(Control!$D$8="Brownfield",AF13<$H$7),(VLOOKUP(Control!$D$7,Flujo!$B$7:$C$8,2,FALSE)-1)*$H$8*0.2,IF(Control!$D$7=$B$7,$C$7,$C$8)*AF40),"") ->  | AG41: =IF(AG13<=Control!$D$12,IF(AND(Control!$D$8="Brownfield",AG13<$H$7),(VLOOKUP(Control!$D$7,Flujo!$B$7:$C$8,2,FALSE)-1)*$H$8*0.2,IF(Control!$D$7=$B$7,$C$7,$C$8)*AG40),"") -> 
B42: (-) Comisión de Éxito | D42: =Control!D28 -> 1000
B43: (-) Intereses | D43: =IF(D13<=Control!$D$12,D55+D57,"") -> 0 | E43: =IF(E13<=Control!$D$12,E55+E57,"") -> 1146.8116 | F43: =IF(F13<=Control!$D$12,F55+F57,"") -> 3814.881728 | G43: =IF(G13<=Control!$D$12,G55+G57,"") -> 12968.85315 | H43: =IF(H13<=Control!$D$12,H55+H57,"") -> 11347.7465 | I43: =IF(I13<=Control!$D$12,I55+I57,"") -> 9726.639861 | J43: =IF(J13<=Control!$D$12,J55+J57,"") -> 8105.533217 | K43: =IF(K13<=Control!$D$12,K55+K57,"") -> 6484.426574 | L43: =IF(L13<=Control!$D$12,L55+L57,"") -> 4863.31993 | M43: =IF(M13<=Control!$D$12,M55+M57,"") -> 3242.213287 | N43: =IF(N13<=Control!$D$12,N55+N57,"") -> 1621.106643 | O43: =IF(O13<=Control!$D$12,O55+O57,"") ->  | P43: =IF(P13<=Control!$D$12,P55+P57,"") ->  | Q43: =IF(Q13<=Control!$D$12,Q55+Q57,"") ->  | R43: =IF(R13<=Control!$D$12,R55+R57,"") ->  | S43: =IF(S13<=Control!$D$12,S55+S57,"") ->  | T43: =IF(T13<=Control!$D$12,T55+T57,"") ->  | U43: =IF(U13<=Control!$D$12,U55+U57,"") ->  | V43: =IF(V13<=Control!$D$12,V55+V57,"") ->  | W43: =IF(W13<=Control!$D$12,W55+W57,"") ->  | X43: =IF(X13<=Control!$D$12,X55+X57,"") ->  | Y43: =IF(Y13<=Control!$D$12,Y55+Y57,"") ->  | Z43: =IF(Z13<=Control!$D$12,Z55+Z57,"") ->  | AA43: =IF(AA13<=Control!$D$12,AA55+AA57,"") ->  | AB43: =IF(AB13<=Control!$D$12,AB55+AB57,"") ->  | AC43: =IF(AC13<=Control!$D$12,AC55+AC57,"") ->  | AD43: =IF(AD13<=Control!$D$12,AD55+AD57,"") ->  | AE43: =IF(AE13<=Control!$D$12,AE55+AE57,"") ->  | AF43: =IF(AF13<=Control!$D$12,AF55+AF57,"") ->  | AG43: =IF(AG13<=Control!$D$12,AG55+AG57,"") -> 
B44: (-) Depreciaciones | E44: =IF(E13<=Control!$D$12,SUM(E85:E96),"") -> 1243.5 | F44: =IF(F13<=Control!$D$12,SUM(F85:F96),"") -> 4609.055556 | G44: =IF(G13<=Control!$D$12,SUM(G85:G96),"") -> 17636.30556 | H44: =IF(H13<=Control!$D$12,SUM(H85:H96),"") -> 17636.30556 | I44: =IF(I13<=Control!$D$12,SUM(I85:I96),"") -> 17636.30556 | J44: =IF(J13<=Control!$D$12,SUM(J85:J96),"") -> 17636.30556 | K44: =IF(K13<=Control!$D$12,SUM(K85:K96),"") -> 17636.30556 | L44: =IF(L13<=Control!$D$12,SUM(L85:L96),"") -> 17636.30556 | M44: =IF(M13<=Control!$D$12,SUM(M85:M96),"") -> 17636.30556 | N44: =IF(N13<=Control!$D$12,SUM(N85:N96),"") -> 17636.30556 | O44: =IF(O13<=Control!$D$12,SUM(O85:O96),"") ->  | P44: =IF(P13<=Control!$D$12,SUM(P85:P96),"") ->  | Q44: =IF(Q13<=Control!$D$12,SUM(Q85:Q96),"") ->  | R44: =IF(R13<=Control!$D$12,SUM(R85:R96),"") ->  | S44: =IF(S13<=Control!$D$12,SUM(S85:S96),"") ->  | T44: =IF(T13<=Control!$D$12,SUM(T85:T96),"") ->  | U44: =IF(U13<=Control!$D$12,SUM(U85:U96),"") ->  | V44: =IF(V13<=Control!$D$12,SUM(V85:V96),"") ->  | W44: =IF(W13<=Control!$D$12,SUM(W85:W96),"") ->  | X44: =IF(X13<=Control!$D$12,SUM(X85:X96),"") ->  | Y44: =IF(Y13<=Control!$D$12,SUM(Y85:Y96),"") ->  | Z44: =IF(Z13<=Control!$D$12,SUM(Z85:Z96),"") ->  | AA44: =IF(AA13<=Control!$D$12,SUM(AA85:AA96),"") ->  | AB44: =IF(AB13<=Control!$D$12,SUM(AB85:AB96),"") ->  | AC44: =IF(AC13<=Control!$D$12,SUM(AC85:AC96),"") ->  | AD44: =IF(AD13<=Control!$D$12,SUM(AD85:AD96),"") ->  | AE44: =IF(AE13<=Control!$D$12,SUM(AE85:AE96),"") ->  | AF44: =IF(AF13<=Control!$D$12,SUM(AF85:AF96),"") ->  | AG44: =IF(AG13<=Control!$D$12,SUM(AG85:AG96),"") -> 
B45: (=) Utilidad Antes de Impuestos | D45: =IF(D13<=Control!$D$12,D41-D42-D43-D44,"") -> -1000 | E45: =IF(E13<=Control!$D$12,E41-E42-E43-E44,"") -> -2390.3116 | F45: =IF(F13<=Control!$D$12,F41-F42-F43-F44,"") -> -8423.937284 | G45: =IF(G13<=Control!$D$12,G41-G42-G43-G44,"") -> 7168.279478 | H45: =IF(H13<=Control!$D$12,H41-H42-H43-H44,"") -> 8789.386122 | I45: =IF(I13<=Control!$D$12,I41-I42-I43-I44,"") -> 10410.49277 | J45: =IF(J13<=Control!$D$12,J41-J42-J43-J44,"") -> 12031.59941 | K45: =IF(K13<=Control!$D$12,K41-K42-K43-K44,"") -> 13652.70605 | L45: =IF(L13<=Control!$D$12,L41-L42-L43-L44,"") -> 15273.8127 | M45: =IF(M13<=Control!$D$12,M41-M42-M43-M44,"") -> 16894.91934 | N45: =IF(N13<=Control!$D$12,N41-N42-N43-N44,"") -> 18516.02598 | O45: =IF(O13<=Control!$D$12,O41-O42-O43-O44,"") ->  | P45: =IF(P13<=Control!$D$12,P41-P42-P43-P44,"") ->  | Q45: =IF(Q13<=Control!$D$12,Q41-Q42-Q43-Q44,"") ->  | R45: =IF(R13<=Control!$D$12,R41-R42-R43-R44,"") ->  | S45: =IF(S13<=Control!$D$12,S41-S42-S43-S44,"") ->  | T45: =IF(T13<=Control!$D$12,T41-T42-T43-T44,"") ->  | U45: =IF(U13<=Control!$D$12,U41-U42-U43-U44,"") ->  | V45: =IF(V13<=Control!$D$12,V41-V42-V43-V44,"") ->  | W45: =IF(W13<=Control!$D$12,W41-W42-W43-W44,"") ->  | X45: =IF(X13<=Control!$D$12,X41-X42-X43-X44,"") ->  | Y45: =IF(Y13<=Control!$D$12,Y41-Y42-Y43-Y44,"") ->  | Z45: =IF(Z13<=Control!$D$12,Z41-Z42-Z43-Z44,"") ->  | AA45: =IF(AA13<=Control!$D$12,AA41-AA42-AA43-AA44,"") ->  | AB45: =IF(AB13<=Control!$D$12,AB41-AB42-AB43-AB44,"") ->  | AC45: =IF(AC13<=Control!$D$12,AC41-AC42-AC43-AC44,"") ->  | AD45: =IF(AD13<=Control!$D$12,AD41-AD42-AD43-AD44,"") ->  | AE45: =IF(AE13<=Control!$D$12,AE41-AE42-AE43-AE44,"") ->  | AF45: =IF(AF13<=Control!$D$12,AF41-AF42-AF43-AF44,"") ->  | AG45: =IF(AG13<=Control!$D$12,AG41-AG42-AG43-AG44,"") -> 
B46: (-) Impuesto de Renta | D46: =IF(D13<=Control!$D$12,D108,"") -> 88.5675 | E46: =IF(E13<=Control!$D$12,E108,"") -> 199.8568997 | F46: =IF(F13<=Control!$D$12,F108,"") -> 748.1296776 | G46: =IF(G13<=Control!$D$12,G108,"") -> 1264.346614 | H46: =IF(H13<=Control!$D$12,H108,"") -> 3548.914182 | I46: =IF(I13<=Control!$D$12,I108,"") -> 4113.373618 | J46: =IF(J13<=Control!$D$12,J108,"") -> 4271.345726 | K46: =IF(K13<=Control!$D$12,K108,"") -> 4806.310918 | L46: =IF(L13<=Control!$D$12,L108,"") -> 5341.27611 | M46: =IF(M13<=Control!$D$12,M108,"") -> 5876.241303 | N46: =IF(N13<=Control!$D$12,N108,"") -> 6411.206495 | O46: =IF(O13<=Control!$D$12,O108,"") ->  | P46: =IF(P13<=Control!$D$12,P108,"") ->  | Q46: =IF(Q13<=Control!$D$12,Q108,"") ->  | R46: =IF(R13<=Control!$D$12,R108,"") ->  | S46: =IF(S13<=Control!$D$12,S108,"") ->  | T46: =IF(T13<=Control!$D$12,T108,"") ->  | U46: =IF(U13<=Control!$D$12,U108,"") ->  | V46: =IF(V13<=Control!$D$12,V108,"") ->  | W46: =IF(W13<=Control!$D$12,W108,"") ->  | X46: =IF(X13<=Control!$D$12,X108,"") ->  | Y46: =IF(Y13<=Control!$D$12,Y108,"") ->  | Z46: =IF(Z13<=Control!$D$12,Z108,"") ->  | AA46: =IF(AA13<=Control!$D$12,AA108,"") ->  | AB46: =IF(AB13<=Control!$D$12,AB108,"") ->  | AC46: =IF(AC13<=Control!$D$12,AC108,"") ->  | AD46: =IF(AD13<=Control!$D$12,AD108,"") ->  | AE46: =IF(AE13<=Control!$D$12,AE108,"") ->  | AF46: =IF(AF13<=Control!$D$12,AF108,"") ->  | AG46: =IF(AG13<=Control!$D$12,AG108,"") -> 
B47: (=) Utilidad Neta | D47: =IF(D13<=Control!$D$12,D45-D46,"") -> -1088.5675 | E47: =IF(E13<=Control!$D$12,E45-E46,"") -> -2590.1685 | F47: =IF(F13<=Control!$D$12,F45-F46,"") -> -9172.066961 | G47: =IF(G13<=Control!$D$12,G45-G46,"") -> 5903.932864 | H47: =IF(H13<=Control!$D$12,H45-H46,"") -> 5240.47194 | I47: =IF(I13<=Control!$D$12,I45-I46,"") -> 6297.119147 | J47: =IF(J13<=Control!$D$12,J45-J46,"") -> 7760.253683 | K47: =IF(K13<=Control!$D$12,K45-K46,"") -> 8846.395134 | L47: =IF(L13<=Control!$D$12,L45-L46,"") -> 9932.536585 | M47: =IF(M13<=Control!$D$12,M45-M46,"") -> 11018.67804 | N47: =IF(N13<=Control!$D$12,N45-N46,"") -> 12104.81949 | O47: =IF(O13<=Control!$D$12,O45-O46,"") ->  | P47: =IF(P13<=Control!$D$12,P45-P46,"") ->  | Q47: =IF(Q13<=Control!$D$12,Q45-Q46,"") ->  | R47: =IF(R13<=Control!$D$12,R45-R46,"") ->  | S47: =IF(S13<=Control!$D$12,S45-S46,"") ->  | T47: =IF(T13<=Control!$D$12,T45-T46,"") ->  | U47: =IF(U13<=Control!$D$12,U45-U46,"") ->  | V47: =IF(V13<=Control!$D$12,V45-V46,"") ->  | W47: =IF(W13<=Control!$D$12,W45-W46,"") ->  | X47: =IF(X13<=Control!$D$12,X45-X46,"") ->  | Y47: =IF(Y13<=Control!$D$12,Y45-Y46,"") ->  | Z47: =IF(Z13<=Control!$D$12,Z45-Z46,"") ->  | AA47: =IF(AA13<=Control!$D$12,AA45-AA46,"") ->  | AB47: =IF(AB13<=Control!$D$12,AB45-AB46,"") ->  | AC47: =IF(AC13<=Control!$D$12,AC45-AC46,"") ->  | AD47: =IF(AD13<=Control!$D$12,AD45-AD46,"") ->  | AE47: =IF(AE13<=Control!$D$12,AE45-AE46,"") ->  | AF47: =IF(AF13<=Control!$D$12,AF45-AF46,"") ->  | AG47: =IF(AG13<=Control!$D$12,AG45-AG46,"") -> 
B50: --- Flujo de Caja de Tesorería
B51: (+) Caja Acumulada | D51: =D40 -> 0 | E51: =IF(E13<=Control!$D$12,D64+E40,"") -> 0 | F51: =IF(F13<=Control!$D$12,E64+F40,"") -> 3.637978807e-12 | G51: =IF(G13<=Control!$D$12,F64+G40,"") -> 41970.48687 | H51: =IF(H13<=Control!$D$12,G64+H40,"") -> 50833.81529 | I51: =IF(I13<=Control!$D$12,H64+I40,"") -> 60802.03343 | J51: =IF(J13<=Control!$D$12,I64+J40,"") -> 70106.79064 | K51: =IF(K13<=Control!$D$12,J64+K40,"") -> 80468.19505 | L51: =IF(L13<=Control!$D$12,K64+L40,"") -> 92292.734 | M51: =IF(M13<=Control!$D$12,L64+M40,"") -> 105203.4144 | N51: =IF(N13<=Control!$D$12,M64+N40,"") -> 119200.2363 | O51: =IF(O13<=Control!$D$12,N64+O40,"") ->  | P51: =IF(P13<=Control!$D$12,O64+P40,"") ->  | Q51: =IF(Q13<=Control!$D$12,P64+Q40,"") ->  | R51: =IF(R13<=Control!$D$12,Q64+R40,"") ->  | S51: =IF(S13<=Control!$D$12,R64+S40,"") ->  | T51: =IF(T13<=Control!$D$12,S64+T40,"") ->  | U51: =IF(U13<=Control!$D$12,T64+U40,"") ->  | V51: =IF(V13<=Control!$D$12,U64+V40,"") ->  | W51: =IF(W13<=Control!$D$12,V64+W40,"") ->  | X51: =IF(X13<=Control!$D$12,W64+X40,"") ->  | Y51: =IF(Y13<=Control!$D$12,X64+Y40,"") ->  | Z51: =IF(Z13<=Control!$D$12,Y64+Z40,"") ->  | AA51: =IF(AA13<=Control!$D$12,Z64+AA40,"") ->  | AB51: =IF(AB13<=Control!$D$12,AA64+AB40,"") ->  | AC51: =IF(AC13<=Control!$D$12,AB64+AC40,"") ->  | AD51: =IF(AD13<=Control!$D$12,AC64+AD40,"") ->  | AE51: =IF(AE13<=Control!$D$12,AD64+AE40,"") ->  | AF51: =IF(AF13<=Control!$D$12,AE64+AF40,"") ->  | AG51: =IF(AG13<=Control!$D$12,AF64+AG40,"") -> 
B52: (-) Salida de Caja Operación | D52: =D42 -> 1000 | E52: =IF(E13<=Control!$D$12,E40-E41-E42,"") -> 0 | F52: =IF(F13<=Control!$D$12,F40-F41-F42,"") -> 0 | G52: =IF(G13<=Control!$D$12,G40-G41-G42,"") -> 4197.048687 | H52: =IF(H13<=Control!$D$12,H40-H41-H42,"") -> 4197.048687 | I52: =IF(I13<=Control!$D$12,I40-I41-I42,"") -> 4197.048687 | J52: =IF(J13<=Control!$D$12,J40-J41-J42,"") -> 4197.048687 | K52: =IF(K13<=Control!$D$12,K40-K41-K42,"") -> 4197.048687 | L52: =IF(L13<=Control!$D$12,L40-L41-L42,"") -> 4197.048687 | M52: =IF(M13<=Control!$D$12,M40-M41-M42,"") -> 4197.048687 | N52: =IF(N13<=Control!$D$12,N40-N41-N42,"") -> 4197.048687 | O52: =IF(O13<=Control!$D$12,O40-O41-O42,"") ->  | P52: =IF(P13<=Control!$D$12,P40-P41-P42,"") ->  | Q52: =IF(Q13<=Control!$D$12,Q40-Q41-Q42,"") ->  | R52: =IF(R13<=Control!$D$12,R40-R41-R42,"") ->  | S52: =IF(S13<=Control!$D$12,S40-S41-S42,"") ->  | T52: =IF(T13<=Control!$D$12,T40-T41-T42,"") ->  | U52: =IF(U13<=Control!$D$12,U40-U41-U42,"") ->  | V52: =IF(V13<=Control!$D$12,V40-V41-V42,"") ->  | W52: =IF(W13<=Control!$D$12,W40-W41-W42,"") ->  | X52: =IF(X13<=Control!$D$12,X40-X41-X42,"") ->  | Y52: =IF(Y13<=Control!$D$12,Y40-Y41-Y42,"") ->  | Z52: =IF(Z13<=Control!$D$12,Z40-Z41-Z42,"") ->  | AA52: =IF(AA13<=Control!$D$12,AA40-AA41-AA42,"") ->  | AB52: =IF(AB13<=Control!$D$12,AB40-AB41-AB42,"") ->  | AC52: =IF(AC13<=Control!$D$12,AC40-AC41-AC42,"") ->  | AD52: =IF(AD13<=Control!$D$12,AD40-AD41-AD42,"") ->  | AE52: =IF(AE13<=Control!$D$12,AE40-AE41-AE42,"") ->  | AF52: =IF(AF13<=Control!$D$12,AF40-AF41-AF42,"") ->  | AG52: =IF(AG13<=Control!$D$12,AG40-AG41-AG42,"") -> 
B53: (-) Inversiones | D53: =IF(Control!$D$9="Si",Control!I17,Control!$I9+Control!I17) -> 12435 | E53: =IF(E13<=Control!$D$12,IF(E13>Control!$D$10+(Control!$D$9="Si")*1,0,IF(Control!$D$9="Si",Control!$I9,Control!$I10)),"") -> 30290 | F53: =IF(E13<=Control!$D$12,IF(F13>Control!$D$10+(Control!$D$9="Si")*1,0,IF(Control!$D$9="Si",Control!$I10,Control!$I11)),"") -> 104218 | G53: =IF(E13<=Control!$D$12,IF(G13>Control!$D$10+(Control!$D$9="Si")*1,0,IF(Control!$D$9="Si",Control!$I11,Control!$I12)),"") -> 0 | H53: =IF(E13<=Control!$D$12,IF(H13>Control!$D$10+(Control!$D$9="Si")*1,0,IF(Control!$D$9="Si",Control!$I12,Control!$I13)),"") -> 0 | I53: =IF(E13<=Control!$D$12,IF(I13>Control!$D$10+(Control!$D$9="Si")*1,0,IF(Control!$D$9="Si",Control!$I13,0)),"") -> 0 | J53: =IF(J13<=Control!$D$12,0,"") -> 0 | K53: =IF(K13<=Control!$D$12,0,"") -> 0 | L53: =IF(L13<=Control!$D$12,0,"") -> 0 | M53: =IF(M13<=Control!$D$12,0,"") -> 0 | N53: =IF(N13<=Control!$D$12,0,"") -> 0 | O53: =IF(O13<=Control!$D$12,0,"") ->  | P53: =IF(P13<=Control!$D$12,0,"") ->  | Q53: =IF(Q13<=Control!$D$12,0,"") ->  | R53: =IF(R13<=Control!$D$12,0,"") ->  | S53: =IF(S13<=Control!$D$12,0,"") ->  | T53: =IF(T13<=Control!$D$12,0,"") ->  | U53: =IF(U13<=Control!$D$12,0,"") ->  | V53: =IF(V13<=Control!$D$12,0,"") ->  | W53: =IF(W13<=Control!$D$12,0,"") ->  | X53: =IF(X13<=Control!$D$12,0,"") ->  | Y53: =IF(Y13<=Control!$D$12,0,"") ->  | Z53: =IF(Z13<=Control!$D$12,0,"") ->  | AA53: =IF(AA13<=Control!$D$12,0,"") ->  | AB53: =IF(AB13<=Control!$D$12,0,"") ->  | AC53: =IF(AC13<=Control!$D$12,0,"") ->  | AD53: =IF(AD13<=Control!$D$12,0,"") ->  | AE53: =IF(AE13<=Control!$D$12,0,"") ->  | AF53: =IF(AF13<=Control!$D$12,0,"") ->  | AG53: =IF(AG13<=Control!$D$12,0,"") -> 
B54: (-) Amortización Largo Plazo | D54: 0 | E54: =IF(E13<=Control!$D$12,D74,"") -> 1074.8 | F54: =IF(F13<=Control!$D$12,E74,"") -> 3972.593698 | G54: =IF(G13<=Control!$D$12,F74,"") -> 15193.12693 | H54: =IF(H13<=Control!$D$12,G74,"") -> 15193.12693 | I54: =IF(I13<=Control!$D$12,H74,"") -> 15193.12693 | J54: =IF(J13<=Control!$D$12,I74,"") -> 15193.12693 | K54: =IF(K13<=Control!$D$12,J74,"") -> 15193.12693 | L54: =IF(L13<=Control!$D$12,K74,"") -> 15193.12693 | M54: =IF(M13<=Control!$D$12,L74,"") -> 15193.12693 | N54: =IF(N13<=Control!$D$12,M74,"") -> 15193.12693 | O54: =IF(O13<=Control!$D$12,N74,"") ->  | P54: =IF(P13<=Control!$D$12,O74,"") ->  | Q54: =IF(Q13<=Control!$D$12,P74,"") ->  | R54: =IF(R13<=Control!$D$12,Q74,"") ->  | S54: =IF(S13<=Control!$D$12,R74,"") ->  | T54: =IF(T13<=Control!$D$12,S74,"") ->  | U54: =IF(U13<=Control!$D$12,T74,"") ->  | V54: =IF(V13<=Control!$D$12,U74,"") ->  | W54: =IF(W13<=Control!$D$12,V74,"") ->  | X54: =IF(X13<=Control!$D$12,W74,"") ->  | Y54: =IF(Y13<=Control!$D$12,X74,"") ->  | Z54: =IF(Z13<=Control!$D$12,Y74,"") ->  | AA54: =IF(AA13<=Control!$D$12,Z74,"") ->  | AB54: =IF(AB13<=Control!$D$12,AA74,"") ->  | AC54: =IF(AC13<=Control!$D$12,AB74,"") ->  | AD54: =IF(AD13<=Control!$D$12,AC74,"") ->  | AE54: =IF(AE13<=Control!$D$12,AD74,"") ->  | AF54: =IF(AF13<=Control!$D$12,AE74,"") ->  | AG54: =IF(AG13<=Control!$D$12,AF74,"") -> 
B55: (-) Intereses (Largo Plazo) | D55: 0 | E55: =IF(E13<=Control!$D$12,D81,"") -> 1146.8116 | F55: =IF(F13<=Control!$D$12,E81,"") -> 3814.881728 | G55: =IF(G13<=Control!$D$12,F81,"") -> 12968.85315 | H55: =IF(H13<=Control!$D$12,G81,"") -> 11347.7465 | I55: =IF(I13<=Control!$D$12,H81,"") -> 9726.639861 | J55: =IF(J13<=Control!$D$12,I81,"") -> 8105.533217 | K55: =IF(K13<=Control!$D$12,J81,"") -> 6484.426574 | L55: =IF(L13<=Control!$D$12,K81,"") -> 4863.31993 | M55: =IF(M13<=Control!$D$12,L81,"") -> 3242.213287 | N55: =IF(N13<=Control!$D$12,M81,"") -> 1621.106643 | O55: =IF(O13<=Control!$D$12,N81,"") ->  | P55: =IF(P13<=Control!$D$12,O81,"") ->  | Q55: =IF(Q13<=Control!$D$12,P81,"") ->  | R55: =IF(R13<=Control!$D$12,Q81,"") ->  | S55: =IF(S13<=Control!$D$12,R81,"") ->  | T55: =IF(T13<=Control!$D$12,S81,"") ->  | U55: =IF(U13<=Control!$D$12,T81,"") ->  | V55: =IF(V13<=Control!$D$12,U81,"") ->  | W55: =IF(W13<=Control!$D$12,V81,"") ->  | X55: =IF(X13<=Control!$D$12,W81,"") ->  | Y55: =IF(Y13<=Control!$D$12,X81,"") ->  | Z55: =IF(Z13<=Control!$D$12,Y81,"") ->  | AA55: =IF(AA13<=Control!$D$12,Z81,"") ->  | AB55: =IF(AB13<=Control!$D$12,AA81,"") ->  | AC55: =IF(AC13<=Control!$D$12,AB81,"") ->  | AD55: =IF(AD13<=Control!$D$12,AC81,"") ->  | AE55: =IF(AE13<=Control!$D$12,AD81,"") ->  | AF55: =IF(AF13<=Control!$D$12,AE81,"") ->  | AG55: =IF(AG13<=Control!$D$12,AF81,"") -> 
B56: (-) Pago Roll Over | D56: 0 | E56: =IF(E13<=Control!$D$12,D60,"") -> 0 | F56: =IF(F13<=Control!$D$12,E60,"") -> 0 | G56: =IF(G13<=Control!$D$12,F60,"") -> 0 | H56: =IF(H13<=Control!$D$12,G60,"") -> 0 | I56: =IF(I13<=Control!$D$12,H60,"") -> 0 | J56: =IF(J13<=Control!$D$12,I60,"") -> 0 | K56: =IF(K13<=Control!$D$12,J60,"") -> 0 | L56: =IF(L13<=Control!$D$12,K60,"") -> 0 | M56: =IF(M13<=Control!$D$12,L60,"") -> 0 | N56: =IF(N13<=Control!$D$12,M60,"") -> 0 | O56: =IF(O13<=Control!$D$12,N60,"") ->  | P56: =IF(P13<=Control!$D$12,O60,"") ->  | Q56: =IF(Q13<=Control!$D$12,P60,"") ->  | R56: =IF(R13<=Control!$D$12,Q60,"") ->  | S56: =IF(S13<=Control!$D$12,R60,"") ->  | T56: =IF(T13<=Control!$D$12,S60,"") ->  | U56: =IF(U13<=Control!$D$12,T60,"") ->  | V56: =IF(V13<=Control!$D$12,U60,"") ->  | W56: =IF(W13<=Control!$D$12,V60,"") ->  | X56: =IF(X13<=Control!$D$12,W60,"") ->  | Y56: =IF(Y13<=Control!$D$12,X60,"") ->  | Z56: =IF(Z13<=Control!$D$12,Y60,"") ->  | AA56: =IF(AA13<=Control!$D$12,Z60,"") ->  | AB56: =IF(AB13<=Control!$D$12,AA60,"") ->  | AC56: =IF(AC13<=Control!$D$12,AB60,"") ->  | AD56: =IF(AD13<=Control!$D$12,AC60,"") ->  | AE56: =IF(AE13<=Control!$D$12,AD60,"") ->  | AF56: =IF(AF13<=Control!$D$12,AE60,"") ->  | AG56: =IF(AG13<=Control!$D$12,AF60,"") -> 
B57: (-) Intereses (Roll Over) | D57: 0 | E57: =IF(E13<=Control!$D$12,((1+$H$9*1.8)*(1+Control!$D$19)-1)*D60,"") -> 0 | F57: =IF(F13<=Control!$D$12,((1+$H$9*1.8)*(1+Control!$D$19)-1)*E60,"") -> 0 | G57: =IF(G13<=Control!$D$12,((1+$H$9*1.8)*(1+Control!$D$19)-1)*F60,"") -> 0 | H57: =IF(H13<=Control!$D$12,((1+$H$9*1.8)*(1+Control!$D$19)-1)*G60,"") -> 0 | I57: =IF(I13<=Control!$D$12,((1+$H$9*1.8)*(1+Control!$D$19)-1)*H60,"") -> 0 | J57: =IF(J13<=Control!$D$12,((1+$H$9*1.8)*(1+Control!$D$19)-1)*I60,"") -> 0 | K57: =IF(K13<=Control!$D$12,((1+$H$9*1.8)*(1+Control!$D$19)-1)*J60,"") -> 0 | L57: =IF(L13<=Control!$D$12,((1+$H$9*1.8)*(1+Control!$D$19)-1)*K60,"") -> 0 | M57: =IF(M13<=Control!$D$12,((1+$H$9*1.8)*(1+Control!$D$19)-1)*L60,"") -> 0 | N57: =IF(N13<=Control!$D$12,((1+$H$9*1.8)*(1+Control!$D$19)-1)*M60,"") -> 0 | O57: =IF(O13<=Control!$D$12,((1+$H$9*1.8)*(1+Control!$D$19)-1)*N60,"") ->  | P57: =IF(P13<=Control!$D$12,((1+$H$9*1.8)*(1+Control!$D$19)-1)*O60,"") ->  | Q57: =IF(Q13<=Control!$D$12,((1+$H$9*1.8)*(1+Control!$D$19)-1)*P60,"") ->  | R57: =IF(R13<=Control!$D$12,((1+$H$9*1.8)*(1+Control!$D$19)-1)*Q60,"") ->  | S57: =IF(S13<=Control!$D$12,((1+$H$9*1.8)*(1+Control!$D$19)-1)*R60,"") ->  | T57: =IF(T13<=Control!$D$12,((1+$H$9*1.8)*(1+Control!$D$19)-1)*S60,"") ->  | U57: =IF(U13<=Control!$D$12,((1+$H$9*1.8)*(1+Control!$D$19)-1)*T60,"") ->  | V57: =IF(V13<=Control!$D$12,((1+$H$9*1.8)*(1+Control!$D$19)-1)*U60,"") ->  | W57: =IF(W13<=Control!$D$12,((1+$H$9*1.8)*(1+Control!$D$19)-1)*V60,"") ->  | X57: =IF(X13<=Control!$D$12,((1+$H$9*1.8)*(1+Control!$D$19)-1)*W60,"") ->  | Y57: =IF(Y13<=Control!$D$12,((1+$H$9*1.8)*(1+Control!$D$19)-1)*X60,"") ->  | Z57: =IF(Z13<=Control!$D$12,((1+$H$9*1.8)*(1+Control!$D$19)-1)*Y60,"") ->  | AA57: =IF(AA13<=Control!$D$12,((1+$H$9*1.8)*(1+Control!$D$19)-1)*Z60,"") ->  | AB57: =IF(AB13<=Control!$D$12,((1+$H$9*1.8)*(1+Control!$D$19)-1)*AA60,"") ->  | AC57: =IF(AC13<=Control!$D$12,((1+$H$9*1.8)*(1+Control!$D$19)-1)*AB60,"") ->  | AD57: =IF(AD13<=Control!$D$12,((1+$H$9*1.8)*(1+Control!$D$19)-1)*AC60,"") ->  | AE57: =IF(AE13<=Control!$D$12,((1+$H$9*1.8)*(1+Control!$D$19)-1)*AD60,"") ->  | AF57: =IF(AF13<=Control!$D$12,((1+$H$9*1.8)*(1+Control!$D$19)-1)*AE60,"") ->  | AG57: =IF(AG13<=Control!$D$12,((1+$H$9*1.8)*(1+Control!$D$19)-1)*AF60,"") -> 
B58: (-) Impuesto de Renta | D58: =C108 -> 0 | E58: =IF(E13<=Control!$D$12,D108,"") -> 88.5675 | F58: =IF(F13<=Control!$D$12,E108,"") -> 199.8568997 | G58: =IF(G13<=Control!$D$12,F108,"") -> 748.1296776 | H58: =IF(H13<=Control!$D$12,G108,"") -> 1264.346614 | I58: =IF(I13<=Control!$D$12,H108,"") -> 3548.914182 | J58: =IF(J13<=Control!$D$12,I108,"") -> 4113.373618 | K58: =IF(K13<=Control!$D$12,J108,"") -> 4271.345726 | L58: =IF(L13<=Control!$D$12,K108,"") -> 4806.310918 | M58: =IF(M13<=Control!$D$12,L108,"") -> 5341.27611 | N58: =IF(N13<=Control!$D$12,M108,"") -> 5876.241303 | O58: =IF(O13<=Control!$D$12,N108,"") ->  | P58: =IF(P13<=Control!$D$12,O108,"") ->  | Q58: =IF(Q13<=Control!$D$12,P108,"") ->  | R58: =IF(R13<=Control!$D$12,Q108,"") ->  | S58: =IF(S13<=Control!$D$12,R108,"") ->  | T58: =IF(T13<=Control!$D$12,S108,"") ->  | U58: =IF(U13<=Control!$D$12,T108,"") ->  | V58: =IF(V13<=Control!$D$12,U108,"") ->  | W58: =IF(W13<=Control!$D$12,V108,"") ->  | X58: =IF(X13<=Control!$D$12,W108,"") ->  | Y58: =IF(Y13<=Control!$D$12,X108,"") ->  | Z58: =IF(Z13<=Control!$D$12,Y108,"") ->  | AA58: =IF(AA13<=Control!$D$12,Z108,"") ->  | AB58: =IF(AB13<=Control!$D$12,AA108,"") ->  | AC58: =IF(AC13<=Control!$D$12,AB108,"") ->  | AD58: =IF(AD13<=Control!$D$12,AC108,"") ->  | AE58: =IF(AE13<=Control!$D$12,AD108,"") ->  | AF58: =IF(AF13<=Control!$D$12,AE108,"") ->  | AG58: =IF(AG13<=Control!$D$12,AF108,"") -> 
B59: (-) Pago Dividendos | D59: =D68 -> 0 | E59: =IF(E13<=Control!$D$12,E68,"") -> 0 | F59: =IF(F13<=Control!$D$12,F68,"") -> 0 | G59: =IF(G13<=Control!$D$12,G68,"") -> 0 | H59: =IF(H13<=Control!$D$12,H68,"") -> 0 | I59: =IF(I13<=Control!$D$12,I68,"") -> 0 | J59: =IF(J13<=Control!$D$12,J68,"") -> 0 | K59: =IF(K13<=Control!$D$12,K68,"") -> 0 | L59: =IF(L13<=Control!$D$12,L68,"") -> 0 | M59: =IF(M13<=Control!$D$12,M68,"") -> 0 | N59: =IF(N13<=Control!$D$12,N68,"") -> 85901.5062 | O59: =IF(O13<=Control!$D$12,O68,"") ->  | P59: =IF(P13<=Control!$D$12,P68,"") ->  | Q59: =IF(Q13<=Control!$D$12,Q68,"") ->  | R59: =IF(R13<=Control!$D$12,R68,"") ->  | S59: =IF(S13<=Control!$D$12,S68,"") ->  | T59: =IF(T13<=Control!$D$12,T68,"") ->  | U59: =IF(U13<=Control!$D$12,U68,"") ->  | V59: =IF(V13<=Control!$D$12,V68,"") ->  | W59: =IF(W13<=Control!$D$12,W68,"") ->  | X59: =IF(X13<=Control!$D$12,X68,"") ->  | Y59: =IF(Y13<=Control!$D$12,Y68,"") ->  | Z59: =IF(Z13<=Control!$D$12,Z68,"") ->  | AA59: =IF(AA13<=Control!$D$12,AA68,"") ->  | AB59: =IF(AB13<=Control!$D$12,AB68,"") ->  | AC59: =IF(AC13<=Control!$D$12,AC68,"") ->  | AD59: =IF(AD13<=Control!$D$12,AD68,"") ->  | AE59: =IF(AE13<=Control!$D$12,AE68,"") ->  | AF59: =IF(AF13<=Control!$D$12,AF68,"") ->  | AG59: =IF(AG13<=Control!$D$12,AG68,"") -> 
B60: (+) Roll Over | D60: 0 | E60: =IF(E13<=Control!$D$12,IF(AND(E13>=$H$7,E51-SUM(E52:E59)<0),SUM(E52:E59)-E51,0),"") -> 0 | F60: =IF(F13<=Control!$D$12,IF(AND(F13>=$H$7,F51-SUM(F52:F59)<0),SUM(F52:F59)-F51,0),"") -> 0 | G60: =IF(G13<=Control!$D$12,IF(AND(G13>=$H$7,G51-SUM(G52:G59)<0),SUM(G52:G59)-G51,0),"") -> 0 | H60: =IF(H13<=Control!$D$12,IF(AND(H13>=$H$7,H51-SUM(H52:H59)<0),SUM(H52:H59)-H51,0),"") -> 0 | I60: =IF(I13<=Control!$D$12,IF(AND(I13>=$H$7,I51-SUM(I52:I59)<0),SUM(I52:I59)-I51,0),"") -> 0 | J60: =IF(J13<=Control!$D$12,IF(AND(J13>=$H$7,J51-SUM(J52:J59)<0),SUM(J52:J59)-J51,0),"") -> 0 | K60: =IF(K13<=Control!$D$12,IF(AND(K13>=$H$7,K51-SUM(K52:K59)<0),SUM(K52:K59)-K51,0),"") -> 0 | L60: =IF(L13<=Control!$D$12,IF(AND(L13>=$H$7,L51-SUM(L52:L59)<0),SUM(L52:L59)-L51,0),"") -> 0 | M60: =IF(M13<=Control!$D$12,IF(AND(M13>=$H$7,M51-SUM(M52:M59)<0),SUM(M52:M59)-M51,0),"") -> 0 | N60: =IF(N13<=Control!$D$12,IF(AND(N13>=$H$7,N51-SUM(N52:N59)<0),SUM(N52:N59)-N51,0),"") -> 0 | O60: =IF(O13<=Control!$D$12,IF(AND(O13>=$H$7,O51-SUM(O52:O59)<0),SUM(O52:O59)-O51,0),"") ->  | P60: =IF(P13<=Control!$D$12,IF(AND(P13>=$H$7,P51-SUM(P52:P59)<0),SUM(P52:P59)-P51,0),"") ->  | Q60: =IF(Q13<=Control!$D$12,IF(AND(Q13>=$H$7,Q51-SUM(Q52:Q59)<0),SUM(Q52:Q59)-Q51,0),"") ->  | R60: =IF(R13<=Control!$D$12,IF(AND(R13>=$H$7,R51-SUM(R52:R59)<0),SUM(R52:R59)-R51,0),"") ->  | S60: =IF(S13<=Control!$D$12,IF(AND(S13>=$H$7,S51-SUM(S52:S59)<0),SUM(S52:S59)-S51,0),"") ->  | T60: =IF(T13<=Control!$D$12,IF(AND(T13>=$H$7,T51-SUM(T52:T59)<0),SUM(T52:T59)-T51,0),"") ->  | U60: =IF(U13<=Control!$D$12,IF(AND(U13>=$H$7,U51-SUM(U52:U59)<0),SUM(U52:U59)-U51,0),"") ->  | V60: =IF(V13<=Control!$D$12,IF(AND(V13>=$H$7,V51-SUM(V52:V59)<0),SUM(V52:V59)-V51,0),"") ->  | W60: =IF(W13<=Control!$D$12,IF(AND(W13>=$H$7,W51-SUM(W52:W59)<0),SUM(W52:W59)-W51,0),"") ->  | X60: =IF(X13<=Control!$D$12,IF(AND(X13>=$H$7,X51-SUM(X52:X59)<0),SUM(X52:X59)-X51,0),"") ->  | Y60: =IF(Y13<=Control!$D$12,IF(AND(Y13>=$H$7,Y51-SUM(Y52:Y59)<0),SUM(Y52:Y59)-Y51,0),"") ->  | Z60: =IF(Z13<=Control!$D$12,IF(AND(Z13>=$H$7,Z51-SUM(Z52:Z59)<0),SUM(Z52:Z59)-Z51,0),"") ->  | AA60: =IF(AA13<=Control!$D$12,IF(AND(AA13>=$H$7,AA51-SUM(AA52:AA59)<0),SUM(AA52:AA59)-AA51,0),"") ->  | AB60: =IF(AB13<=Control!$D$12,IF(AND(AB13>=$H$7,AB51-SUM(AB52:AB59)<0),SUM(AB52:AB59)-AB51,0),"") ->  | AC60: =IF(AC13<=Control!$D$12,IF(AND(AC13>=$H$7,AC51-SUM(AC52:AC59)<0),SUM(AC52:AC59)-AC51,0),"") ->  | AD60: =IF(AD13<=Control!$D$12,IF(AND(AD13>=$H$7,AD51-SUM(AD52:AD59)<0),SUM(AD52:AD59)-AD51,0),"") ->  | AE60: =IF(AE13<=Control!$D$12,IF(AND(AE13>=$H$7,AE51-SUM(AE52:AE59)<0),SUM(AE52:AE59)-AE51,0),"") ->  | AF60: =IF(AF13<=Control!$D$12,IF(AND(AF13>=$H$7,AF51-SUM(AF52:AF59)<0),SUM(AF52:AF59)-AF51,0),"") ->  | AG60: =IF(AG13<=Control!$D$12,IF(AND(AG13>=$H$7,AG51-SUM(AG52:AG59)<0),SUM(AG52:AG59)-AG51,0),"") -> 
B61: (=) Necesidades/Excedentes de Caja | D61: =D51-SUM(D52:D59)+D60 -> -13435 | E61: =IF(E13<=Control!$D$12,E51-SUM(E52:E59)+E60,"") -> -32600.1791 | F61: =IF(F13<=Control!$D$12,F51-SUM(F52:F59)+F60,"") -> -112205.3323 | G61: =IF(G13<=Control!$D$12,G51-SUM(G52:G59)+G60,"") -> 8863.328426 | H61: =IF(H13<=Control!$D$12,H51-SUM(H52:H59)+H60,"") -> 18831.54656 | I61: =IF(I13<=Control!$D$12,I51-SUM(I52:I59)+I60,"") -> 28136.30377 | J61: =IF(J13<=Control!$D$12,J51-SUM(J52:J59)+J60,"") -> 38497.70818 | K61: =IF(K13<=Control!$D$12,K51-SUM(K52:K59)+K60,"") -> 50322.24714 | L61: =IF(L13<=Control!$D$12,L51-SUM(L52:L59)+L60,"") -> 63232.92754 | M61: =IF(M13<=Control!$D$12,M51-SUM(M52:M59)+M60,"") -> 77229.74939 | N61: =IF(N13<=Control!$D$12,N51-SUM(N52:N59)+N60,"") -> 6411.206495 | O61: =IF(O13<=Control!$D$12,O51-SUM(O52:O59)+O60,"") ->  | P61: =IF(P13<=Control!$D$12,P51-SUM(P52:P59)+P60,"") ->  | Q61: =IF(Q13<=Control!$D$12,Q51-SUM(Q52:Q59)+Q60,"") ->  | R61: =IF(R13<=Control!$D$12,R51-SUM(R52:R59)+R60,"") ->  | S61: =IF(S13<=Control!$D$12,S51-SUM(S52:S59)+S60,"") ->  | T61: =IF(T13<=Control!$D$12,T51-SUM(T52:T59)+T60,"") ->  | U61: =IF(U13<=Control!$D$12,U51-SUM(U52:U59)+U60,"") ->  | V61: =IF(V13<=Control!$D$12,V51-SUM(V52:V59)+V60,"") ->  | W61: =IF(W13<=Control!$D$12,W51-SUM(W52:W59)+W60,"") ->  | X61: =IF(X13<=Control!$D$12,X51-SUM(X52:X59)+X60,"") ->  | Y61: =IF(Y13<=Control!$D$12,Y51-SUM(Y52:Y59)+Y60,"") ->  | Z61: =IF(Z13<=Control!$D$12,Z51-SUM(Z52:Z59)+Z60,"") ->  | AA61: =IF(AA13<=Control!$D$12,AA51-SUM(AA52:AA59)+AA60,"") ->  | AB61: =IF(AB13<=Control!$D$12,AB51-SUM(AB52:AB59)+AB60,"") ->  | AC61: =IF(AC13<=Control!$D$12,AC51-SUM(AC52:AC59)+AC60,"") ->  | AD61: =IF(AD13<=Control!$D$12,AD51-SUM(AD52:AD59)+AD60,"") ->  | AE61: =IF(AE13<=Control!$D$12,AE51-SUM(AE52:AE59)+AE60,"") ->  | AF61: =IF(AF13<=Control!$D$12,AF51-SUM(AF52:AF59)+AF60,"") ->  | AG61: =IF(AG13<=Control!$D$12,AG51-SUM(AG52:AG59)+AG60,"") -> 
B62: (+) Aportes Equity | D62: =IF(D13+1>$H$7,0,IF(D61<0,-D61*$H$6,0)) -> 2687 | E62: =IF(E13<=Control!$D$12,IF(E13+1>$H$7,0,IF(E61<0,-E61*$H$6,0)),"") -> 6520.03582 | F62: =IF(F13<=Control!$D$12,IF(F13+1>$H$7,0,IF(F61<0,-F61*$H$6,0)),"") -> 22441.06647 | G62: =IF(G13<=Control!$D$12,IF(G13+1>$H$7,0,IF(G61<0,-G61*$H$6,0)),"") -> 0 | H62: =IF(H13<=Control!$D$12,IF(H13+1>$H$7,0,IF(H61<0,-H61*$H$6,0)),"") -> 0 | I62: =IF(I13<=Control!$D$12,IF(I13+1>$H$7,0,IF(I61<0,-I61*$H$6,0)),"") -> 0 | J62: =IF(J13<=Control!$D$12,IF(J13+1>$H$7,0,IF(J61<0,-J61*$H$6,0)),"") -> 0 | K62: =IF(K13<=Control!$D$12,IF(K13+1>$H$7,0,IF(K61<0,-K61*$H$6,0)),"") -> 0 | L62: =IF(L13<=Control!$D$12,IF(L13+1>$H$7,0,IF(L61<0,-L61*$H$6,0)),"") -> 0 | M62: =IF(M13<=Control!$D$12,IF(M13+1>$H$7,0,IF(M61<0,-M61*$H$6,0)),"") -> 0 | N62: =IF(N13<=Control!$D$12,IF(N13+1>$H$7,0,IF(N61<0,-N61*$H$6,0)),"") -> 0 | O62: =IF(O13<=Control!$D$12,IF(O13+1>$H$7,0,IF(O61<0,-O61*$H$6,0)),"") ->  | P62: =IF(P13<=Control!$D$12,IF(P13+1>$H$7,0,IF(P61<0,-P61*$H$6,0)),"") ->  | Q62: =IF(Q13<=Control!$D$12,IF(Q13+1>$H$7,0,IF(Q61<0,-Q61*$H$6,0)),"") ->  | R62: =IF(R13<=Control!$D$12,IF(R13+1>$H$7,0,IF(R61<0,-R61*$H$6,0)),"") ->  | S62: =IF(S13<=Control!$D$12,IF(S13+1>$H$7,0,IF(S61<0,-S61*$H$6,0)),"") ->  | T62: =IF(T13<=Control!$D$12,IF(T13+1>$H$7,0,IF(T61<0,-T61*$H$6,0)),"") ->  | U62: =IF(U13<=Control!$D$12,IF(U13+1>$H$7,0,IF(U61<0,-U61*$H$6,0)),"") ->  | V62: =IF(V13<=Control!$D$12,IF(V13+1>$H$7,0,IF(V61<0,-V61*$H$6,0)),"") ->  | W62: =IF(W13<=Control!$D$12,IF(W13+1>$H$7,0,IF(W61<0,-W61*$H$6,0)),"") ->  | X62: =IF(X13<=Control!$D$12,IF(X13+1>$H$7,0,IF(X61<0,-X61*$H$6,0)),"") ->  | Y62: =IF(Y13<=Control!$D$12,IF(Y13+1>$H$7,0,IF(Y61<0,-Y61*$H$6,0)),"") ->  | Z62: =IF(Z13<=Control!$D$12,IF(Z13+1>$H$7,0,IF(Z61<0,-Z61*$H$6,0)),"") ->  | AA62: =IF(AA13<=Control!$D$12,IF(AA13+1>$H$7,0,IF(AA61<0,-AA61*$H$6,0)),"") ->  | AB62: =IF(AB13<=Control!$D$12,IF(AB13+1>$H$7,0,IF(AB61<0,-AB61*$H$6,0)),"") ->  | AC62: =IF(AC13<=Control!$D$12,IF(AC13+1>$H$7,0,IF(AC61<0,-AC61*$H$6,0)),"") ->  | AD62: =IF(AD13<=Control!$D$12,IF(AD13+1>$H$7,0,IF(AD61<0,-AD61*$H$6,0)),"") ->  | AE62: =IF(AE13<=Control!$D$12,IF(AE13+1>$H$7,0,IF(AE61<0,-AE61*$H$6,0)),"") ->  | AF62: =IF(AF13<=Control!$D$12,IF(AF13+1>$H$7,0,IF(AF61<0,-AF61*$H$6,0)),"") ->  | AG62: =IF(AG13<=Control!$D$12,IF(AG13+1>$H$7,0,IF(AG61<0,-AG61*$H$6,0)),"") -> 
B63: (+) Aportes de Deuda | D63: =IF(D13+1>$H$7,0,IF(D61<0,-D61*(1-$H$6),0)) -> 10748 | E63: =IF(E13<=Control!$D$12,IF(E13+1>$H$7,0,IF(E61<0,-E61*(1-$H$6),0)),"") -> 26080.14328 | F63: =IF(F13<=Control!$D$12,IF(F13+1>$H$7,0,IF(F61<0,-F61*(1-$H$6),0)),"") -> 89764.26586 | G63: =IF(G13<=Control!$D$12,IF(G13+1>$H$7,0,IF(G61<0,-G61*(1-$H$6),0)),"") -> 0 | H63: =IF(H13<=Control!$D$12,IF(H13+1>$H$7,0,IF(H61<0,-H61*(1-$H$6),0)),"") -> 0 | I63: =IF(I13<=Control!$D$12,IF(I13+1>$H$7,0,IF(I61<0,-I61*(1-$H$6),0)),"") -> 0 | J63: =IF(J13<=Control!$D$12,IF(J13+1>$H$7,0,IF(J61<0,-J61*(1-$H$6),0)),"") -> 0 | K63: =IF(K13<=Control!$D$12,IF(K13+1>$H$7,0,IF(K61<0,-K61*(1-$H$6),0)),"") -> 0 | L63: =IF(L13<=Control!$D$12,IF(L13+1>$H$7,0,IF(L61<0,-L61*(1-$H$6),0)),"") -> 0 | M63: =IF(M13<=Control!$D$12,IF(M13+1>$H$7,0,IF(M61<0,-M61*(1-$H$6),0)),"") -> 0 | N63: =IF(N13<=Control!$D$12,IF(N13+1>$H$7,0,IF(N61<0,-N61*(1-$H$6),0)),"") -> 0 | O63: =IF(O13<=Control!$D$12,IF(O13+1>$H$7,0,IF(O61<0,-O61*(1-$H$6),0)),"") ->  | P63: =IF(P13<=Control!$D$12,IF(P13+1>$H$7,0,IF(P61<0,-P61*(1-$H$6),0)),"") ->  | Q63: =IF(Q13<=Control!$D$12,IF(Q13+1>$H$7,0,IF(Q61<0,-Q61*(1-$H$6),0)),"") ->  | R63: =IF(R13<=Control!$D$12,IF(R13+1>$H$7,0,IF(R61<0,-R61*(1-$H$6),0)),"") ->  | S63: =IF(S13<=Control!$D$12,IF(S13+1>$H$7,0,IF(S61<0,-S61*(1-$H$6),0)),"") ->  | T63: =IF(T13<=Control!$D$12,IF(T13+1>$H$7,0,IF(T61<0,-T61*(1-$H$6),0)),"") ->  | U63: =IF(U13<=Control!$D$12,IF(U13+1>$H$7,0,IF(U61<0,-U61*(1-$H$6),0)),"") ->  | V63: =IF(V13<=Control!$D$12,IF(V13+1>$H$7,0,IF(V61<0,-V61*(1-$H$6),0)),"") ->  | W63: =IF(W13<=Control!$D$12,IF(W13+1>$H$7,0,IF(W61<0,-W61*(1-$H$6),0)),"") ->  | X63: =IF(X13<=Control!$D$12,IF(X13+1>$H$7,0,IF(X61<0,-X61*(1-$H$6),0)),"") ->  | Y63: =IF(Y13<=Control!$D$12,IF(Y13+1>$H$7,0,IF(Y61<0,-Y61*(1-$H$6),0)),"") ->  | Z63: =IF(Z13<=Control!$D$12,IF(Z13+1>$H$7,0,IF(Z61<0,-Z61*(1-$H$6),0)),"") ->  | AA63: =IF(AA13<=Control!$D$12,IF(AA13+1>$H$7,0,IF(AA61<0,-AA61*(1-$H$6),0)),"") ->  | AB63: =IF(AB13<=Control!$D$12,IF(AB13+1>$H$7,0,IF(AB61<0,-AB61*(1-$H$6),0)),"") ->  | AC63: =IF(AC13<=Control!$D$12,IF(AC13+1>$H$7,0,IF(AC61<0,-AC61*(1-$H$6),0)),"") ->  | AD63: =IF(AD13<=Control!$D$12,IF(AD13+1>$H$7,0,IF(AD61<0,-AD61*(1-$H$6),0)),"") ->  | AE63: =IF(AE13<=Control!$D$12,IF(AE13+1>$H$7,0,IF(AE61<0,-AE61*(1-$H$6),0)),"") ->  | AF63: =IF(AF13<=Control!$D$12,IF(AF13+1>$H$7,0,IF(AF61<0,-AF61*(1-$H$6),0)),"") ->  | AG63: =IF(AG13<=Control!$D$12,IF(AG13+1>$H$7,0,IF(AG61<0,-AG61*(1-$H$6),0)),"") -> 
B64: (=) Saldo Caja | D64: =+D61+D62+D63 -> 0 | E64: =IF(E13<=Control!$D$12,E61+E62+E63,"") -> 3.637978807e-12 | F64: =IF(F13<=Control!$D$12,F61+F62+F63,"") -> 1.455191523e-11 | G64: =IF(G13<=Control!$D$12,G61+G62+G63,"") -> 8863.328426 | H64: =IF(H13<=Control!$D$12,H61+H62+H63,"") -> 18831.54656 | I64: =IF(I13<=Control!$D$12,I61+I62+I63,"") -> 28136.30377 | J64: =IF(J13<=Control!$D$12,J61+J62+J63,"") -> 38497.70818 | K64: =IF(K13<=Control!$D$12,K61+K62+K63,"") -> 50322.24714 | L64: =IF(L13<=Control!$D$12,L61+L62+L63,"") -> 63232.92754 | M64: =IF(M13<=Control!$D$12,M61+M62+M63,"") -> 77229.74939 | N64: =IF(N13<=Control!$D$12,N61+N62+N63,"") -> 6411.206495 | O64: =IF(O13<=Control!$D$12,O61+O62+O63,"") ->  | P64: =IF(P13<=Control!$D$12,P61+P62+P63,"") ->  | Q64: =IF(Q13<=Control!$D$12,Q61+Q62+Q63,"") ->  | R64: =IF(R13<=Control!$D$12,R61+R62+R63,"") ->  | S64: =IF(S13<=Control!$D$12,S61+S62+S63,"") ->  | T64: =IF(T13<=Control!$D$12,T61+T62+T63,"") ->  | U64: =IF(U13<=Control!$D$12,U61+U62+U63,"") ->  | V64: =IF(V13<=Control!$D$12,V61+V62+V63,"") ->  | W64: =IF(W13<=Control!$D$12,W61+W62+W63,"") ->  | X64: =IF(X13<=Control!$D$12,X61+X62+X63,"") ->  | Y64: =IF(Y13<=Control!$D$12,Y61+Y62+Y63,"") ->  | Z64: =IF(Z13<=Control!$D$12,Z61+Z62+Z63,"") ->  | AA64: =IF(AA13<=Control!$D$12,AA61+AA62+AA63,"") ->  | AB64: =IF(AB13<=Control!$D$12,AB61+AB62+AB63,"") ->  | AC64: =IF(AC13<=Control!$D$12,AC61+AC62+AC63,"") ->  | AD64: =IF(AD13<=Control!$D$12,AD61+AD62+AD63,"") ->  | AE64: =IF(AE13<=Control!$D$12,AE61+AE62+AE63,"") ->  | AF64: =IF(AF13<=Control!$D$12,AF61+AF62+AF63,"") ->  | AG64: =IF(AG13<=Control!$D$12,AG61+AG62+AG63,"") -> 
B66: --- Flujo de Caja del Inversionista
B67: (-) Aportes Equity | D67: =IF(D13<=Control!$D$12,D62,"") -> 2687 | E67: =IF(E13<=Control!$D$12,E62,"") -> 6520.03582 | F67: =IF(F13<=Control!$D$12,F62,"") -> 22441.06647 | G67: =IF(G13<=Control!$D$12,G62,"") -> 0 | H67: =IF(H13<=Control!$D$12,H62,"") -> 0 | I67: =IF(I13<=Control!$D$12,I62,"") -> 0 | J67: =IF(J13<=Control!$D$12,J62,"") -> 0 | K67: =IF(K13<=Control!$D$12,K62,"") -> 0 | L67: =IF(L13<=Control!$D$12,L62,"") -> 0 | M67: =IF(M13<=Control!$D$12,M62,"") -> 0 | N67: =IF(N13<=Control!$D$12,N62,"") -> 0 | O67: =IF(O13<=Control!$D$12,O62,"") ->  | P67: =IF(P13<=Control!$D$12,P62,"") ->  | Q67: =IF(Q13<=Control!$D$12,Q62,"") ->  | R67: =IF(R13<=Control!$D$12,R62,"") ->  | S67: =IF(S13<=Control!$D$12,S62,"") ->  | T67: =IF(T13<=Control!$D$12,T62,"") ->  | U67: =IF(U13<=Control!$D$12,U62,"") ->  | V67: =IF(V13<=Control!$D$12,V62,"") ->  | W67: =IF(W13<=Control!$D$12,W62,"") ->  | X67: =IF(X13<=Control!$D$12,X62,"") ->  | Y67: =IF(Y13<=Control!$D$12,Y62,"") ->  | Z67: =IF(Z13<=Control!$D$12,Z62,"") ->  | AA67: =IF(AA13<=Control!$D$12,AA62,"") ->  | AB67: =IF(AB13<=Control!$D$12,AB62,"") ->  | AC67: =IF(AC13<=Control!$D$12,AC62,"") ->  | AD67: =IF(AD13<=Control!$D$12,AD62,"") ->  | AE67: =IF(AE13<=Control!$D$12,AE62,"") ->  | AF67: =IF(AF13<=Control!$D$12,AF62,"") ->  | AG67: =IF(AG13<=Control!$D$12,AG62,"") -> 
B68: (+) Dividendos | E68: =IF(E13<=Control!$D$12,IF(E13=Control!$D$12,E51-SUM(E52:E58)-E46,IF(AND(ROUND(D60+D82,0)=0,D33>0),D33,0)),"") -> 0 | F68: =IF(F13<=Control!$D$12,IF(F13=Control!$D$12,F51-SUM(F52:F58)-F46,IF(AND(ROUND(E60+E82,0)=0,E33>0),E33,0)),"") -> 0 | G68: =IF(G13<=Control!$D$12,IF(G13=Control!$D$12,G51-SUM(G52:G58)-G46,IF(AND(ROUND(F60+F82,0)=0,F33>0),F33,0)),"") -> 0 | H68: =IF(H13<=Control!$D$12,IF(H13=Control!$D$12,H51-SUM(H52:H58)-H46,IF(AND(ROUND(G60+G82,0)=0,G33>0),G33,0)),"") -> 0 | I68: =IF(I13<=Control!$D$12,IF(I13=Control!$D$12,I51-SUM(I52:I58)-I46,IF(AND(ROUND(H60+H82,0)=0,H33>0),H33,0)),"") -> 0 | J68: =IF(J13<=Control!$D$12,IF(J13=Control!$D$12,J51-SUM(J52:J58)-J46,IF(AND(ROUND(I60+I82,0)=0,I33>0),I33,0)),"") -> 0 | K68: =IF(K13<=Control!$D$12,IF(K13=Control!$D$12,K51-SUM(K52:K58)-K46,IF(AND(ROUND(J60+J82,0)=0,J33>0),J33,0)),"") -> 0 | L68: =IF(L13<=Control!$D$12,IF(L13=Control!$D$12,L51-SUM(L52:L58)-L46,IF(AND(ROUND(K60+K82,0)=0,K33>0),K33,0)),"") -> 0 | M68: =IF(M13<=Control!$D$12,IF(M13=Control!$D$12,M51-SUM(M52:M58)-M46,IF(AND(ROUND(L60+L82,0)=0,L33>0),L33,0)),"") -> 0 | N68: =IF(N13<=Control!$D$12,IF(N13=Control!$D$12,N51-SUM(N52:N58)-N46,IF(AND(ROUND(M60+M82,0)=0,M33>0),M33,0)),"") -> 85901.5062 | O68: =IF(O13<=Control!$D$12,IF(O13=Control!$D$12,O51-SUM(O52:O58)-O46,IF(AND(ROUND(N60+N82,0)=0,N33>0),N33,0)),"") ->  | P68: =IF(P13<=Control!$D$12,IF(P13=Control!$D$12,P51-SUM(P52:P58)-P46,IF(AND(ROUND(O60+O82,0)=0,O33>0),O33,0)),"") ->  | Q68: =IF(Q13<=Control!$D$12,IF(Q13=Control!$D$12,Q51-SUM(Q52:Q58)-Q46,IF(AND(ROUND(P60+P82,0)=0,P33>0),P33,0)),"") ->  | R68: =IF(R13<=Control!$D$12,IF(R13=Control!$D$12,R51-SUM(R52:R58)-R46,IF(AND(ROUND(Q60+Q82,0)=0,Q33>0),Q33,0)),"") ->  | S68: =IF(S13<=Control!$D$12,IF(S13=Control!$D$12,S51-SUM(S52:S58)-S46,IF(AND(ROUND(R60+R82,0)=0,R33>0),R33,0)),"") ->  | T68: =IF(T13<=Control!$D$12,IF(T13=Control!$D$12,T51-SUM(T52:T58)-T46,IF(AND(ROUND(S60+S82,0)=0,S33>0),S33,0)),"") ->  | U68: =IF(U13<=Control!$D$12,IF(U13=Control!$D$12,U51-SUM(U52:U58)-U46,IF(AND(ROUND(T60+T82,0)=0,T33>0),T33,0)),"") ->  | V68: =IF(V13<=Control!$D$12,IF(V13=Control!$D$12,V51-SUM(V52:V58)-V46,IF(AND(ROUND(U60+U82,0)=0,U33>0),U33,0)),"") ->  | W68: =IF(W13<=Control!$D$12,IF(W13=Control!$D$12,W51-SUM(W52:W58)-W46,IF(AND(ROUND(V60+V82,0)=0,V33>0),V33,0)),"") ->  | X68: =IF(X13<=Control!$D$12,IF(X13=Control!$D$12,X51-SUM(X52:X58)-X46,IF(AND(ROUND(W60+W82,0)=0,W33>0),W33,0)),"") ->  | Y68: =IF(Y13<=Control!$D$12,IF(Y13=Control!$D$12,Y51-SUM(Y52:Y58)-Y46,IF(AND(ROUND(X60+X82,0)=0,X33>0),X33,0)),"") ->  | Z68: =IF(Z13<=Control!$D$12,IF(Z13=Control!$D$12,Z51-SUM(Z52:Z58)-Z46,IF(AND(ROUND(Y60+Y82,0)=0,Y33>0),Y33,0)),"") ->  | AA68: =IF(AA13<=Control!$D$12,IF(AA13=Control!$D$12,AA51-SUM(AA52:AA58)-AA46,IF(AND(ROUND(Z60+Z82,0)=0,Z33>0),Z33,0)),"") ->  | AB68: =IF(AB13<=Control!$D$12,IF(AB13=Control!$D$12,AB51-SUM(AB52:AB58)-AB46,IF(AND(ROUND(AA60+AA82,0)=0,AA33>0),AA33,0)),"") ->  | AC68: =IF(AC13<=Control!$D$12,IF(AC13=Control!$D$12,AC51-SUM(AC52:AC58)-AC46,IF(AND(ROUND(AB60+AB82,0)=0,AB33>0),AB33,0)),"") ->  | AD68: =IF(AD13<=Control!$D$12,IF(AD13=Control!$D$12,AD51-SUM(AD52:AD58)-AD46,IF(AND(ROUND(AC60+AC82,0)=0,AC33>0),AC33,0)),"") ->  | AE68: =IF(AE13<=Control!$D$12,IF(AE13=Control!$D$12,AE51-SUM(AE52:AE58)-AE46,IF(AND(ROUND(AD60+AD82,0)=0,AD33>0),AD33,0)),"") ->  | AF68: =IF(AF13<=Control!$D$12,IF(AF13=Control!$D$12,AF51-SUM(AF52:AF58)-AF46,IF(AND(ROUND(AE60+AE82,0)=0,AE33>0),AE33,0)),"") ->  | AG68: =IF(AG13<=Control!$D$12,IF(AG13=Control!$D$12,AG51-SUM(AG52:AG58)-AG46,IF(AND(ROUND(AF60+AF82,0)=0,AF33>0),AF33,0)),"") -> 
B69: (=) FCI | D69: =IF(D13<=Control!$D$12,-D67+D68,"") -> -2687 | E69: =IF(E13<=Control!$D$12,-E67+E68,"") -> -6520.03582 | F69: =IF(F13<=Control!$D$12,-F67+F68,"") -> -22441.06647 | G69: =IF(G13<=Control!$D$12,-G67+G68,"") -> 0 | H69: =IF(H13<=Control!$D$12,-H67+H68,"") -> 0 | I69: =IF(I13<=Control!$D$12,-I67+I68,"") -> 0 | J69: =IF(J13<=Control!$D$12,-J67+J68,"") -> 0 | K69: =IF(K13<=Control!$D$12,-K67+K68,"") -> 0 | L69: =IF(L13<=Control!$D$12,-L67+L68,"") -> 0 | M69: =IF(M13<=Control!$D$12,-M67+M68,"") -> 0 | N69: =IF(N13<=Control!$D$12,-N67+N68,"") -> 85901.5062 | O69: =IF(O13<=Control!$D$12,-O67+O68,"") ->  | P69: =IF(P13<=Control!$D$12,-P67+P68,"") ->  | Q69: =IF(Q13<=Control!$D$12,-Q67+Q68,"") ->  | R69: =IF(R13<=Control!$D$12,-R67+R68,"") ->  | S69: =IF(S13<=Control!$D$12,-S67+S68,"") ->  | T69: =IF(T13<=Control!$D$12,-T67+T68,"") ->  | U69: =IF(U13<=Control!$D$12,-U67+U68,"") ->  | V69: =IF(V13<=Control!$D$12,-V67+V68,"") ->  | W69: =IF(W13<=Control!$D$12,-W67+W68,"") ->  | X69: =IF(X13<=Control!$D$12,-X67+X68,"") ->  | Y69: =IF(Y13<=Control!$D$12,-Y67+Y68,"") ->  | Z69: =IF(Z13<=Control!$D$12,-Z67+Z68,"") ->  | AA69: =IF(AA13<=Control!$D$12,-AA67+AA68,"") ->  | AB69: =IF(AB13<=Control!$D$12,-AB67+AB68,"") ->  | AC69: =IF(AC13<=Control!$D$12,-AC67+AC68,"") ->  | AD69: =IF(AD13<=Control!$D$12,-AD67+AD68,"") ->  | AE69: =IF(AE13<=Control!$D$12,-AE67+AE68,"") ->  | AF69: =IF(AF13<=Control!$D$12,-AF67+AF68,"") ->  | AG69: =IF(AG13<=Control!$D$12,-AG67+AG68,"") -> 
B72: --- Deuda Largo Plazo | D72: =Control!D16 -> 10 | E72: =+D72-1 -> 9 | F72: 8 | G72: 7 | H72: 6 | I72: 5 | J72: 4 | K72: 3 | L72: 2 | M72: 1 | N72: 0 | O72: -1 | P72: -2 | Q72: -3 | R72: -4 | S72: -5 | T72: -6 | U72: -7 | V72: -8 | W72: -9 | X72: -10 | Y72: -11 | Z72: -12 | AA72: -13 | AB72: -14 | AC72: -15 | AD72: -16 | AE72: -17 | AF72: -18 | AG72: -19
B73: Saldo Inicial | D73: =D63 -> 10748 | E73: =IF(E13<=Control!$D$12,D82+E63,"") -> 35753.34328 | F73: =IF(F13<=Control!$D$12,E82+F63,"") -> 121545.0154 | G73: =IF(G13<=Control!$D$12,F82+G63,"") -> 106351.8885 | H73: =IF(H13<=Control!$D$12,G82+H63,"") -> 91158.76158 | I73: =IF(I13<=Control!$D$12,H82+I63,"") -> 75965.63465 | J73: =IF(J13<=Control!$D$12,I82+J63,"") -> 60772.50772 | K73: =IF(K13<=Control!$D$12,J82+K63,"") -> 45579.38079 | L73: =IF(L13<=Control!$D$12,K82+L63,"") -> 30386.25386 | M73: =IF(M13<=Control!$D$12,L82+M63,"") -> 15193.12693 | N73: =IF(N13<=Control!$D$12,M82+N63,"") -> 1.818989404e-11 | O73: =IF(O13<=Control!$D$12,N82+O63,"") ->  | P73: =IF(P13<=Control!$D$12,O82+P63,"") ->  | Q73: =IF(Q13<=Control!$D$12,P82+Q63,"") ->  | R73: =IF(R13<=Control!$D$12,Q82+R63,"") ->  | S73: =IF(S13<=Control!$D$12,R82+S63,"") ->  | T73: =IF(T13<=Control!$D$12,S82+T63,"") ->  | U73: =IF(U13<=Control!$D$12,T82+U63,"") ->  | V73: =IF(V13<=Control!$D$12,U82+V63,"") ->  | W73: =IF(W13<=Control!$D$12,V82+W63,"") ->  | X73: =IF(X13<=Control!$D$12,W82+X63,"") ->  | Y73: =IF(Y13<=Control!$D$12,X82+Y63,"") ->  | Z73: =IF(Z13<=Control!$D$12,Y82+Z63,"") ->  | AA73: =IF(AA13<=Control!$D$12,Z82+AA63,"") ->  | AB73: =IF(AB13<=Control!$D$12,AA82+AB63,"") ->  | AC73: =IF(AC13<=Control!$D$12,AB82+AC63,"") ->  | AD73: =IF(AD13<=Control!$D$12,AC82+AD63,"") ->  | AE73: =IF(AE13<=Control!$D$12,AD82+AE63,"") ->  | AF73: =IF(AF13<=Control!$D$12,AE82+AF63,"") ->  | AG73: =IF(AG13<=Control!$D$12,AF82+AG63,"") ->  | AS73: 1 | AT73: 2 | AU73: 3 | AV73: 4 | AW73: 5 | AX73: 6 | AY73: 7 | AZ73: 8 | BA73: 9 | BB73: 10 | BC73: 11 | BD73: 12 | BE73: 13 | BF73: 14 | BG73: 15 | BH73: 16 | BI73: 17 | BJ73: 18 | BK73: 19 | BL73: 20 | BM73: 21 | BN73: 22 | BO73: 23 | BP73: 24 | BQ73: 25 | BR73: 26 | BS73: 27 | BT73: 28 | BU73: 29 | BV73: 30
B74: Amortización | D74: =SUM(D75:D80) -> 1074.8 | E74: =IF(E13<=Control!$D$12,SUM(E75:E80),"") -> 3972.593698 | F74: =IF(F13<=Control!$D$12,SUM(F75:F80),"") -> 15193.12693 | G74: =IF(G13<=Control!$D$12,SUM(G75:G80),"") -> 15193.12693 | H74: =IF(H13<=Control!$D$12,SUM(H75:H80),"") -> 15193.12693 | I74: =IF(I13<=Control!$D$12,SUM(I75:I80),"") -> 15193.12693 | J74: =IF(J13<=Control!$D$12,SUM(J75:J80),"") -> 15193.12693 | K74: =IF(K13<=Control!$D$12,SUM(K75:K80),"") -> 15193.12693 | L74: =IF(L13<=Control!$D$12,SUM(L75:L80),"") -> 15193.12693 | M74: =IF(M13<=Control!$D$12,SUM(M75:M80),"") -> 15193.12693 | N74: =IF(N13<=Control!$D$12,SUM(N75:N80),"") -> 0 | O74: =IF(O13<=Control!$D$12,SUM(O75:O80),"") ->  | P74: =IF(P13<=Control!$D$12,SUM(P75:P80),"") ->  | Q74: =IF(Q13<=Control!$D$12,SUM(Q75:Q80),"") ->  | R74: =IF(R13<=Control!$D$12,SUM(R75:R80),"") ->  | S74: =IF(S13<=Control!$D$12,SUM(S75:S80),"") ->  | T74: =IF(T13<=Control!$D$12,SUM(T75:T80),"") ->  | U74: =IF(U13<=Control!$D$12,SUM(U75:U80),"") ->  | V74: =IF(V13<=Control!$D$12,SUM(V75:V80),"") ->  | W74: =IF(W13<=Control!$D$12,SUM(W75:W80),"") ->  | X74: =IF(X13<=Control!$D$12,SUM(X75:X80),"") ->  | Y74: =IF(Y13<=Control!$D$12,SUM(Y75:Y80),"") ->  | Z74: =IF(Z13<=Control!$D$12,SUM(Z75:Z80),"") ->  | AA74: =IF(AA13<=Control!$D$12,SUM(AA75:AA80),"") ->  | AB74: =IF(AB13<=Control!$D$12,SUM(AB75:AB80),"") ->  | AC74: =IF(AC13<=Control!$D$12,SUM(AC75:AC80),"") ->  | AD74: =IF(AD13<=Control!$D$12,SUM(AD75:AD80),"") ->  | AE74: =IF(AE13<=Control!$D$12,SUM(AE75:AE80),"") ->  | AF74: =IF(AF13<=Control!$D$12,SUM(AF75:AF80),"") ->  | AG74: =IF(AG13<=Control!$D$12,SUM(AG75:AG80),"") ->  | AO74: Plazo Pagos | AP74: Pagos | AQ74: Plazo Deuda
B75: Deuda 1 | D75: =IF(D$13>Control!$D$12,"",IF($AQ75<D$13,0,$AN75)*AS75) -> 1074.8 | E75: =IF(E$13>Control!$D$12,"",IF($AQ75<E$13,0,$AN75)*AT75) -> 1074.8 | F75: =IF(F$13>Control!$D$12,"",IF($AQ75<F$13,0,$AN75)*AU75) -> 1074.8 | G75: =IF(G$13>Control!$D$12,"",IF($AQ75<G$13,0,$AN75)*AV75) -> 1074.8 | H75: =IF(H$13>Control!$D$12,"",IF($AQ75<H$13,0,$AN75)*AW75) -> 1074.8 | I75: =IF(I$13>Control!$D$12,"",IF($AQ75<I$13,0,$AN75)*AX75) -> 1074.8 | J75: =IF(J$13>Control!$D$12,"",IF($AQ75<J$13,0,$AN75)*AY75) -> 1074.8 | K75: =IF(K$13>Control!$D$12,"",IF($AQ75<K$13,0,$AN75)*AZ75) -> 1074.8 | L75: =IF(L$13>Control!$D$12,"",IF($AQ75<L$13,0,$AN75)*BA75) -> 1074.8 | M75: =IF(M$13>Control!$D$12,"",IF($AQ75<M$13,0,$AN75)*BB75) -> 1074.8 | N75: =IF(N$13>Control!$D$12,"",IF($AQ75<N$13,0,$AN75)*BC75) -> 0 | O75: =IF(O$13>Control!$D$12,"",IF($AQ75<O$13,0,$AN75)*BD75) ->  | P75: =IF(P$13>Control!$D$12,"",IF($AQ75<P$13,0,$AN75)*BE75) ->  | Q75: =IF(Q$13>Control!$D$12,"",IF($AQ75<Q$13,0,$AN75)*BF75) ->  | R75: =IF(R$13>Control!$D$12,"",IF($AQ75<R$13,0,$AN75)*BG75) ->  | S75: =IF(S$13>Control!$D$12,"",IF($AQ75<S$13,0,$AN75)*BH75) ->  | T75: =IF(T$13>Control!$D$12,"",IF($AQ75<T$13,0,$AN75)*BI75) ->  | U75: =IF(U$13>Control!$D$12,"",IF($AQ75<U$13,0,$AN75)*BJ75) ->  | V75: =IF(V$13>Control!$D$12,"",IF($AQ75<V$13,0,$AN75)*BK75) ->  | W75: =IF(W$13>Control!$D$12,"",IF($AQ75<W$13,0,$AN75)*BL75) ->  | X75: =IF(X$13>Control!$D$12,"",IF($AQ75<X$13,0,$AN75)*BM75) ->  | Y75: =IF(Y$13>Control!$D$12,"",IF($AQ75<Y$13,0,$AN75)*BN75) ->  | Z75: =IF(Z$13>Control!$D$12,"",IF($AQ75<Z$13,0,$AN75)*BO75) ->  | AA75: =IF(AA$13>Control!$D$12,"",IF($AQ75<AA$13,0,$AN75)*BP75) ->  | AB75: =IF(AB$13>Control!$D$12,"",IF($AQ75<AB$13,0,$AN75)*BQ75) ->  | AC75: =IF(AC$13>Control!$D$12,"",IF($AQ75<AC$13,0,$AN75)*BR75) ->  | AD75: =IF(AD$13>Control!$D$12,"",IF($AQ75<AD$13,0,$AN75)*BS75) ->  | AE75: =IF(AE$13>Control!$D$12,"",IF($AQ75<AE$13,0,$AN75)*BT75) ->  | AF75: =IF(AF$13>Control!$D$12,"",IF($AQ75<AF$13,0,$AN75)*BU75) ->  | AG75: =IF(AG$13>Control!$D$12,"",IF($AQ75<AG$13,0,$AN75)*BV75) ->  | AM75: Deuda 1 | AN75: =IFERROR(D63/AP75,0) -> 1074.8 | AO75: =Control!$D$12-$H$11-1 -> 10 | AP75: =IF(Control!$D$17-$H$11<AO75,Control!$D$17-$H$11,AO75) -> 10 | AQ75: =AP75+$H$11 -> 10 | AS75: =IF($H$11>=$AS$73,0,1) -> 1 | AT75: =IF($H$11>=AT$73,0,1) -> 1 | AU75: 1 | AV75: 1 | AW75: 1 | AX75: 1 | AY75: 1 | AZ75: 1 | BA75: 1 | BB75: 1 | BC75: 1 | BD75: 1 | BE75: 1 | BF75: 1 | BG75: 1 | BH75: 1 | BI75: 1 | BJ75: 1 | BK75: 1 | BL75: 1 | BM75: 1 | BN75: 1 | BO75: 1 | BP75: 1 | BQ75: 1 | BR75: 1 | BS75: 1 | BT75: 1 | BU75: 1 | BV75: 1
B76: Deuda 2 | E76: =IF(E$13>Control!$D$12,"",IF($AQ76+1<E$13,0,$AN76)*AT76) -> 2897.793698 | F76: =IF(F$13>Control!$D$12,"",IF($AQ76+1<F$13,0,$AN76)*AU76) -> 2897.793698 | G76: =IF(G$13>Control!$D$12,"",IF($AQ76+1<G$13,0,$AN76)*AV76) -> 2897.793698 | H76: =IF(H$13>Control!$D$12,"",IF($AQ76+1<H$13,0,$AN76)*AW76) -> 2897.793698 | I76: =IF(I$13>Control!$D$12,"",IF($AQ76+1<I$13,0,$AN76)*AX76) -> 2897.793698 | J76: =IF(J$13>Control!$D$12,"",IF($AQ76+1<J$13,0,$AN76)*AY76) -> 2897.793698 | K76: =IF(K$13>Control!$D$12,"",IF($AQ76+1<K$13,0,$AN76)*AZ76) -> 2897.793698 | L76: =IF(L$13>Control!$D$12,"",IF($AQ76+1<L$13,0,$AN76)*BA76) -> 2897.793698 | M76: =IF(M$13>Control!$D$12,"",IF($AQ76+1<M$13,0,$AN76)*BB76) -> 2897.793698 | N76: =IF(N$13>Control!$D$12,"",IF($AQ76+1<N$13,0,$AN76)*BC76) -> 0 | O76: =IF(O$13>Control!$D$12,"",IF($AQ76+1<O$13,0,$AN76)*BD76) ->  | P76: =IF(P$13>Control!$D$12,"",IF($AQ76+1<P$13,0,$AN76)*BE76) ->  | Q76: =IF(Q$13>Control!$D$12,"",IF($AQ76+1<Q$13,0,$AN76)*BF76) ->  | R76: =IF(R$13>Control!$D$12,"",IF($AQ76+1<R$13,0,$AN76)*BG76) ->  | S76: =IF(S$13>Control!$D$12,"",IF($AQ76+1<S$13,0,$AN76)*BH76) ->  | T76: =IF(T$13>Control!$D$12,"",IF($AQ76+1<T$13,0,$AN76)*BI76) ->  | U76: =IF(U$13>Control!$D$12,"",IF($AQ76+1<U$13,0,$AN76)*BJ76) ->  | V76: =IF(V$13>Control!$D$12,"",IF($AQ76+1<V$13,0,$AN76)*BK76) ->  | W76: =IF(W$13>Control!$D$12,"",IF($AQ76+1<W$13,0,$AN76)*BL76) ->  | X76: =IF(X$13>Control!$D$12,"",IF($AQ76+1<X$13,0,$AN76)*BM76) ->  | Y76: =IF(Y$13>Control!$D$12,"",IF($AQ76+1<Y$13,0,$AN76)*BN76) ->  | Z76: =IF(Z$13>Control!$D$12,"",IF($AQ76+1<Z$13,0,$AN76)*BO76) ->  | AA76: =IF(AA$13>Control!$D$12,"",IF($AQ76+1<AA$13,0,$AN76)*BP76) ->  | AB76: =IF(AB$13>Control!$D$12,"",IF($AQ76+1<AB$13,0,$AN76)*BQ76) ->  | AC76: =IF(AC$13>Control!$D$12,"",IF($AQ76+1<AC$13,0,$AN76)*BR76) ->  | AD76: =IF(AD$13>Control!$D$12,"",IF($AQ76+1<AD$13,0,$AN76)*BS76) ->  | AE76: =IF(AE$13>Control!$D$12,"",IF($AQ76+1<AE$13,0,$AN76)*BT76) ->  | AF76: =IF(AF$13>Control!$D$12,"",IF($AQ76+1<AF$13,0,$AN76)*BU76) ->  | AG76: =IF(AG$13>Control!$D$12,"",IF($AQ76+1<AG$13,0,$AN76)*BV76) ->  | AM76: Deuda 2 | AN76: =IFERROR(E63/AP76,0) -> 2897.793698 | AO76: =Control!$D$12-$H$11-2 -> 9 | AP76: =IF(Control!$D$17-$H$11<AO76,Control!$D$17-$H$11,AO76) -> 9 | AQ76: =AP76+$H$11 -> 9 | AT76: =IF($H$11>=AS$73,0,1) -> 1 | AU76: 1 | AV76: 1 | AW76: 1 | AX76: 1 | AY76: 1 | AZ76: 1 | BA76: 1 | BB76: 1 | BC76: 1 | BD76: 1 | BE76: 1 | BF76: 1 | BG76: 1 | BH76: 1 | BI76: 1 | BJ76: 1 | BK76: 1 | BL76: 1 | BM76: 1 | BN76: 1 | BO76: 1 | BP76: 1 | BQ76: 1 | BR76: 1 | BS76: 1 | BT76: 1 | BU76: 1 | BV76: 1
B77: Deuda 3 | F77: =IF(F$13>Control!$D$12,"",IF($AQ77+2<F$13,0,$AN77)*AU77) -> 11220.53323 | G77: =IF(G$13>Control!$D$12,"",IF($AQ77+2<G$13,0,$AN77)*AV77) -> 11220.53323 | H77: =IF(H$13>Control!$D$12,"",IF($AQ77+2<H$13,0,$AN77)*AW77) -> 11220.53323 | I77: =IF(I$13>Control!$D$12,"",IF($AQ77+2<I$13,0,$AN77)*AX77) -> 11220.53323 | J77: =IF(J$13>Control!$D$12,"",IF($AQ77+2<J$13,0,$AN77)*AY77) -> 11220.53323 | K77: =IF(K$13>Control!$D$12,"",IF($AQ77+2<K$13,0,$AN77)*AZ77) -> 11220.53323 | L77: =IF(L$13>Control!$D$12,"",IF($AQ77+2<L$13,0,$AN77)*BA77) -> 11220.53323 | M77: =IF(M$13>Control!$D$12,"",IF($AQ77+2<M$13,0,$AN77)*BB77) -> 11220.53323 | N77: =IF(N$13>Control!$D$12,"",IF($AQ77+2<N$13,0,$AN77)*BC77) -> 0 | O77: =IF(O$13>Control!$D$12,"",IF($AQ77+2<O$13,0,$AN77)*BD77) ->  | P77: =IF(P$13>Control!$D$12,"",IF($AQ77+2<P$13,0,$AN77)*BE77) ->  | Q77: =IF(Q$13>Control!$D$12,"",IF($AQ77+2<Q$13,0,$AN77)*BF77) ->  | R77: =IF(R$13>Control!$D$12,"",IF($AQ77+2<R$13,0,$AN77)*BG77) ->  | S77: =IF(S$13>Control!$D$12,"",IF($AQ77+2<S$13,0,$AN77)*BH77) ->  | T77: =IF(T$13>Control!$D$12,"",IF($AQ77+2<T$13,0,$AN77)*BI77) ->  | U77: =IF(U$13>Control!$D$12,"",IF($AQ77+2<U$13,0,$AN77)*BJ77) ->  | V77: =IF(V$13>Control!$D$12,"",IF($AQ77+2<V$13,0,$AN77)*BK77) ->  | W77: =IF(W$13>Control!$D$12,"",IF($AQ77+2<W$13,0,$AN77)*BL77) ->  | X77: =IF(X$13>Control!$D$12,"",IF($AQ77+2<X$13,0,$AN77)*BM77) ->  | Y77: =IF(Y$13>Control!$D$12,"",IF($AQ77+2<Y$13,0,$AN77)*BN77) ->  | Z77: =IF(Z$13>Control!$D$12,"",IF($AQ77+2<Z$13,0,$AN77)*BO77) ->  | AA77: =IF(AA$13>Control!$D$12,"",IF($AQ77+2<AA$13,0,$AN77)*BP77) ->  | AB77: =IF(AB$13>Control!$D$12,"",IF($AQ77+2<AB$13,0,$AN77)*BQ77) ->  | AC77: =IF(AC$13>Control!$D$12,"",IF($AQ77+2<AC$13,0,$AN77)*BR77) ->  | AD77: =IF(AD$13>Control!$D$12,"",IF($AQ77+2<AD$13,0,$AN77)*BS77) ->  | AE77: =IF(AE$13>Control!$D$12,"",IF($AQ77+2<AE$13,0,$AN77)*BT77) ->  | AF77: =IF(AF$13>Control!$D$12,"",IF($AQ77+2<AF$13,0,$AN77)*BU77) ->  | AG77: =IF(AG$13>Control!$D$12,"",IF($AQ77+2<AG$13,0,$AN77)*BV77) ->  | AM77: Deuda 3 | AN77: =IFERROR(F63/AP77,0) -> 11220.53323 | AO77: =Control!$D$12-$H$11-3 -> 8 | AP77: =IF(Control!$D$17-$H$11<AO77,Control!$D$17-$H$11,AO77) -> 8 | AQ77: 8 | AU77: =IF($H$11>=AS$73,0,1) -> 1 | AV77: 1 | AW77: 1 | AX77: 1 | AY77: 1 | AZ77: 1 | BA77: 1 | BB77: 1 | BC77: 1 | BD77: 1 | BE77: 1 | BF77: 1 | BG77: 1 | BH77: 1 | BI77: 1 | BJ77: 1 | BK77: 1 | BL77: 1 | BM77: 1 | BN77: 1 | BO77: 1 | BP77: 1 | BQ77: 1 | BR77: 1 | BS77: 1 | BT77: 1 | BU77: 1 | BV77: 1
B78: Deuda 4 | G78: =IF(G$13>Control!$D$12,"",IF($AQ78+3<G$13,0,$AN78)*AV78) -> 0 | H78: =IF(H$13>Control!$D$12,"",IF($AQ78+3<H$13,0,$AN78)*AW78) -> 0 | I78: =IF(I$13>Control!$D$12,"",IF($AQ78+3<I$13,0,$AN78)*AX78) -> 0 | J78: =IF(J$13>Control!$D$12,"",IF($AQ78+3<J$13,0,$AN78)*AY78) -> 0 | K78: =IF(K$13>Control!$D$12,"",IF($AQ78+3<K$13,0,$AN78)*AZ78) -> 0 | L78: =IF(L$13>Control!$D$12,"",IF($AQ78+3<L$13,0,$AN78)*BA78) -> 0 | M78: =IF(M$13>Control!$D$12,"",IF($AQ78+3<M$13,0,$AN78)*BB78) -> 0 | N78: =IF(N$13>Control!$D$12,"",IF($AQ78+3<N$13,0,$AN78)*BC78) -> 0 | O78: =IF(O$13>Control!$D$12,"",IF($AQ78+3<O$13,0,$AN78)*BD78) ->  | P78: =IF(P$13>Control!$D$12,"",IF($AQ78+3<P$13,0,$AN78)*BE78) ->  | Q78: =IF(Q$13>Control!$D$12,"",IF($AQ78+3<Q$13,0,$AN78)*BF78) ->  | R78: =IF(R$13>Control!$D$12,"",IF($AQ78+3<R$13,0,$AN78)*BG78) ->  | S78: =IF(S$13>Control!$D$12,"",IF($AQ78+3<S$13,0,$AN78)*BH78) ->  | T78: =IF(T$13>Control!$D$12,"",IF($AQ78+3<T$13,0,$AN78)*BI78) ->  | U78: =IF(U$13>Control!$D$12,"",IF($AQ78+3<U$13,0,$AN78)*BJ78) ->  | V78: =IF(V$13>Control!$D$12,"",IF($AQ78+3<V$13,0,$AN78)*BK78) ->  | W78: =IF(W$13>Control!$D$12,"",IF($AQ78+3<W$13,0,$AN78)*BL78) ->  | X78: =IF(X$13>Control!$D$12,"",IF($AQ78+3<X$13,0,$AN78)*BM78) ->  | Y78: =IF(Y$13>Control!$D$12,"",IF($AQ78+3<Y$13,0,$AN78)*BN78) ->  | Z78: =IF(Z$13>Control!$D$12,"",IF($AQ78+3<Z$13,0,$AN78)*BO78) ->  | AA78: =IF(AA$13>Control!$D$12,"",IF($AQ78+3<AA$13,0,$AN78)*BP78) ->  | AB78: =IF(AB$13>Control!$D$12,"",IF($AQ78+3<AB$13,0,$AN78)*BQ78) ->  | AC78: =IF(AC$13>Control!$D$12,"",IF($AQ78+3<AC$13,0,$AN78)*BR78) ->  | AD78: =IF(AD$13>Control!$D$12,"",IF($AQ78+3<AD$13,0,$AN78)*BS78) ->  | AE78: =IF(AE$13>Control!$D$12,"",IF($AQ78+3<AE$13,0,$AN78)*BT78) ->  | AF78: =IF(AF$13>Control!$D$12,"",IF($AQ78+3<AF$13,0,$AN78)*BU78) ->  | AG78: =IF(AG$13>Control!$D$12,"",IF($AQ78+3<AG$13,0,$AN78)*BV78) ->  | AM78: Deuda 4 | AN78: =IFERROR(G63/AP78,0) -> 0 | AO78: =Control!$D$12-$H$11-4 -> 7 | AP78: =IF(Control!$D$17-$H$11<AO78,Control!$D$17-$H$11,AO78) -> 7 | AQ78: 7 | AV78: =IF($H$11>=AS$73,0,1) -> 1 | AW78: 1 | AX78: 1 | AY78: 1 | AZ78: 1 | BA78: 1 | BB78: 1 | BC78: 1 | BD78: 1 | BE78: 1 | BF78: 1 | BG78: 1 | BH78: 1 | BI78: 1 | BJ78: 1 | BK78: 1 | BL78: 1 | BM78: 1 | BN78: 1 | BO78: 1 | BP78: 1 | BQ78: 1 | BR78: 1 | BS78: 1 | BT78: 1 | BU78: 1 | BV78: 1
B79: Deuda 5 | H79: =IF(H$13>Control!$D$12,"",IF($AQ79+4<H$13,0,$AN79)*AW79) -> 0 | I79: =IF(I$13>Control!$D$12,"",IF($AQ79+4<I$13,0,$AN79)*AX79) -> 0 | J79: =IF(J$13>Control!$D$12,"",IF($AQ79+4<J$13,0,$AN79)*AY79) -> 0 | K79: =IF(K$13>Control!$D$12,"",IF($AQ79+4<K$13,0,$AN79)*AZ79) -> 0 | L79: =IF(L$13>Control!$D$12,"",IF($AQ79+4<L$13,0,$AN79)*BA79) -> 0 | M79: =IF(M$13>Control!$D$12,"",IF($AQ79+4<M$13,0,$AN79)*BB79) -> 0 | N79: =IF(N$13>Control!$D$12,"",IF($AQ79+4<N$13,0,$AN79)*BC79) -> 0 | O79: =IF(O$13>Control!$D$12,"",IF($AQ79+4<O$13,0,$AN79)*BD79) ->  | P79: =IF(P$13>Control!$D$12,"",IF($AQ79+4<P$13,0,$AN79)*BE79) ->  | Q79: =IF(Q$13>Control!$D$12,"",IF($AQ79+4<Q$13,0,$AN79)*BF79) ->  | R79: =IF(R$13>Control!$D$12,"",IF($AQ79+4<R$13,0,$AN79)*BG79) ->  | S79: =IF(S$13>Control!$D$12,"",IF($AQ79+4<S$13,0,$AN79)*BH79) ->  | T79: =IF(T$13>Control!$D$12,"",IF($AQ79+4<T$13,0,$AN79)*BI79) ->  | U79: =IF(U$13>Control!$D$12,"",IF($AQ79+4<U$13,0,$AN79)*BJ79) ->  | V79: =IF(V$13>Control!$D$12,"",IF($AQ79+4<V$13,0,$AN79)*BK79) ->  | W79: =IF(W$13>Control!$D$12,"",IF($AQ79+4<W$13,0,$AN79)*BL79) ->  | X79: =IF(X$13>Control!$D$12,"",IF($AQ79+4<X$13,0,$AN79)*BM79) ->  | Y79: =IF(Y$13>Control!$D$12,"",IF($AQ79+4<Y$13,0,$AN79)*BN79) ->  | Z79: =IF(Z$13>Control!$D$12,"",IF($AQ79+4<Z$13,0,$AN79)*BO79) ->  | AA79: =IF(AA$13>Control!$D$12,"",IF($AQ79+4<AA$13,0,$AN79)*BP79) ->  | AB79: =IF(AB$13>Control!$D$12,"",IF($AQ79+4<AB$13,0,$AN79)*BQ79) ->  | AC79: =IF(AC$13>Control!$D$12,"",IF($AQ79+4<AC$13,0,$AN79)*BR79) ->  | AD79: =IF(AD$13>Control!$D$12,"",IF($AQ79+4<AD$13,0,$AN79)*BS79) ->  | AE79: =IF(AE$13>Control!$D$12,"",IF($AQ79+4<AE$13,0,$AN79)*BT79) ->  | AF79: =IF(AF$13>Control!$D$12,"",IF($AQ79+4<AF$13,0,$AN79)*BU79) ->  | AG79: =IF(AG$13>Control!$D$12,"",IF($AQ79+4<AG$13,0,$AN79)*BV79) ->  | AM79: Deuda 5 | AN79: =IFERROR(H63/AP79,0) -> 0 | AO79: =Control!$D$12-$H$11-5 -> 6 | AP79: =IF(Control!$D$17-$H$11<AO79,Control!$D$17-$H$11,AO79) -> 6 | AQ79: 6 | AW79: =IF($H$11>=AS$73,0,1) -> 1 | AX79: 1 | AY79: 1 | AZ79: 1 | BA79: 1 | BB79: 1 | BC79: 1 | BD79: 1 | BE79: 1 | BF79: 1 | BG79: 1 | BH79: 1 | BI79: 1 | BJ79: 1 | BK79: 1 | BL79: 1 | BM79: 1 | BN79: 1 | BO79: 1 | BP79: 1 | BQ79: 1 | BR79: 1 | BS79: 1 | BT79: 1 | BU79: 1 | BV79: 1
B80: Deuda 6 | I80: =IF(I$13>Control!$D$12,"",IF($AQ80+5<I$13,0,$AN80)*AX80) -> 0 | J80: =IF(J$13>Control!$D$12,"",IF($AQ80+5<J$13,0,$AN80)*AY80) -> 0 | K80: =IF(K$13>Control!$D$12,"",IF($AQ80+5<K$13,0,$AN80)*AZ80) -> 0 | L80: =IF(L$13>Control!$D$12,"",IF($AQ80+5<L$13,0,$AN80)*BA80) -> 0 | M80: =IF(M$13>Control!$D$12,"",IF($AQ80+5<M$13,0,$AN80)*BB80) -> 0 | N80: =IF(N$13>Control!$D$12,"",IF($AQ80+5<N$13,0,$AN80)*BC80) -> 0 | O80: =IF(O$13>Control!$D$12,"",IF($AQ80+5<O$13,0,$AN80)*BD80) ->  | P80: =IF(P$13>Control!$D$12,"",IF($AQ80+5<P$13,0,$AN80)*BE80) ->  | Q80: =IF(Q$13>Control!$D$12,"",IF($AQ80+5<Q$13,0,$AN80)*BF80) ->  | R80: =IF(R$13>Control!$D$12,"",IF($AQ80+5<R$13,0,$AN80)*BG80) ->  | S80: =IF(S$13>Control!$D$12,"",IF($AQ80+5<S$13,0,$AN80)*BH80) ->  | T80: =IF(T$13>Control!$D$12,"",IF($AQ80+5<T$13,0,$AN80)*BI80) ->  | U80: =IF(U$13>Control!$D$12,"",IF($AQ80+5<U$13,0,$AN80)*BJ80) ->  | V80: =IF(V$13>Control!$D$12,"",IF($AQ80+5<V$13,0,$AN80)*BK80) ->  | W80: =IF(W$13>Control!$D$12,"",IF($AQ80+5<W$13,0,$AN80)*BL80) ->  | X80: =IF(X$13>Control!$D$12,"",IF($AQ80+5<X$13,0,$AN80)*BM80) ->  | Y80: =IF(Y$13>Control!$D$12,"",IF($AQ80+5<Y$13,0,$AN80)*BN80) ->  | Z80: =IF(Z$13>Control!$D$12,"",IF($AQ80+5<Z$13,0,$AN80)*BO80) ->  | AA80: =IF(AA$13>Control!$D$12,"",IF($AQ80+5<AA$13,0,$AN80)*BP80) ->  | AB80: =IF(AB$13>Control!$D$12,"",IF($AQ80+5<AB$13,0,$AN80)*BQ80) ->  | AC80: =IF(AC$13>Control!$D$12,"",IF($AQ80+5<AC$13,0,$AN80)*BR80) ->  | AD80: =IF(AD$13>Control!$D$12,"",IF($AQ80+5<AD$13,0,$AN80)*BS80) ->  | AE80: =IF(AE$13>Control!$D$12,"",IF($AQ80+5<AE$13,0,$AN80)*BT80) ->  | AF80: =IF(AF$13>Control!$D$12,"",IF($AQ80+5<AF$13,0,$AN80)*BU80) ->  | AG80: =IF(AG$13>Control!$D$12,"",IF($AQ80+5<AG$13,0,$AN80)*BV80) ->  | AM80: Deuda 6 | AN80: =IFERROR(I63/AP80,0) -> 0 | AO80: =Control!$D$12-$H$11-6 -> 5 | AP80: =IF(Control!$D$17-$H$11<AO80,Control!$D$17-$H$11,AO80) -> 5 | AQ80: 5 | AX80: =IF($H$11>=AS$73,0,1) -> 1 | AY80: 1 | AZ80: 1 | BA80: 1 | BB80: 1 | BC80: 1 | BD80: 1 | BE80: 1 | BF80: 1 | BG80: 1 | BH80: 1 | BI80: 1 | BJ80: 1 | BK80: 1 | BL80: 1 | BM80: 1 | BN80: 1 | BO80: 1 | BP80: 1 | BQ80: 1 | BR80: 1 | BS80: 1 | BT80: 1 | BU80: 1 | BV80: 1
B81: Intereses | D81: =((1+H9*1.8)*(1+Control!$D$19)-1)*D73 -> 1146.8116 | E81: =IF(E13<=Control!$D$12,$H$10*E73,"") -> 3814.881728 | F81: =IF(F13<=Control!$D$12,$H$10*F73,"") -> 12968.85315 | G81: =IF(G13<=Control!$D$12,$H$10*G73,"") -> 11347.7465 | H81: =IF(H13<=Control!$D$12,$H$10*H73,"") -> 9726.639861 | I81: =IF(I13<=Control!$D$12,$H$10*I73,"") -> 8105.533217 | J81: =IF(J13<=Control!$D$12,$H$10*J73,"") -> 6484.426574 | K81: =IF(K13<=Control!$D$12,$H$10*K73,"") -> 4863.31993 | L81: =IF(L13<=Control!$D$12,$H$10*L73,"") -> 3242.213287 | M81: =IF(M13<=Control!$D$12,$H$10*M73,"") -> 1621.106643 | N81: =IF(N13<=Control!$D$12,$H$10*N73,"") -> 1.940861694e-12 | O81: =IF(O13<=Control!$D$12,$H$10*O73,"") ->  | P81: =IF(P13<=Control!$D$12,$H$10*P73,"") ->  | Q81: =IF(Q13<=Control!$D$12,$H$10*Q73,"") ->  | R81: =IF(R13<=Control!$D$12,$H$10*R73,"") ->  | S81: =IF(S13<=Control!$D$12,$H$10*S73,"") ->  | T81: =IF(T13<=Control!$D$12,$H$10*T73,"") ->  | U81: =IF(U13<=Control!$D$12,$H$10*U73,"") ->  | V81: =IF(V13<=Control!$D$12,$H$10*V73,"") ->  | W81: =IF(W13<=Control!$D$12,$H$10*W73,"") ->  | X81: =IF(X13<=Control!$D$12,$H$10*X73,"") ->  | Y81: =IF(Y13<=Control!$D$12,$H$10*Y73,"") ->  | Z81: =IF(Z13<=Control!$D$12,$H$10*Z73,"") ->  | AA81: =IF(AA13<=Control!$D$12,$H$10*AA73,"") ->  | AB81: =IF(AB13<=Control!$D$12,$H$10*AB73,"") ->  | AC81: =IF(AC13<=Control!$D$12,$H$10*AC73,"") ->  | AD81: =IF(AD13<=Control!$D$12,$H$10*AD73,"") ->  | AE81: =IF(AE13<=Control!$D$12,$H$10*AE73,"") ->  | AF81: =IF(AF13<=Control!$D$12,$H$10*AF73,"") ->  | AG81: =IF(AG13<=Control!$D$12,$H$10*AG73,"") -> 
B82: Saldo Deuda | D82: =D73-D74 -> 9673.2 | E82: =IF(E13<=Control!$D$12,E73-E74,"") -> 31780.74958 | F82: =IF(F13<=Control!$D$12,F73-F74,"") -> 106351.8885 | G82: =IF(G13<=Control!$D$12,G73-G74,"") -> 91158.76158 | H82: =IF(H13<=Control!$D$12,H73-H74,"") -> 75965.63465 | I82: =IF(I13<=Control!$D$12,I73-I74,"") -> 60772.50772 | J82: =IF(J13<=Control!$D$12,J73-J74,"") -> 45579.38079 | K82: =IF(K13<=Control!$D$12,K73-K74,"") -> 30386.25386 | L82: =IF(L13<=Control!$D$12,L73-L74,"") -> 15193.12693 | M82: =IF(M13<=Control!$D$12,M73-M74,"") -> 1.818989404e-11 | N82: =IF(N13<=Control!$D$12,N73-N74,"") -> 1.818989404e-11 | O82: =IF(O13<=Control!$D$12,O73-O74,"") ->  | P82: =IF(P13<=Control!$D$12,P73-P74,"") ->  | Q82: =IF(Q13<=Control!$D$12,Q73-Q74,"") ->  | R82: =IF(R13<=Control!$D$12,R73-R74,"") ->  | S82: =IF(S13<=Control!$D$12,S73-S74,"") ->  | T82: =IF(T13<=Control!$D$12,T73-T74,"") ->  | U82: =IF(U13<=Control!$D$12,U73-U74,"") ->  | V82: =IF(V13<=Control!$D$12,V73-V74,"") ->  | W82: =IF(W13<=Control!$D$12,W73-W74,"") ->  | X82: =IF(X13<=Control!$D$12,X73-X74,"") ->  | Y82: =IF(Y13<=Control!$D$12,Y73-Y74,"") ->  | Z82: =IF(Z13<=Control!$D$12,Z73-Z74,"") ->  | AA82: =IF(AA13<=Control!$D$12,AA73-AA74,"") ->  | AB82: =IF(AB13<=Control!$D$12,AB73-AB74,"") ->  | AC82: =IF(AC13<=Control!$D$12,AC73-AC74,"") ->  | AD82: =IF(AD13<=Control!$D$12,AD73-AD74,"") ->  | AE82: =IF(AE13<=Control!$D$12,AE73-AE74,"") ->  | AF82: =IF(AF13<=Control!$D$12,AF73-AF74,"") ->  | AG82: =IF(AG13<=Control!$D$12,AG73-AG74,"") -> 
B84: --- Depreciación | D84: Total
B85: Infraestructura año 1 | C85: =IF(Control!$D$12-1>20,20,Control!$D$12-1) -> 10 | D85: =IF(Control!D9="Si",Control!G17,Control!G9+Control!G17) -> 12435 | E85: =IF(E13<=Control!$D$12,IF(E$13-2<$C85,$D85/$C85,0),"") -> 1243.5 | F85: =IF(F13<=Control!$D$12,IF(F$13-2<$C85,$D85/$C85,0),"") -> 1243.5 | G85: =IF(G13<=Control!$D$12,IF(G$13-2<$C85,$D85/$C85,0),"") -> 1243.5 | H85: =IF(H13<=Control!$D$12,IF(H$13-2<$C85,$D85/$C85,0),"") -> 1243.5 | I85: =IF(I13<=Control!$D$12,IF(I$13-2<$C85,$D85/$C85,0),"") -> 1243.5 | J85: =IF(J13<=Control!$D$12,IF(J$13-2<$C85,$D85/$C85,0),"") -> 1243.5 | K85: =IF(K13<=Control!$D$12,IF(K$13-2<$C85,$D85/$C85,0),"") -> 1243.5 | L85: =IF(L13<=Control!$D$12,IF(L$13-2<$C85,$D85/$C85,0),"") -> 1243.5 | M85: =IF(M13<=Control!$D$12,IF(M$13-2<$C85,$D85/$C85,0),"") -> 1243.5 | N85: =IF(N13<=Control!$D$12,IF(N$13-2<$C85,$D85/$C85,0),"") -> 1243.5 | O85: =IF(O13<=Control!$D$12,IF(O$13-2<$C85,$D85/$C85,0),"") ->  | P85: =IF(P13<=Control!$D$12,IF(P$13-2<$C85,$D85/$C85,0),"") ->  | Q85: =IF(Q13<=Control!$D$12,IF(Q$13-2<$C85,$D85/$C85,0),"") ->  | R85: =IF(R13<=Control!$D$12,IF(R$13-2<$C85,$D85/$C85,0),"") ->  | S85: =IF(S13<=Control!$D$12,IF(S$13-2<$C85,$D85/$C85,0),"") ->  | T85: =IF(T13<=Control!$D$12,IF(T$13-2<$C85,$D85/$C85,0),"") ->  | U85: =IF(U13<=Control!$D$12,IF(U$13-2<$C85,$D85/$C85,0),"") ->  | V85: =IF(V13<=Control!$D$12,IF(V$13-2<$C85,$D85/$C85,0),"") ->  | W85: =IF(W13<=Control!$D$12,IF(W$13-2<$C85,$D85/$C85,0),"") ->  | X85: =IF(X13<=Control!$D$12,IF(X$13-2<$C85,$D85/$C85,0),"") ->  | Y85: =IF(Y13<=Control!$D$12,IF(Y$13-2<$C85,$D85/$C85,0),"") ->  | Z85: =IF(Z13<=Control!$D$12,IF(Z$13-2<$C85,$D85/$C85,0),"") ->  | AA85: =IF(AA13<=Control!$D$12,IF(AA$13-2<$C85,$D85/$C85,0),"") ->  | AB85: =IF(AB13<=Control!$D$12,IF(AB$13-2<$C85,$D85/$C85,0),"") ->  | AC85: =IF(AC13<=Control!$D$12,IF(AC$13-2<$C85,$D85/$C85,0),"") ->  | AD85: =IF(AD13<=Control!$D$12,IF(AD$13-2<$C85,$D85/$C85,0),"") ->  | AE85: =IF(AE13<=Control!$D$12,IF(AE$13-2<$C85,$D85/$C85,0),"") ->  | AF85: =IF(AF13<=Control!$D$12,IF(AF$13-2<$C85,$D85/$C85,0),"") ->  | AG85: =IF(AG13<=Control!$D$12,IF(AG$13-2<$C85,$D85/$C85,0),"") -> 
B86: Infraestructura año 2 | C86: =IF(Control!$D$12-2>20,20,Control!$D$12-2) -> 9 | D86: =IF(E13<=Control!D10+(Control!D9="Si")*1,IF(Control!D9="Si",Control!G9,Control!G10),0) -> 30290 | F86: =IF(F13<=Control!$D$12,IF(F$13-3<$C86,$D86/$C86,0),"") -> 3365.555556 | G86: =IF(G13<=Control!$D$12,IF(G$13-3<$C86,$D86/$C86,0),"") -> 3365.555556 | H86: =IF(H13<=Control!$D$12,IF(H$13-3<$C86,$D86/$C86,0),"") -> 3365.555556 | I86: =IF(I13<=Control!$D$12,IF(I$13-3<$C86,$D86/$C86,0),"") -> 3365.555556 | J86: =IF(J13<=Control!$D$12,IF(J$13-3<$C86,$D86/$C86,0),"") -> 3365.555556 | K86: =IF(K13<=Control!$D$12,IF(K$13-3<$C86,$D86/$C86,0),"") -> 3365.555556 | L86: =IF(L13<=Control!$D$12,IF(L$13-3<$C86,$D86/$C86,0),"") -> 3365.555556 | M86: =IF(M13<=Control!$D$12,IF(M$13-3<$C86,$D86/$C86,0),"") -> 3365.555556 | N86: =IF(N13<=Control!$D$12,IF(N$13-3<$C86,$D86/$C86,0),"") -> 3365.555556 | O86: =IF(O13<=Control!$D$12,IF(O$13-3<$C86,$D86/$C86,0),"") ->  | P86: =IF(P13<=Control!$D$12,IF(P$13-3<$C86,$D86/$C86,0),"") ->  | Q86: =IF(Q13<=Control!$D$12,IF(Q$13-3<$C86,$D86/$C86,0),"") ->  | R86: =IF(R13<=Control!$D$12,IF(R$13-3<$C86,$D86/$C86,0),"") ->  | S86: =IF(S13<=Control!$D$12,IF(S$13-3<$C86,$D86/$C86,0),"") ->  | T86: =IF(T13<=Control!$D$12,IF(T$13-3<$C86,$D86/$C86,0),"") ->  | U86: =IF(U13<=Control!$D$12,IF(U$13-3<$C86,$D86/$C86,0),"") ->  | V86: =IF(V13<=Control!$D$12,IF(V$13-3<$C86,$D86/$C86,0),"") ->  | W86: =IF(W13<=Control!$D$12,IF(W$13-3<$C86,$D86/$C86,0),"") ->  | X86: =IF(X13<=Control!$D$12,IF(X$13-3<$C86,$D86/$C86,0),"") ->  | Y86: =IF(Y13<=Control!$D$12,IF(Y$13-3<$C86,$D86/$C86,0),"") ->  | Z86: =IF(Z13<=Control!$D$12,IF(Z$13-3<$C86,$D86/$C86,0),"") ->  | AA86: =IF(AA13<=Control!$D$12,IF(AA$13-3<$C86,$D86/$C86,0),"") ->  | AB86: =IF(AB13<=Control!$D$12,IF(AB$13-3<$C86,$D86/$C86,0),"") ->  | AC86: =IF(AC13<=Control!$D$12,IF(AC$13-3<$C86,$D86/$C86,0),"") ->  | AD86: =IF(AD13<=Control!$D$12,IF(AD$13-3<$C86,$D86/$C86,0),"") ->  | AE86: =IF(AE13<=Control!$D$12,IF(AE$13-3<$C86,$D86/$C86,0),"") ->  | AF86: =IF(AF13<=Control!$D$12,IF(AF$13-3<$C86,$D86/$C86,0),"") ->  | AG86: =IF(AG13<=Control!$D$12,IF(AG$13-3<$C86,$D86/$C86,0),"") -> 
B87: Infraestructura año 3 | C87: =IF(Control!$D$12-3>20,20,Control!$D$12-3) -> 8 | D87: =IF(F13<=Control!D10+(Control!D9="Si")*1,IF(Control!D9="Si",Control!G10,Control!G11),0) -> 104218 | G87: =IF(G13<=Control!$D$12,IF(G$13-4<$C87,$D87/$C87,0),"") -> 13027.25 | H87: =IF(H13<=Control!$D$12,IF(H$13-4<$C87,$D87/$C87,0),"") -> 13027.25 | I87: =IF(I13<=Control!$D$12,IF(I$13-4<$C87,$D87/$C87,0),"") -> 13027.25 | J87: =IF(J13<=Control!$D$12,IF(J$13-4<$C87,$D87/$C87,0),"") -> 13027.25 | K87: =IF(K13<=Control!$D$12,IF(K$13-4<$C87,$D87/$C87,0),"") -> 13027.25 | L87: =IF(L13<=Control!$D$12,IF(L$13-4<$C87,$D87/$C87,0),"") -> 13027.25 | M87: =IF(M13<=Control!$D$12,IF(M$13-4<$C87,$D87/$C87,0),"") -> 13027.25 | N87: =IF(N13<=Control!$D$12,IF(N$13-4<$C87,$D87/$C87,0),"") -> 13027.25 | O87: =IF(O13<=Control!$D$12,IF(O$13-4<$C87,$D87/$C87,0),"") ->  | P87: =IF(P13<=Control!$D$12,IF(P$13-4<$C87,$D87/$C87,0),"") ->  | Q87: =IF(Q13<=Control!$D$12,IF(Q$13-4<$C87,$D87/$C87,0),"") ->  | R87: =IF(R13<=Control!$D$12,IF(R$13-4<$C87,$D87/$C87,0),"") ->  | S87: =IF(S13<=Control!$D$12,IF(S$13-4<$C87,$D87/$C87,0),"") ->  | T87: =IF(T13<=Control!$D$12,IF(T$13-4<$C87,$D87/$C87,0),"") ->  | U87: =IF(U13<=Control!$D$12,IF(U$13-4<$C87,$D87/$C87,0),"") ->  | V87: =IF(V13<=Control!$D$12,IF(V$13-4<$C87,$D87/$C87,0),"") ->  | W87: =IF(W13<=Control!$D$12,IF(W$13-4<$C87,$D87/$C87,0),"") ->  | X87: =IF(X13<=Control!$D$12,IF(X$13-4<$C87,$D87/$C87,0),"") ->  | Y87: =IF(Y13<=Control!$D$12,IF(Y$13-4<$C87,$D87/$C87,0),"") ->  | Z87: =IF(Z13<=Control!$D$12,IF(Z$13-4<$C87,$D87/$C87,0),"") ->  | AA87: =IF(AA13<=Control!$D$12,IF(AA$13-4<$C87,$D87/$C87,0),"") ->  | AB87: =IF(AB13<=Control!$D$12,IF(AB$13-4<$C87,$D87/$C87,0),"") ->  | AC87: =IF(AC13<=Control!$D$12,IF(AC$13-4<$C87,$D87/$C87,0),"") ->  | AD87: =IF(AD13<=Control!$D$12,IF(AD$13-4<$C87,$D87/$C87,0),"") ->  | AE87: =IF(AE13<=Control!$D$12,IF(AE$13-4<$C87,$D87/$C87,0),"") ->  | AF87: =IF(AF13<=Control!$D$12,IF(AF$13-4<$C87,$D87/$C87,0),"") ->  | AG87: =IF(AG13<=Control!$D$12,IF(AG$13-4<$C87,$D87/$C87,0),"") -> 
B88: Infraestructura año 4 | C88: =IF(Control!$D$12-4>20,20,Control!$D$12-4) -> 7 | D88: =IF(G13<=Control!D10+(Control!D9="Si")*1,IF(Control!D9="Si",Control!G11,Control!G12),0) -> 0 | H88: =IF(H13<=Control!$D$12,IF(H$13-5<$C88,$D88/$C88,0),"") -> 0 | I88: =IF(I13<=Control!$D$12,IF(I$13-5<$C88,$D88/$C88,0),"") -> 0 | J88: =IF(J13<=Control!$D$12,IF(J$13-5<$C88,$D88/$C88,0),"") -> 0 | K88: =IF(K13<=Control!$D$12,IF(K$13-5<$C88,$D88/$C88,0),"") -> 0 | L88: =IF(L13<=Control!$D$12,IF(L$13-5<$C88,$D88/$C88,0),"") -> 0 | M88: =IF(M13<=Control!$D$12,IF(M$13-5<$C88,$D88/$C88,0),"") -> 0 | N88: =IF(N13<=Control!$D$12,IF(N$13-5<$C88,$D88/$C88,0),"") -> 0 | O88: =IF(O13<=Control!$D$12,IF(O$13-5<$C88,$D88/$C88,0),"") ->  | P88: =IF(P13<=Control!$D$12,IF(P$13-5<$C88,$D88/$C88,0),"") ->  | Q88: =IF(Q13<=Control!$D$12,IF(Q$13-5<$C88,$D88/$C88,0),"") ->  | R88: =IF(R13<=Control!$D$12,IF(R$13-5<$C88,$D88/$C88,0),"") ->  | S88: =IF(S13<=Control!$D$12,IF(S$13-5<$C88,$D88/$C88,0),"") ->  | T88: =IF(T13<=Control!$D$12,IF(T$13-5<$C88,$D88/$C88,0),"") ->  | U88: =IF(U13<=Control!$D$12,IF(U$13-5<$C88,$D88/$C88,0),"") ->  | V88: =IF(V13<=Control!$D$12,IF(V$13-5<$C88,$D88/$C88,0),"") ->  | W88: =IF(W13<=Control!$D$12,IF(W$13-5<$C88,$D88/$C88,0),"") ->  | X88: =IF(X13<=Control!$D$12,IF(X$13-5<$C88,$D88/$C88,0),"") ->  | Y88: =IF(Y13<=Control!$D$12,IF(Y$13-5<$C88,$D88/$C88,0),"") ->  | Z88: =IF(Z13<=Control!$D$12,IF(Z$13-5<$C88,$D88/$C88,0),"") ->  | AA88: =IF(AA13<=Control!$D$12,IF(AA$13-5<$C88,$D88/$C88,0),"") ->  | AB88: =IF(AB13<=Control!$D$12,IF(AB$13-5<$C88,$D88/$C88,0),"") ->  | AC88: =IF(AC13<=Control!$D$12,IF(AC$13-5<$C88,$D88/$C88,0),"") ->  | AD88: =IF(AD13<=Control!$D$12,IF(AD$13-5<$C88,$D88/$C88,0),"") ->  | AE88: =IF(AE13<=Control!$D$12,IF(AE$13-5<$C88,$D88/$C88,0),"") ->  | AF88: =IF(AF13<=Control!$D$12,IF(AF$13-5<$C88,$D88/$C88,0),"") ->  | AG88: =IF(AG13<=Control!$D$12,IF(AG$13-5<$C88,$D88/$C88,0),"") -> 
B89: Infraestructura año 5 | C89: =IF(Control!$D$12-5>20,20,Control!$D$12-5) -> 6 | D89: =IF(H13<=Control!D10+(Control!D9="Si")*1,IF(Control!D9="Si",Control!G12,Control!G13),0) -> 0 | I89: =IF(I13<=Control!$D$12,IF(I$13-6<$C89,$D89/$C89,0),"") -> 0 | J89: =IF(J13<=Control!$D$12,IF(J$13-6<$C89,$D89/$C89,0),"") -> 0 | K89: =IF(K13<=Control!$D$12,IF(K$13-6<$C89,$D89/$C89,0),"") -> 0 | L89: =IF(L13<=Control!$D$12,IF(L$13-6<$C89,$D89/$C89,0),"") -> 0 | M89: =IF(M13<=Control!$D$12,IF(M$13-6<$C89,$D89/$C89,0),"") -> 0 | N89: =IF(N13<=Control!$D$12,IF(N$13-6<$C89,$D89/$C89,0),"") -> 0 | O89: =IF(O13<=Control!$D$12,IF(O$13-6<$C89,$D89/$C89,0),"") ->  | P89: =IF(P13<=Control!$D$12,IF(P$13-6<$C89,$D89/$C89,0),"") ->  | Q89: =IF(Q13<=Control!$D$12,IF(Q$13-6<$C89,$D89/$C89,0),"") ->  | R89: =IF(R13<=Control!$D$12,IF(R$13-6<$C89,$D89/$C89,0),"") ->  | S89: =IF(S13<=Control!$D$12,IF(S$13-6<$C89,$D89/$C89,0),"") ->  | T89: =IF(T13<=Control!$D$12,IF(T$13-6<$C89,$D89/$C89,0),"") ->  | U89: =IF(U13<=Control!$D$12,IF(U$13-6<$C89,$D89/$C89,0),"") ->  | V89: =IF(V13<=Control!$D$12,IF(V$13-6<$C89,$D89/$C89,0),"") ->  | W89: =IF(W13<=Control!$D$12,IF(W$13-6<$C89,$D89/$C89,0),"") ->  | X89: =IF(X13<=Control!$D$12,IF(X$13-6<$C89,$D89/$C89,0),"") ->  | Y89: =IF(Y13<=Control!$D$12,IF(Y$13-6<$C89,$D89/$C89,0),"") ->  | Z89: =IF(Z13<=Control!$D$12,IF(Z$13-6<$C89,$D89/$C89,0),"") ->  | AA89: =IF(AA13<=Control!$D$12,IF(AA$13-6<$C89,$D89/$C89,0),"") ->  | AB89: =IF(AB13<=Control!$D$12,IF(AB$13-6<$C89,$D89/$C89,0),"") ->  | AC89: =IF(AC13<=Control!$D$12,IF(AC$13-6<$C89,$D89/$C89,0),"") ->  | AD89: =IF(AD13<=Control!$D$12,IF(AD$13-6<$C89,$D89/$C89,0),"") ->  | AE89: =IF(AE13<=Control!$D$12,IF(AE$13-6<$C89,$D89/$C89,0),"") ->  | AF89: =IF(AF13<=Control!$D$12,IF(AF$13-6<$C89,$D89/$C89,0),"") ->  | AG89: =IF(AG13<=Control!$D$12,IF(AG$13-6<$C89,$D89/$C89,0),"") -> 
B90: Infraestructura año 6 | C90: =IF(Control!$D$12-6>20,20,Control!$D$12-6) -> 5 | D90: =IF(I13<=Control!D10+(Control!D9="Si")*1,IF(Control!D9="Si",Control!G13,0),0) -> 0 | J90: =IF(J13<=Control!$D$12,IF(J$13-7<$C90,$D90/$C90,0),"") -> 0 | K90: =IF(K13<=Control!$D$12,IF(K$13-7<$C90,$D90/$C90,0),"") -> 0 | L90: =IF(L13<=Control!$D$12,IF(L$13-7<$C90,$D90/$C90,0),"") -> 0 | M90: =IF(M13<=Control!$D$12,IF(M$13-7<$C90,$D90/$C90,0),"") -> 0 | N90: =IF(N13<=Control!$D$12,IF(N$13-7<$C90,$D90/$C90,0),"") -> 0 | O90: =IF(O13<=Control!$D$12,IF(O$13-7<$C90,$D90/$C90,0),"") ->  | P90: =IF(P13<=Control!$D$12,IF(P$13-7<$C90,$D90/$C90,0),"") ->  | Q90: =IF(Q13<=Control!$D$12,IF(Q$13-7<$C90,$D90/$C90,0),"") ->  | R90: =IF(R13<=Control!$D$12,IF(R$13-7<$C90,$D90/$C90,0),"") ->  | S90: =IF(S13<=Control!$D$12,IF(S$13-7<$C90,$D90/$C90,0),"") ->  | T90: =IF(T13<=Control!$D$12,IF(T$13-7<$C90,$D90/$C90,0),"") ->  | U90: =IF(U13<=Control!$D$12,IF(U$13-7<$C90,$D90/$C90,0),"") ->  | V90: =IF(V13<=Control!$D$12,IF(V$13-7<$C90,$D90/$C90,0),"") ->  | W90: =IF(W13<=Control!$D$12,IF(W$13-7<$C90,$D90/$C90,0),"") ->  | X90: =IF(X13<=Control!$D$12,IF(X$13-7<$C90,$D90/$C90,0),"") ->  | Y90: =IF(Y13<=Control!$D$12,IF(Y$13-7<$C90,$D90/$C90,0),"") ->  | Z90: =IF(Z13<=Control!$D$12,IF(Z$13-7<$C90,$D90/$C90,0),"") ->  | AA90: =IF(AA13<=Control!$D$12,IF(AA$13-7<$C90,$D90/$C90,0),"") ->  | AB90: =IF(AB13<=Control!$D$12,IF(AB$13-7<$C90,$D90/$C90,0),"") ->  | AC90: =IF(AC13<=Control!$D$12,IF(AC$13-7<$C90,$D90/$C90,0),"") ->  | AD90: =IF(AD13<=Control!$D$12,IF(AD$13-7<$C90,$D90/$C90,0),"") ->  | AE90: =IF(AE13<=Control!$D$12,IF(AE$13-7<$C90,$D90/$C90,0),"") ->  | AF90: =IF(AF13<=Control!$D$12,IF(AF$13-7<$C90,$D90/$C90,0),"") ->  | AG90: =IF(AG13<=Control!$D$12,IF(AG$13-7<$C90,$D90/$C90,0),"") -> 
B91: Equipos año 1 | C91: =IF(Control!$D$12-1>10,10,Control!$D$12-1) -> 10 | D91: =IF(Control!D9="Si",Control!H17,Control!H9+Control!H17) -> 0 | E91: =IF(E13<=Control!$D$12,IF(E$13-2<$C91,$D91/$C91,0),"") -> 0 | F91: =IF(F13<=Control!$D$12,IF(F$13-2<$C91,$D91/$C91,0),"") -> 0 | G91: =IF(G13<=Control!$D$12,IF(G$13-2<$C91,$D91/$C91,0),"") -> 0 | H91: =IF(H13<=Control!$D$12,IF(H$13-2<$C91,$D91/$C91,0),"") -> 0 | I91: =IF(I13<=Control!$D$12,IF(I$13-2<$C91,$D91/$C91,0),"") -> 0 | J91: =IF(J13<=Control!$D$12,IF(J$13-2<$C91,$D91/$C91,0),"") -> 0 | K91: =IF(K13<=Control!$D$12,IF(K$13-2<$C91,$D91/$C91,0),"") -> 0 | L91: =IF(L13<=Control!$D$12,IF(L$13-2<$C91,$D91/$C91,0),"") -> 0 | M91: =IF(M13<=Control!$D$12,IF(M$13-2<$C91,$D91/$C91,0),"") -> 0 | N91: =IF(N13<=Control!$D$12,IF(N$13-2<$C91,$D91/$C91,0),"") -> 0 | O91: =IF(O13<=Control!$D$12,IF(O$13-2<$C91,$D91/$C91,0),"") ->  | P91: =IF(P13<=Control!$D$12,IF(P$13-2<$C91,$D91/$C91,0),"") ->  | Q91: =IF(Q13<=Control!$D$12,IF(Q$13-2<$C91,$D91/$C91,0),"") ->  | R91: =IF(R13<=Control!$D$12,IF(R$13-2<$C91,$D91/$C91,0),"") ->  | S91: =IF(S13<=Control!$D$12,IF(S$13-2<$C91,$D91/$C91,0),"") ->  | T91: =IF(T13<=Control!$D$12,IF(T$13-2<$C91,$D91/$C91,0),"") ->  | U91: =IF(U13<=Control!$D$12,IF(U$13-2<$C91,$D91/$C91,0),"") ->  | V91: =IF(V13<=Control!$D$12,IF(V$13-2<$C91,$D91/$C91,0),"") ->  | W91: =IF(W13<=Control!$D$12,IF(W$13-2<$C91,$D91/$C91,0),"") ->  | X91: =IF(X13<=Control!$D$12,IF(X$13-2<$C91,$D91/$C91,0),"") ->  | Y91: =IF(Y13<=Control!$D$12,IF(Y$13-2<$C91,$D91/$C91,0),"") ->  | Z91: =IF(Z13<=Control!$D$12,IF(Z$13-2<$C91,$D91/$C91,0),"") ->  | AA91: =IF(AA13<=Control!$D$12,IF(AA$13-2<$C91,$D91/$C91,0),"") ->  | AB91: =IF(AB13<=Control!$D$12,IF(AB$13-2<$C91,$D91/$C91,0),"") ->  | AC91: =IF(AC13<=Control!$D$12,IF(AC$13-2<$C91,$D91/$C91,0),"") ->  | AD91: =IF(AD13<=Control!$D$12,IF(AD$13-2<$C91,$D91/$C91,0),"") ->  | AE91: =IF(AE13<=Control!$D$12,IF(AE$13-2<$C91,$D91/$C91,0),"") ->  | AF91: =IF(AF13<=Control!$D$12,IF(AF$13-2<$C91,$D91/$C91,0),"") ->  | AG91: =IF(AG13<=Control!$D$12,IF(AG$13-2<$C91,$D91/$C91,0),"") -> 
B92: Equipos año 2 | C92: =IF(Control!$D$12-2>10,10,Control!$D$12-2) -> 9 | D92: =IF(E13<=Control!D10+(Control!D9="Si")*1,IF(Control!D9="Si",Control!H9,Control!H10),0) -> 0 | F92: =IF(F13<=Control!$D$12,IF(F$13-3<$C92,$D92/$C92,0),"") -> 0 | G92: =IF(G13<=Control!$D$12,IF(G$13-3<$C92,$D92/$C92,0),"") -> 0 | H92: =IF(H13<=Control!$D$12,IF(H$13-3<$C92,$D92/$C92,0),"") -> 0 | I92: =IF(I13<=Control!$D$12,IF(I$13-3<$C92,$D92/$C92,0),"") -> 0 | J92: =IF(J13<=Control!$D$12,IF(J$13-3<$C92,$D92/$C92,0),"") -> 0 | K92: =IF(K13<=Control!$D$12,IF(K$13-3<$C92,$D92/$C92,0),"") -> 0 | L92: =IF(L13<=Control!$D$12,IF(L$13-3<$C92,$D92/$C92,0),"") -> 0 | M92: =IF(M13<=Control!$D$12,IF(M$13-3<$C92,$D92/$C92,0),"") -> 0 | N92: =IF(N13<=Control!$D$12,IF(N$13-3<$C92,$D92/$C92,0),"") -> 0 | O92: =IF(O13<=Control!$D$12,IF(O$13-3<$C92,$D92/$C92,0),"") ->  | P92: =IF(P13<=Control!$D$12,IF(P$13-3<$C92,$D92/$C92,0),"") ->  | Q92: =IF(Q13<=Control!$D$12,IF(Q$13-3<$C92,$D92/$C92,0),"") ->  | R92: =IF(R13<=Control!$D$12,IF(R$13-3<$C92,$D92/$C92,0),"") ->  | S92: =IF(S13<=Control!$D$12,IF(S$13-3<$C92,$D92/$C92,0),"") ->  | T92: =IF(T13<=Control!$D$12,IF(T$13-3<$C92,$D92/$C92,0),"") ->  | U92: =IF(U13<=Control!$D$12,IF(U$13-3<$C92,$D92/$C92,0),"") ->  | V92: =IF(V13<=Control!$D$12,IF(V$13-3<$C92,$D92/$C92,0),"") ->  | W92: =IF(W13<=Control!$D$12,IF(W$13-3<$C92,$D92/$C92,0),"") ->  | X92: =IF(X13<=Control!$D$12,IF(X$13-3<$C92,$D92/$C92,0),"") ->  | Y92: =IF(Y13<=Control!$D$12,IF(Y$13-3<$C92,$D92/$C92,0),"") ->  | Z92: =IF(Z13<=Control!$D$12,IF(Z$13-3<$C92,$D92/$C92,0),"") ->  | AA92: =IF(AA13<=Control!$D$12,IF(AA$13-3<$C92,$D92/$C92,0),"") ->  | AB92: =IF(AB13<=Control!$D$12,IF(AB$13-3<$C92,$D92/$C92,0),"") ->  | AC92: =IF(AC13<=Control!$D$12,IF(AC$13-3<$C92,$D92/$C92,0),"") ->  | AD92: =IF(AD13<=Control!$D$12,IF(AD$13-3<$C92,$D92/$C92,0),"") ->  | AE92: =IF(AE13<=Control!$D$12,IF(AE$13-3<$C92,$D92/$C92,0),"") ->  | AF92: =IF(AF13<=Control!$D$12,IF(AF$13-3<$C92,$D92/$C92,0),"") ->  | AG92: =IF(AG13<=Control!$D$12,IF(AG$13-3<$C92,$D92/$C92,0),"") -> 
B93: Equipos año 3 | C93: =IF(Control!$D$12-3>10,10,Control!$D$12-3) -> 8 | D93: =IF(F13<=Control!D10+(Control!D9="Si")*1,IF(Control!D9="Si",Control!H10,Control!H11),0) -> 0 | G93: =IF(G13<=Control!$D$12,IF(G$13-4<$C93,$D93/$C93,0),"") -> 0 | H93: =IF(H13<=Control!$D$12,IF(H$13-4<$C93,$D93/$C93,0),"") -> 0 | I93: =IF(I13<=Control!$D$12,IF(I$13-4<$C93,$D93/$C93,0),"") -> 0 | J93: =IF(J13<=Control!$D$12,IF(J$13-4<$C93,$D93/$C93,0),"") -> 0 | K93: =IF(K13<=Control!$D$12,IF(K$13-4<$C93,$D93/$C93,0),"") -> 0 | L93: =IF(L13<=Control!$D$12,IF(L$13-4<$C93,$D93/$C93,0),"") -> 0 | M93: =IF(M13<=Control!$D$12,IF(M$13-4<$C93,$D93/$C93,0),"") -> 0 | N93: =IF(N13<=Control!$D$12,IF(N$13-4<$C93,$D93/$C93,0),"") -> 0 | O93: =IF(O13<=Control!$D$12,IF(O$13-4<$C93,$D93/$C93,0),"") ->  | P93: =IF(P13<=Control!$D$12,IF(P$13-4<$C93,$D93/$C93,0),"") ->  | Q93: =IF(Q13<=Control!$D$12,IF(Q$13-4<$C93,$D93/$C93,0),"") ->  | R93: =IF(R13<=Control!$D$12,IF(R$13-4<$C93,$D93/$C93,0),"") ->  | S93: =IF(S13<=Control!$D$12,IF(S$13-4<$C93,$D93/$C93,0),"") ->  | T93: =IF(T13<=Control!$D$12,IF(T$13-4<$C93,$D93/$C93,0),"") ->  | U93: =IF(U13<=Control!$D$12,IF(U$13-4<$C93,$D93/$C93,0),"") ->  | V93: =IF(V13<=Control!$D$12,IF(V$13-4<$C93,$D93/$C93,0),"") ->  | W93: =IF(W13<=Control!$D$12,IF(W$13-4<$C93,$D93/$C93,0),"") ->  | X93: =IF(X13<=Control!$D$12,IF(X$13-4<$C93,$D93/$C93,0),"") ->  | Y93: =IF(Y13<=Control!$D$12,IF(Y$13-4<$C93,$D93/$C93,0),"") ->  | Z93: =IF(Z13<=Control!$D$12,IF(Z$13-4<$C93,$D93/$C93,0),"") ->  | AA93: =IF(AA13<=Control!$D$12,IF(AA$13-4<$C93,$D93/$C93,0),"") ->  | AB93: =IF(AB13<=Control!$D$12,IF(AB$13-4<$C93,$D93/$C93,0),"") ->  | AC93: =IF(AC13<=Control!$D$12,IF(AC$13-4<$C93,$D93/$C93,0),"") ->  | AD93: =IF(AD13<=Control!$D$12,IF(AD$13-4<$C93,$D93/$C93,0),"") ->  | AE93: =IF(AE13<=Control!$D$12,IF(AE$13-4<$C93,$D93/$C93,0),"") ->  | AF93: =IF(AF13<=Control!$D$12,IF(AF$13-4<$C93,$D93/$C93,0),"") ->  | AG93: =IF(AG13<=Control!$D$12,IF(AG$13-4<$C93,$D93/$C93,0),"") -> 
B94: Equipos año 4 | C94: =IF(Control!$D$12-4>10,10,Control!$D$12-4) -> 7 | D94: =IF(G13<=Control!D10+(Control!D9="Si")*1,IF(Control!D9="Si",Control!H11,Control!H12),0) -> 0 | H94: =IF(H13<=Control!$D$12,IF(H$13-5<$C94,$D94/$C94,0),"") -> 0 | I94: =IF(I13<=Control!$D$12,IF(I$13-5<$C94,$D94/$C94,0),"") -> 0 | J94: =IF(J13<=Control!$D$12,IF(J$13-5<$C94,$D94/$C94,0),"") -> 0 | K94: =IF(K13<=Control!$D$12,IF(K$13-5<$C94,$D94/$C94,0),"") -> 0 | L94: =IF(L13<=Control!$D$12,IF(L$13-5<$C94,$D94/$C94,0),"") -> 0 | M94: =IF(M13<=Control!$D$12,IF(M$13-5<$C94,$D94/$C94,0),"") -> 0 | N94: =IF(N13<=Control!$D$12,IF(N$13-5<$C94,$D94/$C94,0),"") -> 0 | O94: =IF(O13<=Control!$D$12,IF(O$13-5<$C94,$D94/$C94,0),"") ->  | P94: =IF(P13<=Control!$D$12,IF(P$13-5<$C94,$D94/$C94,0),"") ->  | Q94: =IF(Q13<=Control!$D$12,IF(Q$13-5<$C94,$D94/$C94,0),"") ->  | R94: =IF(R13<=Control!$D$12,IF(R$13-5<$C94,$D94/$C94,0),"") ->  | S94: =IF(S13<=Control!$D$12,IF(S$13-5<$C94,$D94/$C94,0),"") ->  | T94: =IF(T13<=Control!$D$12,IF(T$13-5<$C94,$D94/$C94,0),"") ->  | U94: =IF(U13<=Control!$D$12,IF(U$13-5<$C94,$D94/$C94,0),"") ->  | V94: =IF(V13<=Control!$D$12,IF(V$13-5<$C94,$D94/$C94,0),"") ->  | W94: =IF(W13<=Control!$D$12,IF(W$13-5<$C94,$D94/$C94,0),"") ->  | X94: =IF(X13<=Control!$D$12,IF(X$13-5<$C94,$D94/$C94,0),"") ->  | Y94: =IF(Y13<=Control!$D$12,IF(Y$13-5<$C94,$D94/$C94,0),"") ->  | Z94: =IF(Z13<=Control!$D$12,IF(Z$13-5<$C94,$D94/$C94,0),"") ->  | AA94: =IF(AA13<=Control!$D$12,IF(AA$13-5<$C94,$D94/$C94,0),"") ->  | AB94: =IF(AB13<=Control!$D$12,IF(AB$13-5<$C94,$D94/$C94,0),"") ->  | AC94: =IF(AC13<=Control!$D$12,IF(AC$13-5<$C94,$D94/$C94,0),"") ->  | AD94: =IF(AD13<=Control!$D$12,IF(AD$13-5<$C94,$D94/$C94,0),"") ->  | AE94: =IF(AE13<=Control!$D$12,IF(AE$13-5<$C94,$D94/$C94,0),"") ->  | AF94: =IF(AF13<=Control!$D$12,IF(AF$13-5<$C94,$D94/$C94,0),"") ->  | AG94: =IF(AG13<=Control!$D$12,IF(AG$13-5<$C94,$D94/$C94,0),"") -> 
B95: Equipos año 5 | C95: =IF(Control!$D$12-5>10,10,Control!$D$12-5) -> 6 | D95: =IF(H13<=Control!D10+(Control!D9="Si")*1,IF(Control!D9="Si",Control!H12,Control!H13),0) -> 0 | I95: =IF(I13<=Control!$D$12,IF(I$13-6<$C95,$D95/$C95,0),"") -> 0 | J95: =IF(J13<=Control!$D$12,IF(J$13-6<$C95,$D95/$C95,0),"") -> 0 | K95: =IF(K13<=Control!$D$12,IF(K$13-6<$C95,$D95/$C95,0),"") -> 0 | L95: =IF(L13<=Control!$D$12,IF(L$13-6<$C95,$D95/$C95,0),"") -> 0 | M95: =IF(M13<=Control!$D$12,IF(M$13-6<$C95,$D95/$C95,0),"") -> 0 | N95: =IF(N13<=Control!$D$12,IF(N$13-6<$C95,$D95/$C95,0),"") -> 0 | O95: =IF(O13<=Control!$D$12,IF(O$13-6<$C95,$D95/$C95,0),"") ->  | P95: =IF(P13<=Control!$D$12,IF(P$13-6<$C95,$D95/$C95,0),"") ->  | Q95: =IF(Q13<=Control!$D$12,IF(Q$13-6<$C95,$D95/$C95,0),"") ->  | R95: =IF(R13<=Control!$D$12,IF(R$13-6<$C95,$D95/$C95,0),"") ->  | S95: =IF(S13<=Control!$D$12,IF(S$13-6<$C95,$D95/$C95,0),"") ->  | T95: =IF(T13<=Control!$D$12,IF(T$13-6<$C95,$D95/$C95,0),"") ->  | U95: =IF(U13<=Control!$D$12,IF(U$13-6<$C95,$D95/$C95,0),"") ->  | V95: =IF(V13<=Control!$D$12,IF(V$13-6<$C95,$D95/$C95,0),"") ->  | W95: =IF(W13<=Control!$D$12,IF(W$13-6<$C95,$D95/$C95,0),"") ->  | X95: =IF(X13<=Control!$D$12,IF(X$13-6<$C95,$D95/$C95,0),"") ->  | Y95: =IF(Y13<=Control!$D$12,IF(Y$13-6<$C95,$D95/$C95,0),"") ->  | Z95: =IF(Z13<=Control!$D$12,IF(Z$13-6<$C95,$D95/$C95,0),"") ->  | AA95: =IF(AA13<=Control!$D$12,IF(AA$13-6<$C95,$D95/$C95,0),"") ->  | AB95: =IF(AB13<=Control!$D$12,IF(AB$13-6<$C95,$D95/$C95,0),"") ->  | AC95: =IF(AC13<=Control!$D$12,IF(AC$13-6<$C95,$D95/$C95,0),"") ->  | AD95: =IF(AD13<=Control!$D$12,IF(AD$13-6<$C95,$D95/$C95,0),"") ->  | AE95: =IF(AE13<=Control!$D$12,IF(AE$13-6<$C95,$D95/$C95,0),"") ->  | AF95: =IF(AF13<=Control!$D$12,IF(AF$13-6<$C95,$D95/$C95,0),"") ->  | AG95: =IF(AG13<=Control!$D$12,IF(AG$13-6<$C95,$D95/$C95,0),"") -> 
B96: Equipos año 6 | C96: =IF(Control!$D$12-6>10,10,Control!$D$12-6) -> 5 | D96: =IF(I13<=Control!D10+(Control!D9="Si")*1,IF(Control!D9="Si",Control!H13,0),0) -> 0 | J96: =IF(J13<=Control!$D$12,IF(J$13-7<$C96,$D96/$C96,0),"") -> 0 | K96: =IF(K13<=Control!$D$12,IF(K$13-7<$C96,$D96/$C96,0),"") -> 0 | L96: =IF(L13<=Control!$D$12,IF(L$13-7<$C96,$D96/$C96,0),"") -> 0 | M96: =IF(M13<=Control!$D$12,IF(M$13-7<$C96,$D96/$C96,0),"") -> 0 | N96: =IF(N13<=Control!$D$12,IF(N$13-7<$C96,$D96/$C96,0),"") -> 0 | O96: =IF(O13<=Control!$D$12,IF(O$13-7<$C96,$D96/$C96,0),"") ->  | P96: =IF(P13<=Control!$D$12,IF(P$13-7<$C96,$D96/$C96,0),"") ->  | Q96: =IF(Q13<=Control!$D$12,IF(Q$13-7<$C96,$D96/$C96,0),"") ->  | R96: =IF(R13<=Control!$D$12,IF(R$13-7<$C96,$D96/$C96,0),"") ->  | S96: =IF(S13<=Control!$D$12,IF(S$13-7<$C96,$D96/$C96,0),"") ->  | T96: =IF(T13<=Control!$D$12,IF(T$13-7<$C96,$D96/$C96,0),"") ->  | U96: =IF(U13<=Control!$D$12,IF(U$13-7<$C96,$D96/$C96,0),"") ->  | V96: =IF(V13<=Control!$D$12,IF(V$13-7<$C96,$D96/$C96,0),"") ->  | W96: =IF(W13<=Control!$D$12,IF(W$13-7<$C96,$D96/$C96,0),"") ->  | X96: =IF(X13<=Control!$D$12,IF(X$13-7<$C96,$D96/$C96,0),"") ->  | Y96: =IF(Y13<=Control!$D$12,IF(Y$13-7<$C96,$D96/$C96,0),"") ->  | Z96: =IF(Z13<=Control!$D$12,IF(Z$13-7<$C96,$D96/$C96,0),"") ->  | AA96: =IF(AA13<=Control!$D$12,IF(AA$13-7<$C96,$D96/$C96,0),"") ->  | AB96: =IF(AB13<=Control!$D$12,IF(AB$13-7<$C96,$D96/$C96,0),"") ->  | AC96: =IF(AC13<=Control!$D$12,IF(AC$13-7<$C96,$D96/$C96,0),"") ->  | AD96: =IF(AD13<=Control!$D$12,IF(AD$13-7<$C96,$D96/$C96,0),"") ->  | AE96: =IF(AE13<=Control!$D$12,IF(AE$13-7<$C96,$D96/$C96,0),"") ->  | AF96: =IF(AF13<=Control!$D$12,IF(AF$13-7<$C96,$D96/$C96,0),"") ->  | AG96: =IF(AG13<=Control!$D$12,IF(AG$13-7<$C96,$D96/$C96,0),"") -> 
B98: --- Impuesto de Renta
B99: Utilidad/Pérdida del Ejercicio | D99: =IF(D13<=Control!$D$12,D45,"") -> -1000 | E99: =IF(E13<=Control!$D$12,E45,"") -> -2390.3116 | F99: =IF(F13<=Control!$D$12,F45,"") -> -8423.937284 | G99: =IF(G13<=Control!$D$12,G45,"") -> 7168.279478 | H99: =IF(H13<=Control!$D$12,H45,"") -> 8789.386122 | I99: =IF(I13<=Control!$D$12,I45,"") -> 10410.49277 | J99: =IF(J13<=Control!$D$12,J45,"") -> 12031.59941 | K99: =IF(K13<=Control!$D$12,K45,"") -> 13652.70605 | L99: =IF(L13<=Control!$D$12,L45,"") -> 15273.8127 | M99: =IF(M13<=Control!$D$12,M45,"") -> 16894.91934 | N99: =IF(N13<=Control!$D$12,N45,"") -> 18516.02598 | O99: =IF(O13<=Control!$D$12,O45,"") ->  | P99: =IF(P13<=Control!$D$12,P45,"") ->  | Q99: =IF(Q13<=Control!$D$12,Q45,"") ->  | R99: =IF(R13<=Control!$D$12,R45,"") ->  | S99: =IF(S13<=Control!$D$12,S45,"") ->  | T99: =IF(T13<=Control!$D$12,T45,"") ->  | U99: =IF(U13<=Control!$D$12,U45,"") ->  | V99: =IF(V13<=Control!$D$12,V45,"") ->  | W99: =IF(W13<=Control!$D$12,W45,"") ->  | X99: =IF(X13<=Control!$D$12,X45,"") ->  | Y99: =IF(Y13<=Control!$D$12,Y45,"") ->  | Z99: =IF(Z13<=Control!$D$12,Z45,"") ->  | AA99: =IF(AA13<=Control!$D$12,AA45,"") ->  | AB99: =IF(AB13<=Control!$D$12,AB45,"") ->  | AC99: =IF(AC13<=Control!$D$12,AC45,"") ->  | AD99: =IF(AD13<=Control!$D$12,AD45,"") ->  | AE99: =IF(AE13<=Control!$D$12,AE45,"") ->  | AF99: =IF(AF13<=Control!$D$12,AF45,"") ->  | AG99: =IF(AG13<=Control!$D$12,AG45,"") -> 
B100: Pérdida Acumulada | D100: =IF(D13<=Control!$D$12,IF(D99+C100<0,D99+C100,0),"") -> -1000 | E100: =IF(E13<=Control!$D$12,IF(E99+D100<0,E99+D100,0),"") -> -3390.3116 | F100: =IF(F13<=Control!$D$12,IF(F99+E100<0,F99+E100,0),"") -> -11814.24888 | G100: =IF(G13<=Control!$D$12,IF(G99+F100<0,G99+F100,0),"") -> -4645.969405 | H100: =IF(H13<=Control!$D$12,IF(H99+G100<0,H99+G100,0),"") -> 0 | I100: =IF(I13<=Control!$D$12,IF(I99+H100<0,I99+H100,0),"") -> 0 | J100: =IF(J13<=Control!$D$12,IF(J99+I100<0,J99+I100,0),"") -> 0 | K100: =IF(K13<=Control!$D$12,IF(K99+J100<0,K99+J100,0),"") -> 0 | L100: =IF(L13<=Control!$D$12,IF(L99+K100<0,L99+K100,0),"") -> 0 | M100: =IF(M13<=Control!$D$12,IF(M99+L100<0,M99+L100,0),"") -> 0 | N100: =IF(N13<=Control!$D$12,IF(N99+M100<0,N99+M100,0),"") -> 0 | O100: =IF(O13<=Control!$D$12,IF(O99+N100<0,O99+N100,0),"") ->  | P100: =IF(P13<=Control!$D$12,IF(P99+O100<0,P99+O100,0),"") ->  | Q100: =IF(Q13<=Control!$D$12,IF(Q99+P100<0,Q99+P100,0),"") ->  | R100: =IF(R13<=Control!$D$12,IF(R99+Q100<0,R99+Q100,0),"") ->  | S100: =IF(S13<=Control!$D$12,IF(S99+R100<0,S99+R100,0),"") ->  | T100: =IF(T13<=Control!$D$12,IF(T99+S100<0,T99+S100,0),"") ->  | U100: =IF(U13<=Control!$D$12,IF(U99+T100<0,U99+T100,0),"") ->  | V100: =IF(V13<=Control!$D$12,IF(V99+U100<0,V99+U100,0),"") ->  | W100: =IF(W13<=Control!$D$12,IF(W99+V100<0,W99+V100,0),"") ->  | X100: =IF(X13<=Control!$D$12,IF(X99+W100<0,X99+W100,0),"") ->  | Y100: =IF(Y13<=Control!$D$12,IF(Y99+X100<0,Y99+X100,0),"") ->  | Z100: =IF(Z13<=Control!$D$12,IF(Z99+Y100<0,Z99+Y100,0),"") ->  | AA100: =IF(AA13<=Control!$D$12,IF(AA99+Z100<0,AA99+Z100,0),"") ->  | AB100: =IF(AB13<=Control!$D$12,IF(AB99+AA100<0,AB99+AA100,0),"") ->  | AC100: =IF(AC13<=Control!$D$12,IF(AC99+AB100<0,AC99+AB100,0),"") ->  | AD100: =IF(AD13<=Control!$D$12,IF(AD99+AC100<0,AD99+AC100,0),"") ->  | AE100: =IF(AE13<=Control!$D$12,IF(AE99+AD100<0,AE99+AD100,0),"") ->  | AF100: =IF(AF13<=Control!$D$12,IF(AF99+AE100<0,AF99+AE100,0),"") ->  | AG100: =IF(AG13<=Control!$D$12,IF(AG99+AF100<0,AG99+AF100,0),"") -> 
B101: Aportes de Equity Acumulados | D101: =IF(D13<=Control!$D$12,D67+C101,"") -> 2687 | E101: =IF(E13<=Control!$D$12,E67+D101,"") -> 9207.03582 | F101: =IF(F13<=Control!$D$12,F67+E101,"") -> 31648.10229 | G101: =IF(G13<=Control!$D$12,G67+F101,"") -> 31648.10229 | H101: =IF(H13<=Control!$D$12,H67+G101,"") -> 31648.10229 | I101: =IF(I13<=Control!$D$12,I67+H101,"") -> 31648.10229 | J101: =IF(J13<=Control!$D$12,J67+I101,"") -> 31648.10229 | K101: =IF(K13<=Control!$D$12,K67+J101,"") -> 31648.10229 | L101: =IF(L13<=Control!$D$12,L67+K101,"") -> 31648.10229 | M101: =IF(M13<=Control!$D$12,M67+L101,"") -> 31648.10229 | N101: =IF(N13<=Control!$D$12,N67+M101,"") -> 31648.10229 | O101: =IF(O13<=Control!$D$12,O67+N101,"") ->  | P101: =IF(P13<=Control!$D$12,P67+O101,"") ->  | Q101: =IF(Q13<=Control!$D$12,Q67+P101,"") ->  | R101: =IF(R13<=Control!$D$12,R67+Q101,"") ->  | S101: =IF(S13<=Control!$D$12,S67+R101,"") ->  | T101: =IF(T13<=Control!$D$12,T67+S101,"") ->  | U101: =IF(U13<=Control!$D$12,U67+T101,"") ->  | V101: =IF(V13<=Control!$D$12,V67+U101,"") ->  | W101: =IF(W13<=Control!$D$12,W67+V101,"") ->  | X101: =IF(X13<=Control!$D$12,X67+W101,"") ->  | Y101: =IF(Y13<=Control!$D$12,Y67+X101,"") ->  | Z101: =IF(Z13<=Control!$D$12,Z67+Y101,"") ->  | AA101: =IF(AA13<=Control!$D$12,AA67+Z101,"") ->  | AB101: =IF(AB13<=Control!$D$12,AB67+AA101,"") ->  | AC101: =IF(AC13<=Control!$D$12,AC67+AB101,"") ->  | AD101: =IF(AD13<=Control!$D$12,AD67+AC101,"") ->  | AE101: =IF(AE13<=Control!$D$12,AE67+AD101,"") ->  | AF101: =IF(AF13<=Control!$D$12,AF67+AE101,"") ->  | AG101: =IF(AG13<=Control!$D$12,AG67+AF101,"") -> 
B102: Patrimonio Líquido | D102: =IF(D13<=Control!$D$12,IF(D99<0,0,D99)+D100+D101,"") -> 1687 | E102: =IF(E13<=Control!$D$12,IF(E99<0,0,E99)+E100+E101,"") -> 5816.72422 | F102: =IF(F13<=Control!$D$12,IF(F99<0,0,F99)+F100+F101,"") -> 19833.8534 | G102: =IF(G13<=Control!$D$12,IF(G99<0,0,G99)+G100+G101,"") -> 34170.41236 | H102: =IF(H13<=Control!$D$12,IF(H99<0,0,H99)+H100+H101,"") -> 40437.48841 | I102: =IF(I13<=Control!$D$12,IF(I99<0,0,I99)+I100+I101,"") -> 42058.59505 | J102: =IF(J13<=Control!$D$12,IF(J99<0,0,J99)+J100+J101,"") -> 43679.70169 | K102: =IF(K13<=Control!$D$12,IF(K99<0,0,K99)+K100+K101,"") -> 45300.80834 | L102: =IF(L13<=Control!$D$12,IF(L99<0,0,L99)+L100+L101,"") -> 46921.91498 | M102: =IF(M13<=Control!$D$12,IF(M99<0,0,M99)+M100+M101,"") -> 48543.02162 | N102: =IF(N13<=Control!$D$12,IF(N99<0,0,N99)+N100+N101,"") -> 50164.12827 | O102: =IF(O13<=Control!$D$12,IF(O99<0,0,O99)+O100+O101,"") ->  | P102: =IF(P13<=Control!$D$12,IF(P99<0,0,P99)+P100+P101,"") ->  | Q102: =IF(Q13<=Control!$D$12,IF(Q99<0,0,Q99)+Q100+Q101,"") ->  | R102: =IF(R13<=Control!$D$12,IF(R99<0,0,R99)+R100+R101,"") ->  | S102: =IF(S13<=Control!$D$12,IF(S99<0,0,S99)+S100+S101,"") ->  | T102: =IF(T13<=Control!$D$12,IF(T99<0,0,T99)+T100+T101,"") ->  | U102: =IF(U13<=Control!$D$12,IF(U99<0,0,U99)+U100+U101,"") ->  | V102: =IF(V13<=Control!$D$12,IF(V99<0,0,V99)+V100+V101,"") ->  | W102: =IF(W13<=Control!$D$12,IF(W99<0,0,W99)+W100+W101,"") ->  | X102: =IF(X13<=Control!$D$12,IF(X99<0,0,X99)+X100+X101,"") ->  | Y102: =IF(Y13<=Control!$D$12,IF(Y99<0,0,Y99)+Y100+Y101,"") ->  | Z102: =IF(Z13<=Control!$D$12,IF(Z99<0,0,Z99)+Z100+Z101,"") ->  | AA102: =IF(AA13<=Control!$D$12,IF(AA99<0,0,AA99)+AA100+AA101,"") ->  | AB102: =IF(AB13<=Control!$D$12,IF(AB99<0,0,AB99)+AB100+AB101,"") ->  | AC102: =IF(AC13<=Control!$D$12,IF(AC99<0,0,AC99)+AC100+AC101,"") ->  | AD102: =IF(AD13<=Control!$D$12,IF(AD99<0,0,AD99)+AD100+AD101,"") ->  | AE102: =IF(AE13<=Control!$D$12,IF(AE99<0,0,AE99)+AE100+AE101,"") ->  | AF102: =IF(AF13<=Control!$D$12,IF(AF99<0,0,AF99)+AF100+AF101,"") ->  | AG102: =IF(AG13<=Control!$D$12,IF(AG99<0,0,AG99)+AG100+AG101,"") -> 
B103: Renta Presuntiva | D103: =IF(D13<=Control!$D$12,D102*0.03,"") -> 50.61 | E103: =IF(E13<=Control!$D$12,E102*0.03,"") -> 174.5017266 | F103: =IF(F13<=Control!$D$12,F102*0.03,"") -> 595.015602 | G103: =IF(G13<=Control!$D$12,G102*0.03,"") -> 1025.112371 | H103: =IF(H13<=Control!$D$12,H102*0.03,"") -> 1213.124652 | I103: =IF(I13<=Control!$D$12,I102*0.03,"") -> 1261.757852 | J103: =IF(J13<=Control!$D$12,J102*0.03,"") -> 1310.391051 | K103: =IF(K13<=Control!$D$12,K102*0.03,"") -> 1359.02425 | L103: =IF(L13<=Control!$D$12,L102*0.03,"") -> 1407.657449 | M103: =IF(M13<=Control!$D$12,M102*0.03,"") -> 1456.290649 | N103: =IF(N13<=Control!$D$12,N102*0.03,"") -> 1504.923848 | O103: =IF(O13<=Control!$D$12,O102*0.03,"") ->  | P103: =IF(P13<=Control!$D$12,P102*0.03,"") ->  | Q103: =IF(Q13<=Control!$D$12,Q102*0.03,"") ->  | R103: =IF(R13<=Control!$D$12,R102*0.03,"") ->  | S103: =IF(S13<=Control!$D$12,S102*0.03,"") ->  | T103: =IF(T13<=Control!$D$12,T102*0.03,"") ->  | U103: =IF(U13<=Control!$D$12,U102*0.03,"") ->  | V103: =IF(V13<=Control!$D$12,V102*0.03,"") ->  | W103: =IF(W13<=Control!$D$12,W102*0.03,"") ->  | X103: =IF(X13<=Control!$D$12,X102*0.03,"") ->  | Y103: =IF(Y13<=Control!$D$12,Y102*0.03,"") ->  | Z103: =IF(Z13<=Control!$D$12,Z102*0.03,"") ->  | AA103: =IF(AA13<=Control!$D$12,AA102*0.03,"") ->  | AB103: =IF(AB13<=Control!$D$12,AB102*0.03,"") ->  | AC103: =IF(AC13<=Control!$D$12,AC102*0.03,"") ->  | AD103: =IF(AD13<=Control!$D$12,AD102*0.03,"") ->  | AE103: =IF(AE13<=Control!$D$12,AE102*0.03,"") ->  | AF103: =IF(AF13<=Control!$D$12,AF102*0.03,"") ->  | AG103: =IF(AG13<=Control!$D$12,AG102*0.03,"") -> 
B104: Impuesto de Renta Bruto | D104: =IF(D13<=Control!$D$12,IF(D100<0,D103,D99*0.33),"") -> 50.61 | E104: =IF(E13<=Control!$D$12,IF(E100<0,E103,E99*0.33),"") -> 174.5017266 | F104: =IF(F13<=Control!$D$12,IF(F100<0,F103,F99*0.33),"") -> 595.015602 | G104: =IF(G13<=Control!$D$12,IF(G100<0,G103,G99*0.33),"") -> 1025.112371 | H104: =IF(H13<=Control!$D$12,IF(H100<0,H103,H99*0.33),"") -> 2900.49742 | I104: =IF(I13<=Control!$D$12,IF(I100<0,I103,I99*0.33),"") -> 3435.462613 | J104: =IF(J13<=Control!$D$12,IF(J100<0,J103,J99*0.33),"") -> 3970.427805 | K104: =IF(K13<=Control!$D$12,IF(K100<0,K103,K99*0.33),"") -> 4505.392997 | L104: =IF(L13<=Control!$D$12,IF(L100<0,L103,L99*0.33),"") -> 5040.35819 | M104: =IF(M13<=Control!$D$12,IF(M100<0,M103,M99*0.33),"") -> 5575.323382 | N104: =IF(N13<=Control!$D$12,IF(N100<0,N103,N99*0.33),"") -> 6110.288574 | O104: =IF(O13<=Control!$D$12,IF(O100<0,O103,O99*0.33),"") ->  | P104: =IF(P13<=Control!$D$12,IF(P100<0,P103,P99*0.33),"") ->  | Q104: =IF(Q13<=Control!$D$12,IF(Q100<0,Q103,Q99*0.33),"") ->  | R104: =IF(R13<=Control!$D$12,IF(R100<0,R103,R99*0.33),"") ->  | S104: =IF(S13<=Control!$D$12,IF(S100<0,S103,S99*0.33),"") ->  | T104: =IF(T13<=Control!$D$12,IF(T100<0,T103,T99*0.33),"") ->  | U104: =IF(U13<=Control!$D$12,IF(U100<0,U103,U99*0.33),"") ->  | V104: =IF(V13<=Control!$D$12,IF(V100<0,V103,V99*0.33),"") ->  | W104: =IF(W13<=Control!$D$12,IF(W100<0,W103,W99*0.33),"") ->  | X104: =IF(X13<=Control!$D$12,IF(X100<0,X103,X99*0.33),"") ->  | Y104: =IF(Y13<=Control!$D$12,IF(Y100<0,Y103,Y99*0.33),"") ->  | Z104: =IF(Z13<=Control!$D$12,IF(Z100<0,Z103,Z99*0.33),"") ->  | AA104: =IF(AA13<=Control!$D$12,IF(AA100<0,AA103,AA99*0.33),"") ->  | AB104: =IF(AB13<=Control!$D$12,IF(AB100<0,AB103,AB99*0.33),"") ->  | AC104: =IF(AC13<=Control!$D$12,IF(AC100<0,AC103,AC99*0.33),"") ->  | AD104: =IF(AD13<=Control!$D$12,IF(AD100<0,AD103,AD99*0.33),"") ->  | AE104: =IF(AE13<=Control!$D$12,IF(AE100<0,AE103,AE99*0.33),"") ->  | AF104: =IF(AF13<=Control!$D$12,IF(AF100<0,AF103,AF99*0.33),"") ->  | AG104: =IF(AG13<=Control!$D$12,IF(AG100<0,AG103,AG99*0.33),"") -> 
B105: Sobreimpuesto Generado | D105: =IF(D13<=Control!$D$12,D104*0.75,"") -> 37.9575 | E105: =IF(E13<=Control!$D$12,E104*0.75,"") -> 130.876295 | F105: =IF(F13<=Control!$D$12,F104*0.75,"") -> 446.2617015 | G105: =IF(G13<=Control!$D$12,G104*0.75,"") -> 768.8342781 | H105: =IF(H13<=Control!$D$12,H104*0.75,"") -> 2175.373065 | I105: =IF(I13<=Control!$D$12,I104*0.75,"") -> 2576.596959 | J105: =IF(J13<=Control!$D$12,J104*0.75,"") -> 2977.820854 | K105: =IF(K13<=Control!$D$12,K104*0.75,"") -> 3379.044748 | L105: =IF(L13<=Control!$D$12,L104*0.75,"") -> 3780.268642 | M105: =IF(M13<=Control!$D$12,M104*0.75,"") -> 4181.492536 | N105: =IF(N13<=Control!$D$12,N104*0.75,"") -> 4582.716431 | O105: =IF(O13<=Control!$D$12,O104*0.75,"") ->  | P105: =IF(P13<=Control!$D$12,P104*0.75,"") ->  | Q105: =IF(Q13<=Control!$D$12,Q104*0.75,"") ->  | R105: =IF(R13<=Control!$D$12,R104*0.75,"") ->  | S105: =IF(S13<=Control!$D$12,S104*0.75,"") ->  | T105: =IF(T13<=Control!$D$12,T104*0.75,"") ->  | U105: =IF(U13<=Control!$D$12,U104*0.75,"") ->  | V105: =IF(V13<=Control!$D$12,V104*0.75,"") ->  | W105: =IF(W13<=Control!$D$12,W104*0.75,"") ->  | X105: =IF(X13<=Control!$D$12,X104*0.75,"") ->  | Y105: =IF(Y13<=Control!$D$12,Y104*0.75,"") ->  | Z105: =IF(Z13<=Control!$D$12,Z104*0.75,"") ->  | AA105: =IF(AA13<=Control!$D$12,AA104*0.75,"") ->  | AB105: =IF(AB13<=Control!$D$12,AB104*0.75,"") ->  | AC105: =IF(AC13<=Control!$D$12,AC104*0.75,"") ->  | AD105: =IF(AD13<=Control!$D$12,AD104*0.75,"") ->  | AE105: =IF(AE13<=Control!$D$12,AE104*0.75,"") ->  | AF105: =IF(AF13<=Control!$D$12,AF104*0.75,"") ->  | AG105: =IF(AG13<=Control!$D$12,AG104*0.75,"") -> 
B106: Sobreimpuesto Promedio | E106: =IF(E13<=Control!$D$12,AVERAGE(D105:E105)*0.75,"") -> 63.31267311 | F106: =IF(F13<=Control!$D$12,AVERAGE(E105:F105)*0.75,"") -> 216.4267487 | G106: =IF(G13<=Control!$D$12,AVERAGE(F105:G105)*0.75,"") -> 455.6609923 | H106: =IF(H13<=Control!$D$12,AVERAGE(G105:H105)*0.75,"") -> 1104.077754 | I106: =IF(I13<=Control!$D$12,AVERAGE(H105:I105)*0.75,"") -> 1781.988759 | J106: =IF(J13<=Control!$D$12,AVERAGE(I105:J105)*0.75,"") -> 2082.90668 | K106: =IF(K13<=Control!$D$12,AVERAGE(J105:K105)*0.75,"") -> 2383.824601 | L106: =IF(L13<=Control!$D$12,AVERAGE(K105:L105)*0.75,"") -> 2684.742521 | M106: =IF(M13<=Control!$D$12,AVERAGE(L105:M105)*0.75,"") -> 2985.660442 | N106: =IF(N13<=Control!$D$12,AVERAGE(M105:N105)*0.75,"") -> 3286.578363 | O106: =IF(O13<=Control!$D$12,AVERAGE(N105:O105)*0.75,"") ->  | P106: =IF(P13<=Control!$D$12,AVERAGE(O105:P105)*0.75,"") ->  | Q106: =IF(Q13<=Control!$D$12,AVERAGE(P105:Q105)*0.75,"") ->  | R106: =IF(R13<=Control!$D$12,AVERAGE(Q105:R105)*0.75,"") ->  | S106: =IF(S13<=Control!$D$12,AVERAGE(R105:S105)*0.75,"") ->  | T106: =IF(T13<=Control!$D$12,AVERAGE(S105:T105)*0.75,"") ->  | U106: =IF(U13<=Control!$D$12,AVERAGE(T105:U105)*0.75,"") ->  | V106: =IF(V13<=Control!$D$12,AVERAGE(U105:V105)*0.75,"") ->  | W106: =IF(W13<=Control!$D$12,AVERAGE(V105:W105)*0.75,"") ->  | X106: =IF(X13<=Control!$D$12,AVERAGE(W105:X105)*0.75,"") ->  | Y106: =IF(Y13<=Control!$D$12,AVERAGE(X105:Y105)*0.75,"") ->  | Z106: =IF(Z13<=Control!$D$12,AVERAGE(Y105:Z105)*0.75,"") ->  | AA106: =IF(AA13<=Control!$D$12,AVERAGE(Z105:AA105)*0.75,"") ->  | AB106: =IF(AB13<=Control!$D$12,AVERAGE(AA105:AB105)*0.75,"") ->  | AC106: =IF(AC13<=Control!$D$12,AVERAGE(AB105:AC105)*0.75,"") ->  | AD106: =IF(AD13<=Control!$D$12,AVERAGE(AC105:AD105)*0.75,"") ->  | AE106: =IF(AE13<=Control!$D$12,AVERAGE(AD105:AE105)*0.75,"") ->  | AF106: =IF(AF13<=Control!$D$12,AVERAGE(AE105:AF105)*0.75,"") ->  | AG106: =IF(AG13<=Control!$D$12,AVERAGE(AF105:AG105)*0.75,"") -> 
B107: Anticipo de Renta | D107: =IF(D13<=Control!$D$12,MIN(D105:D106),"") -> 37.9575 | E107: =IF(E13<=Control!$D$12,MIN(E105:E106),"") -> 63.31267311 | F107: =IF(F13<=Control!$D$12,MIN(F105:F106),"") -> 216.4267487 | G107: =IF(G13<=Control!$D$12,MIN(G105:G106),"") -> 455.6609923 | H107: =IF(H13<=Control!$D$12,MIN(H105:H106),"") -> 1104.077754 | I107: =IF(I13<=Control!$D$12,MIN(I105:I106),"") -> 1781.988759 | J107: =IF(J13<=Control!$D$12,MIN(J105:J106),"") -> 2082.90668 | K107: =IF(K13<=Control!$D$12,MIN(K105:K106),"") -> 2383.824601 | L107: =IF(L13<=Control!$D$12,MIN(L105:L106),"") -> 2684.742521 | M107: =IF(M13<=Control!$D$12,MIN(M105:M106),"") -> 2985.660442 | N107: =IF(N13<=Control!$D$12,MIN(N105:N106),"") -> 3286.578363 | O107: =IF(O13<=Control!$D$12,MIN(O105:O106),"") ->  | P107: =IF(P13<=Control!$D$12,MIN(P105:P106),"") ->  | Q107: =IF(Q13<=Control!$D$12,MIN(Q105:Q106),"") ->  | R107: =IF(R13<=Control!$D$12,MIN(R105:R106),"") ->  | S107: =IF(S13<=Control!$D$12,MIN(S105:S106),"") ->  | T107: =IF(T13<=Control!$D$12,MIN(T105:T106),"") ->  | U107: =IF(U13<=Control!$D$12,MIN(U105:U106),"") ->  | V107: =IF(V13<=Control!$D$12,MIN(V105:V106),"") ->  | W107: =IF(W13<=Control!$D$12,MIN(W105:W106),"") ->  | X107: =IF(X13<=Control!$D$12,MIN(X105:X106),"") ->  | Y107: =IF(Y13<=Control!$D$12,MIN(Y105:Y106),"") ->  | Z107: =IF(Z13<=Control!$D$12,MIN(Z105:Z106),"") ->  | AA107: =IF(AA13<=Control!$D$12,MIN(AA105:AA106),"") ->  | AB107: =IF(AB13<=Control!$D$12,MIN(AB105:AB106),"") ->  | AC107: =IF(AC13<=Control!$D$12,MIN(AC105:AC106),"") ->  | AD107: =IF(AD13<=Control!$D$12,MIN(AD105:AD106),"") ->  | AE107: =IF(AE13<=Control!$D$12,MIN(AE105:AE106),"") ->  | AF107: =IF(AF13<=Control!$D$12,MIN(AF105:AF106),"") ->  | AG107: =IF(AG13<=Control!$D$12,MIN(AG105:AG106),"") -> 
B108: Impuesto de Renta + Anticipo | D108: =IF(D13<=Control!$D$12,IF(D104+D107-C107<0,0,D104+D107-C107),"") -> 88.5675 | E108: =IF(E13<=Control!$D$12,IF(E104+E107-D107<0,0,E104+E107-D107),"") -> 199.8568997 | F108: =IF(F13<=Control!$D$12,IF(F104+F107-E107<0,0,F104+F107-E107),"") -> 748.1296776 | G108: =IF(G13<=Control!$D$12,IF(G104+G107-F107<0,0,G104+G107-F107),"") -> 1264.346614 | H108: =IF(H13<=Control!$D$12,IF(H104+H107-G107<0,0,H104+H107-G107),"") -> 3548.914182 | I108: =IF(I13<=Control!$D$12,IF(I104+I107-H107<0,0,I104+I107-H107),"") -> 4113.373618 | J108: =IF(J13<=Control!$D$12,IF(J104+J107-I107<0,0,J104+J107-I107),"") -> 4271.345726 | K108: =IF(K13<=Control!$D$12,IF(K104+K107-J107<0,0,K104+K107-J107),"") -> 4806.310918 | L108: =IF(L13<=Control!$D$12,IF(L104+L107-K107<0,0,L104+L107-K107),"") -> 5341.27611 | M108: =IF(M13<=Control!$D$12,IF(M104+M107-L107<0,0,M104+M107-L107),"") -> 5876.241303 | N108: =IF(N13<=Control!$D$12,IF(N104+N107-M107<0,0,N104+N107-M107),"") -> 6411.206495 | O108: =IF(O13<=Control!$D$12,IF(O104+O107-N107<0,0,O104+O107-N107),"") ->  | P108: =IF(P13<=Control!$D$12,IF(P104+P107-O107<0,0,P104+P107-O107),"") ->  | Q108: =IF(Q13<=Control!$D$12,IF(Q104+Q107-P107<0,0,Q104+Q107-P107),"") ->  | R108: =IF(R13<=Control!$D$12,IF(R104+R107-Q107<0,0,R104+R107-Q107),"") ->  | S108: =IF(S13<=Control!$D$12,IF(S104+S107-R107<0,0,S104+S107-R107),"") ->  | T108: =IF(T13<=Control!$D$12,IF(T104+T107-S107<0,0,T104+T107-S107),"") ->  | U108: =IF(U13<=Control!$D$12,IF(U104+U107-T107<0,0,U104+U107-T107),"") ->  | V108: =IF(V13<=Control!$D$12,IF(V104+V107-U107<0,0,V104+V107-U107),"") ->  | W108: =IF(W13<=Control!$D$12,IF(W104+W107-V107<0,0,W104+W107-V107),"") ->  | X108: =IF(X13<=Control!$D$12,IF(X104+X107-W107<0,0,X104+X107-W107),"") ->  | Y108: =IF(Y13<=Control!$D$12,IF(Y104+Y107-X107<0,0,Y104+Y107-X107),"") ->  | Z108: =IF(Z13<=Control!$D$12,IF(Z104+Z107-Y107<0,0,Z104+Z107-Y107),"") ->  | AA108: =IF(AA13<=Control!$D$12,IF(AA104+AA107-Z107<0,0,AA104+AA107-Z107),"") ->  | AB108: =IF(AB13<=Control!$D$12,IF(AB104+AB107-AA107<0,0,AB104+AB107-AA107),"") ->  | AC108: =IF(AC13<=Control!$D$12,IF(AC104+AC107-AB107<0,0,AC104+AC107-AB107),"") ->  | AD108: =IF(AD13<=Control!$D$12,IF(AD104+AD107-AC107<0,0,AD104+AD107-AC107),"") ->  | AE108: =IF(AE13<=Control!$D$12,IF(AE104+AE107-AD107<0,0,AE104+AE107-AD107),"") ->  | AF108: =IF(AF13<=Control!$D$12,IF(AF104+AF107-AE107<0,0,AF104+AF107-AE107),"") ->  | AG108: =IF(AG13<=Control!$D$12,IF(AG104+AG107-AF107<0,0,AG104+AG107-AF107),"") -> 
B112: --- CPP
B113: Inversiones | D113: =+Control!I17 -> 12435 | E113: =+Control!I9 -> 30290 | F113: =+Control!I10 -> 104218 | G113: =+Control!I11 ->  | H113: =+Control!I12 ->  | I113: =+Control!I13 -> 
B114: Costos | D114: =IFERROR(D40-D41,"") -> 0 | E114: =IFERROR(E40-E41,"") -> 0 | F114: 0 | G114: 4197.048687 | H114: 4197.048687 | I114: 4197.048687 | J114: 4197.048687 | K114: 4197.048687 | L114: 4197.048687 | M114: 4197.048687 | N114: 4197.048687
B115: Ingresos Terceras Fuentes | D115: =IFERROR(D40*(1-Control!$D$25),"") -> 0 | E115: =IFERROR(E40*(1-Control!$D$25),"") -> 0 | F115: =IFERROR(F40*(1-Control!$D$25),"") -> 0 | G115: =IFERROR(G40*(1-Control!$D$25),"") -> 41970.48687 | H115: =IFERROR(H40*(1-Control!$D$25),"") -> 41970.48687 | I115: =IFERROR(I40*(1-Control!$D$25),"") -> 41970.48687 | J115: =IFERROR(J40*(1-Control!$D$25),"") -> 41970.48687 | K115: =IFERROR(K40*(1-Control!$D$25),"") -> 41970.48687 | L115: =IFERROR(L40*(1-Control!$D$25),"") -> 41970.48687 | M115: =IFERROR(M40*(1-Control!$D$25),"") -> 41970.48687 | N115: =IFERROR(N40*(1-Control!$D$25),"") -> 41970.48687 | O115: =IFERROR(O40*(1-Control!$D$25),"") ->  | P115: =IFERROR(P40*(1-Control!$D$25),"") ->  | Q115: =IFERROR(Q40*(1-Control!$D$25),"") ->  | R115: =IFERROR(R40*(1-Control!$D$25),"") ->  | S115: =IFERROR(S40*(1-Control!$D$25),"") ->  | T115: =IFERROR(T40*(1-Control!$D$25),"") ->  | U115: =IFERROR(U40*(1-Control!$D$25),"") ->  | V115: =IFERROR(V40*(1-Control!$D$25),"") ->  | W115: =IFERROR(W40*(1-Control!$D$25),"") ->  | X115: =IFERROR(X40*(1-Control!$D$25),"") ->  | Y115: =IFERROR(Y40*(1-Control!$D$25),"") ->  | Z115: =IFERROR(Z40*(1-Control!$D$25),"") ->  | AA115: =IFERROR(AA40*(1-Control!$D$25),"") ->  | AB115: =IFERROR(AB40*(1-Control!$D$25),"") ->  | AC115: =IFERROR(AC40*(1-Control!$D$25),"") ->  | AD115: =IFERROR(AD40*(1-Control!$D$25),"") ->  | AE115: =IFERROR(AE40*(1-Control!$D$25),"") ->  | AF115: =IFERROR(AF40*(1-Control!$D$25),"") ->  | AG115: =IFERROR(AG40*(1-Control!$D$25),"") -> 
B116: Aportes Públicos | D116: =IFERROR(D40*Control!$D$25,"") -> 0 | E116: =IFERROR(E40*Control!$D$25,"") -> 0 | F116: =IFERROR(F40*Control!$D$25,"") -> 0 | G116: =IFERROR(G40*Control!$D$25,"") -> 0 | H116: =IFERROR(H40*Control!$D$25,"") -> 0 | I116: =IFERROR(I40*Control!$D$25,"") -> 0 | J116: =IFERROR(J40*Control!$D$25,"") -> 0 | K116: =IFERROR(K40*Control!$D$25,"") -> 0 | L116: =IFERROR(L40*Control!$D$25,"") -> 0 | M116: =IFERROR(M40*Control!$D$25,"") -> 0 | N116: =IFERROR(N40*Control!$D$25,"") -> 0 | O116: =IFERROR(O40*Control!$D$25,"") ->  | P116: =IFERROR(P40*Control!$D$25,"") ->  | Q116: =IFERROR(Q40*Control!$D$25,"") ->  | R116: =IFERROR(R40*Control!$D$25,"") ->  | S116: =IFERROR(S40*Control!$D$25,"") ->  | T116: =IFERROR(T40*Control!$D$25,"") ->  | U116: =IFERROR(U40*Control!$D$25,"") ->  | V116: =IFERROR(V40*Control!$D$25,"") ->  | W116: =IFERROR(W40*Control!$D$25,"") ->  | X116: =IFERROR(X40*Control!$D$25,"") ->  | Y116: =IFERROR(Y40*Control!$D$25,"") ->  | Z116: =IFERROR(Z40*Control!$D$25,"") ->  | AA116: =IFERROR(AA40*Control!$D$25,"") ->  | AB116: =IFERROR(AB40*Control!$D$25,"") ->  | AC116: =IFERROR(AC40*Control!$D$25,"") ->  | AD116: =IFERROR(AD40*Control!$D$25,"") ->  | AE116: =IFERROR(AE40*Control!$D$25,"") ->  | AF116: =IFERROR(AF40*Control!$D$25,"") ->  | AG116: =IFERROR(AG40*Control!$D$25,"") -> 

Sheet Resultados
C7: Características Proyecto | F7: Resultados Financieros (Mill. COP) | I7: Proyecto Público de Referencia - PPR | L7: Proyecto APP
C8: Tipo de Infraestructura | D8: =Control!D7 -> Social | F8: Pago Inicial | G8: =Flujo!H8 -> 41970.48687 | I8: Costos de Inversión | J8: =NPV(VLOOKUP(Control!$D$7,Flujo!$B$7:$E$8,4,FALSE),Flujo!D113:I113)+Varios!E54 -> 126580.7468 | L8: Aportes Públicos | M8: =NPV(VLOOKUP(Control!$D$7,Flujo!$B$7:$E$8,4,FALSE),Flujo!D116:AG116) -> 0
C9: Tipo de Proyecto | D9: =Control!D8 -> Greenfield | F9: Ingreso Total Requerido | G9: =SUM(Flujo!D40:AG40) -> 335763.8949 | I9: Costos de Explotación | J9: =NPV(VLOOKUP(Control!$D$7,Flujo!$B$7:$E$8,4,FALSE),Flujo!D114:AG114)*0.8 -> 16906.58116 | L9: Costos Administración | M9: =0.05*J8 -> 6329.037338
C10: Aprobación Diseños | D10: =Control!D9 -> Si | F10: Aportes Públicos | G10: =G9*Control!D25 -> 0 | I10: Mantenimientos Mayores | J10: =NPV(VLOOKUP(Control!$D$7,Flujo!$B$7:$E$8,4,FALSE),Flujo!D114:AG114)*0.2 -> 4226.64529 | L10: Riesgo Retenido | M10: =J12 -> 35203.8626
C11: Etapa Construcción | D11: =Control!D10 -> 2 | F11: Costos y Gastos | G11: =SUM(Flujo!D52:AG52,Flujo!D55:AG55,Flujo!D57:AG57,Flujo!D58:AG58) -> 128156.2845 | I11: Ingresos Terceras Fuentes | J11: =NPV(VLOOKUP(Control!$D$7,Flujo!$B$7:$E$8,4,FALSE),Flujo!D115:AG115) -> 211332.2645 | L11: Costo Ajustado APP | M11: =SUM(M8:M10) -> 41532.89994
C12: Etapa Operativa | D12: =Control!D11 -> 8 | F12: Inversión | G12: =SUM(Control!I9:I13)+Control!I17 -> 146943 | I12: Riesgo Retenido | J12: =SUM(Varios!J40:J47) -> 35203.8626
C13: Total APP | D13: =Control!D12 -> 11 | F13: Deuda Largo Plazo | G13: =SUM(Flujo!D63:J63) -> 126592.4091 | I13: Riesgo Transferido | J13: =SUM(Varios!K40:K47) -> 102677.9326 | L13: Valor por Dinero | M13: =J14-M11 -> 32730.60397
F14: Aportes de Capital | G14: =SUM(Flujo!D62:AG62) -> 31648.10229 | I14: Costo Ajustado PPR | J14: =J8+J9+J10-J11+J12+J13 -> 74263.50392

Sheet Varios (hidden)
B8: PPR | C8: (+) Riesgo Retenido | D8: 0 | E8: =+Resultados!J12 -> 35203.8626
C9: (+) Costo Base | D9: =+E8 -> 35203.8626 | E9: =+Resultados!J8+Resultados!J9+Resultados!J10 -> 147713.9732
C10: (+) Riesgo Transferido | D10: =+D9+E9 -> 182917.8358 | E10: =+Resultados!J13 -> 102677.9326
C11: (-) Ingresos de Terceras Fuentes | D11: =+E12 -> 74263.50392 | E11: =+Resultados!J11 -> 211332.2645
C12: =+Resultados!I14 -> Costo Ajustado PPR | D12: 0 | E12: =+Resultados!J14 -> 74263.50392
B13: APP | C13: =+C8 -> (+) Riesgo Retenido | D13: 0 | E13: =+E8 -> 35203.8626
C14: (+) Costos de Administración | D14: =+E13 -> 35203.8626 | E14: =+Resultados!M9 -> 6329.037338
C15: (+) Aportes Públicos | D15: =+D14+E14 -> 41532.89994 | E15: =+Resultados!M8 -> 0
C16: =+Resultados!L11 -> Costo Ajustado APP | D16: 0 | E16: =+Resultados!M11 -> 41532.89994
B17: CPP | C17: Valor Por Dinero | D17: =+E16 -> 41532.89994 | E17: =E12-E16 -> 32730.60397
C21: Ingresos Proyecto | D21: =Flujo!D40 -> 0 | E21: =Flujo!E40 -> 0 | F21: =Flujo!F40 -> 0 | G21: =Flujo!G40 -> 41970.48687 | H21: =Flujo!H40 -> 41970.48687 | I21: =Flujo!I40 -> 41970.48687 | J21: =Flujo!J40 -> 41970.48687 | K21: =Flujo!K40 -> 41970.48687 | L21: =Flujo!L40 -> 41970.48687 | M21: =Flujo!M40 -> 41970.48687 | N21: =Flujo!N40 -> 41970.48687 | O21: =Flujo!O40 ->  | P21: =Flujo!P40 ->  | Q21: =Flujo!Q40 ->  | R21: =Flujo!R40 ->  | S21: =Flujo!S40 ->  | T21: =Flujo!T40 ->  | U21: =Flujo!U40 ->  | V21: =Flujo!V40 ->  | W21: =Flujo!W40 ->  | X21: =Flujo!X40 ->  | Y21: =Flujo!Y40 ->  | Z21: =Flujo!Z40 ->  | AA21: =Flujo!AA40 ->  | AB21: =Flujo!AB40 ->  | AC21: =Flujo!AC40 ->  | AD21: =Flujo!AD40 ->  | AE21: =Flujo!AE40 ->  | AF21: =Flujo!AF40 ->  | AG21: =Flujo!AG40 -> 
C22: Aportes Públicos | D22: =D21*Control!$D$25 -> 0 | E22: =E21*Control!$D$25 -> 0 | F22: =F21*Control!$D$25 -> 0 | G22: =G21*Control!$D$25 -> 0 | H22: =H21*Control!$D$25 -> 0 | I22: =I21*Control!$D$25 -> 0 | J22: =J21*Control!$D$25 -> 0 | K22: =K21*Control!$D$25 -> 0 | L22: =L21*Control!$D$25 -> 0 | M22: =M21*Control!$D$25 -> 0 | N22: =N21*Control!$D$25 -> 0 | O22: =O21*Control!$D$25 ->  | P22: =P21*Control!$D$25 ->  | Q22: =Q21*Control!$D$25 ->  | R22: =R21*Control!$D$25 ->  | S22: =S21*Control!$D$25 ->  | T22: =T21*Control!$D$25 ->  | U22: =U21*Control!$D$25 ->  | V22: =V21*Control!$D$25 ->  | W22: =W21*Control!$D$25 ->  | X22: =X21*Control!$D$25 ->  | Y22: =Y21*Control!$D$25 ->  | Z22: =Z21*Control!$D$25 ->  | AA22: =AA21*Control!$D$25 ->  | AB22: =AB21*Control!$D$25 ->  | AC22: =AC21*Control!$D$25 ->  | AD22: =AD21*Control!$D$25 ->  | AE22: =AE21*Control!$D$25 ->  | AF22: =AF21*Control!$D$25 ->  | AG22: =AG21*Control!$D$25 -> 
C23: Flujo de Caja del Inversionista | D23: =Flujo!D69 -> -2687 | E23: =Flujo!E69 -> -6520.03582 | F23: =Flujo!F69 -> -22441.06647 | G23: =Flujo!G69 -> 0 | H23: =Flujo!H69 -> 0 | I23: =Flujo!I69 -> 0 | J23: =Flujo!J69 -> 0 | K23: =Flujo!K69 -> 0 | L23: =Flujo!L69 -> 0 | M23: =Flujo!M69 -> 0 | N23: =Flujo!N69 -> 85901.5062 | O23: =Flujo!O69 ->  | P23: =Flujo!P69 ->  | Q23: =Flujo!Q69 ->  | R23: =Flujo!R69 ->  | S23: =Flujo!S69 ->  | T23: =Flujo!T69 ->  | U23: =Flujo!U69 ->  | V23: =Flujo!V69 ->  | W23: =Flujo!W69 ->  | X23: =Flujo!X69 ->  | Y23: =Flujo!Y69 ->  | Z23: =Flujo!Z69 ->  | AA23: =Flujo!AA69 ->  | AB23: =Flujo!AB69 ->  | AC23: =Flujo!AC69 ->  | AD23: =Flujo!AD69 ->  | AE23: =Flujo!AE69 ->  | AF23: =Flujo!AF69 ->  | AG23: =Flujo!AG69 -> 
E33: Impacto
E34: Alto | F34: Medio-Alto | G34: Medio-Bajo | H34: Bajo
C35: Probabilidad | D35: Alto | E35: 0.48 | F35: 0.21 | G35: 0.09 | H35: 0.04
D36: Medio-Alto | E36: 0.27 | F36: 0.11 | G36: 0.05 | H36: 0.02
D37: Medio-Bajo | E37: 0.15 | F37: 0.06 | G37: 0.03 | H37: 0.01
D38: Bajo | E38: 0.08 | F38: 0.03 | G38: 0.01 | H38: 0.01
J39: Retenido | K39: Transferido
D40: =Control!G21 -> Privado | E40: =Control!H21 -> 0 | F40: =Control!F21 -> Económico | G40: =Control!I21 -> Medio-Bajo | H40: =Control!J21 -> Alto | I40: =VLOOKUP(G40,$D$35:$H$38,MATCH(H40,$E$34:$H$34)+1,FALSE) -> 0.15 | J40: =IF(D40="Público",I40,IF(D40="Público/Privado",I40*E40,0))*$E$49 -> 0 | K40: =IF(D40="Privado",I40,IF(D40="Público/Privado",I40*(1-E40),0))*$E$49 -> 22002.41413
D41: =Control!G22 -> Público | E41: =Control!H22 -> 1 | F41: =Control!F22 -> Social o Político | G41: =Control!I22 -> Bajo | H41: =Control!J22 -> Bajo | I41: 0.08 | J41: =IF(D41="Público",I41,IF(D41="Público/Privado",I41*E41,0))*$E$49 -> 11734.62087 | K41: =IF(D41="Privado",I41,IF(D41="Público/Privado",I41*(1-E41),0))*$E$49 -> 0
D42: =Control!G23 -> Privado | E42: =Control!H23 -> 0 | F42: =Control!F23 -> Operacional | G42: =Control!I23 -> Medio-Alto | H42: =Control!J23 -> Medio-Alto | I42: 0.11 | J42: 0 | K42: 16135.10369
D43: =Control!G24 -> Privado | E43: =Control!H24 -> 0 | F43: =Control!F24 -> Financiero | G43: =Control!I24 -> Alto | H43: =Control!J24 -> Medio-Alto | I43: 0.21 | J43: 0 | K43: 30803.37978
D44: =Control!G25 -> Público | E44: =Control!H25 -> 1 | F44: =Control!F25 -> Regulatorio | G44: =Control!I25 -> Bajo | H44: =Control!J25 -> Bajo | I44: 0.08 | J44: 11734.62087 | K44: 0
D45: =Control!G26 -> Público | E45: =Control!H26 -> 1 | F45: =Control!F26 -> De la Naturaleza | G45: =Control!I26 -> Bajo | H45: =Control!J26 -> Bajo | I45: 0.08 | J45: 11734.62087 | K45: 0
D46: =Control!G27 -> Privado | E46: =Control!H27 -> 0 | F46: =Control!F27 -> Ambiental | G46: =Control!I27 -> Medio-Bajo | H46: =Control!J27 -> Alto | I46: 0.15 | J46: 0 | K46: 22002.41413
D47: =Control!G28 -> Privado | E47: =Control!H28 -> 0 | F47: =Control!F28 -> Tecnológico | G47: =Control!I28 -> Bajo | H47: =Control!J28 -> Bajo | I47: 0.08 | J47: 0 | K47: 11734.62087
D49: Valor Contrato | E49: =NPV(VLOOKUP(Control!D7,Flujo!B7:E8,4,FALSE),Flujo!D53:AG53)+NPV(VLOOKUP(Control!D7,Flujo!B7:E8,4,FALSE),Flujo!D52:AG52) -> 146682.7609
D51: VP Ingresos | E51: =(Resultados!J11+Resultados!M8)*0.7 -> 147932.5851
D52: BAUE | E52: =PMT(12%,Control!D12,-Varios!E51,0) -> 24914.12614
D53: Espera Publica (meses) | E53: 12
D54: VAN Espera | E54: =PMT(POWER(1.12,1/12)-1,E53,0,-E52) -> 1970.041534

Sheet Instructivo
C19: HOJA DE CONTROL
C20: Tipo de Infraestructura | D20: Dependiendo de su proyecto podrá escoger entre infraestructura productiva (i.e., vías, aeropuertos, ferrocarril, etc) o infraestructura social (i.e., edificación pública, hospitales, colegios, etc.)
C21: Tipo de Proyecto | D21: Aquí encontrará dos opciones: proyecto tipo Greenfield y proyecto tipo Brownfield. Si su proyecto corresponde a una obra de ingeniería nueva utilice el tipo de proyecto Greenfield, pero si por el contrario su proyecto se trata de modernización de infraestructura utilice el proyecto tipo Brownfield.
C22: Aprobación Diseños | D22: Si el proyecto que analiza incorpora el estudio y aprobación de diseños por parte del Concedente y el Interventor marque la casilla con Si, en caso contrario utilice No.
C23: Etapa Construcción | D23: Corresponde al número de años que requiere el proyecto en la construcción o modernización de la infraestructura. Allí podrá escoger entre 1 y 5 años según sea su cronograma de intervenciones.
C24: Etapa Operativa | D24: Corresponde al número de años en los cuales el proyecto será operativo. Podrá escoger en un rango que oscila entre 1 y 29 años. No obstante, en el momento que decida estimar los resultados del modelo a través del plazo óptimo el programa utilizará todos los plazos en etapa opertiva posibles.
C25: Total APP | D25: Corresponde al plazo en años del proyecto incluidas todas sus etapas (diseño, contrucción, operación y mantenimiento). En caso que el plazo total exceda los 30 años estipulados en la Ley, esta casilla se tornará de color rojo y los cálculos del modelo serán realizados solo hasta el año 30.
C26: Plazo Deuda Inicial | D26: Esta casilla es automática y corresponde al máximo plazo posible de endeudamiento en el caso de la primera obligación de largo plazo que requiera el proyecto.
C27: Plazo Máximo | D27: Esta casilla no puede modificarse y corresponde a un tope de 10 años para obligaciones de largo plazo.
C28: Período Máximo de Gracia | D28: Corresponde al número de años que una entidad financiera otorgaría al proyecto para no realizar amortizaciones de capital en un rango que se encuentra entre 0 y 2 años. Si el usuario del programa escoge un período de gracia superior al posible según las especificaciones de plazo del proyecto, éste se corregira automáticamente para mantener la consistencia de los resultados.
C29: Spread Deuda | D29: Corresponde a los puntos adicionales sobre la DTF que el prestamista cobraría por la colocación de recursos de deuda. Esta celda puede ser modificada por el usuario, no obstante, se recomienda utilizar un spread de 500 pbs a menos que las condiciones de mercado sean diferentes.
C30: Crecimiento Año 2 | D30: Con el fin de poder simular un crecimiento escalonado del ingreso real del proyecto durante sus primeros años de operación, en esta casilla el usuario podrá colocar la tasa de crecimiento esperada en el ingreso real para el segundo año de operación del proyecto.
C31: Crecimiento Año 3 | D31: Con el fin de poder simular un crecimiento escalonado del ingreso real del proyecto durante sus primeros años de operación, en esta casilla el usuario podrá colocar la tasa de crecimiento esperada en el ingreso real para el tercer año de operación del proyecto.
C32: Crecimiento ≥ Año 4 | D32: En esta casilla el usuario podrá colocar la tasa de crecimiento promedio esperada en el ingreso real del proyecto a partir del año cuarto de operación.
C33: Aportes Públicos | D33: Corresponde al porcentaje de ingreso que podría colocar el sector público para viabilizar el proyecto en caso de requerirse.
C34: Comisión Éxito | D34: En el caso que el originador del proyecto consideré que en el proceso de estructuración y promoción del proyecto se acuerda una comisión de éxito, utilice esta casilla para colocar el valor que considere apropiado para dicha actividad.
C35: Inversiones Etapa Construcción | D35: Corresponde a las inversiones en etapa de construcción que requiere el proyecto para ser operativo. Allí el usuario podrá colocar valores según su cronograma de intervenciones tanto para infraestructura como para equipos año a año.
C36: Inversiones Etapa Aprobación Diseños | D36: Cuando se determine que el proyecto incluye etapa de aprobación de diseños podría requerir inversiones. Allí el usuario podrá colocar valores según su cronograma de intervenciones tanto para infraestructura como para equipos.
C37: Tipificación de Riesgos Previsibles | D37: Corresponde a la asignación y tipicación de riesgos previsibles que el Originador ha establecido para su proyecto y los cuales se encuentran recogidos en el documento CONPES 3714. En el caso de la asignación de cada riesgo el usuario tendra la opción de asignarlo al privado o al público o a ambos. Si se ha establecido que el riesgo es compartido el usuario deberá incluir el porcentaje de riesgo que el sector público asumirá con el proyecto en la casilla "% Publico". En el caso que el riesgo sea totalmente público el usuario deberá colocar 100% en la casilla "% Público". SI por el contrario, el riesgo fue asignado totalmente al sector privado, el usuario deberá colocar 0% en la casilla "% Público". En cuanto a la probabilidad de ocurrencia y el impacto del riesgo en el proyecto, el usuario puede utilizar la clasificación alto/medio-alto/medio-bajo/bajo según considere sea la percepción de cada riesgo en su proyecto.
